Workbook

Sheet Home
A2: MENU | B2: Menu
B3: Home
B5: Instructions
D6: MSK First Contact Practitioner Model
B7: Data Sources
B9: Glossary | D9: This model allows the user to compare scenarios for different levels of provision of first contact practitioner services based on local systems.
D10: Studies show that Physiotherapists being the first point of contact for MSK complaints, rather than GPs, can have the following impacts:
B11: Scenario Modeller
D12: l | E12: Higher patient satisfaction
B13: Model Details | D13: l | E13: Decreased referrals to secondary care
D14: l | E14: Increased conversion rates to surgery when referral to secondary care is necessary
B15: Financial Results | D15: l | E15: Decreased medical prescription costs
D16: l | E16: Shortened patient pathways
B17: Workforce Results
D18: The Chartered Society of Physiotherapy along with the British Medical Association and Royal College of General Practitioners have developed a guide for implementing primary care physiotherapy services which can be found at:
B19: Tariffs
D20: http://www.csp.org.uk/publications/implementing-physiotherapy-services-general-practice-guide-implementation-evaluation
B21: Population Selector
D22: This model uses and supports the results from the Physiotherapy Cost Calculator developed by the Chartered Society of Physiotherapy:
D23: http://www.csp.org.uk/publications/primary-care-physiotherapy-cost-calculator
D25: Further guidance on how to use the model and data sources used can be found on the guidance pages: | N25: Instructions | O25: Data Sources
D26: A glossary page has been provided with the acronyms used within the model: | N26: Glossary
D30: This model has been developed by: | H30: Development and Modelling Analytics Team - South, Central and West Commissioning Support Unit
H31: With support from Andy Lord, Sussex Partnership NHS Foundation Trust and Dr Neil Langridge, Southern Health NHS Foundation Trust
D34: Disclaimers
D35: Please note, as per guidelines in using NCDR data, that this report is for NHS operational and management purposes, and is not to be used as official statistics for general public use.
D37: The model shows different scenarios based on what has been input. Suggestions for tariffs and percentages have been provided using research and NCDR data, however any results using these data sources may not reflect the local situation.
D39: The model is designed for use with Excel 2010 and higher. Functions may not work properly using Excel 2007.

Sheet Guidance_Instructions
A2: MENU | B2: Menu | C2: Model Instructions
B3: Home
B5: Instructions
B7: Data Sources
C8: Top…
B9: Glossary | D9: How to use the model
D10: The model has been set with a variety of pre-completed fields, however it has been designed so you have full control over the inputs you wish to use.
B11: Scenario Modeller
D12: If a cell is in a light orange | H12: or has a dotted outline | L12: then it is a cell that can be adjusted.
B13: Model Details
D14: Note: If a link in the model doesn't appear to work check you are not clicked on a scroll bar etc. Click onto a blank cell to get the functionality to work.
B15: Financial Results
B17: Workforce Results
D18: Navigation around the model
B19: Tariffs
E20: Click on this button to see the menu of pages available within this tool click on the menu button.
B21: Population Selector | E21: Once selected the menu will appear to the right with the current page highlighted in orange. Click on the page names to navigate to that page. Click on the menu button to re-hide the menu.
E24: Click on the arrows to move one page to the left and right of the current page
E25: Note: If a link in the model doesn't appear to work check you are not clicked on a scroll bar etc. Click onto a blank cell to get the functionality to work.
C28: Top… | D28: Scenario Modeller
D30: Using the drop downs indicated by the dotted orange border | K30: Select the region, STP, CCG and GP practice you wish to look at.
D31: Select "All" if you want to look at the whole population.
D32: If you want to use a different population number for the model insert it in the box with the orange dotted outline alongside the automatically generated population and the model will be based on this figure instead.
D35: Adjust the options for your service by clicking the option buttons to select level of adoption of First Contact Practitioner from 0 to 100 percent and the proportion of GP appointments which are MSK conditions from 5 to 50 percent.
D38: The results within the model can be shown by week, month or year depending on the option button selected. Based on all these options the numbers from the model are shown in the lower half of this page.
D41: Select Level of Adoption - Use the scroll bar to select the percentage of adoption of First Contact Practitioner. If this is not known adjust the scroll bar until the number of FCP FTE is correct and this will show your level of adoption
D43: FTE First Contact Practitioner Required - Adjustments to this figure can be made using a combination of the model details page and workforce results page
C46: Top… | D46: Model Details Page
D48: This page has been developed so more adjustments can be made to influence the output of the model. This model detail is provided in the style of the patient pathway, from GP appointment through to direct access diagnostics, outpatients and inpatient attendances.
D51: This page takes the options that were selected on the model summary page and presents the detailed numbers behind the results.
D52: If a number is in a light orange | H52: this identifies that the number is adjustable. This is either through a spin button
D53: or typing the number directly into the cell, as available for the proportion of tests within direct access diagnostics.
D55: The results will change depending on what has been selected.
C57: Top… | D57: Financial Results
D59: This page allows for comparison of financial results based on the model and a comparison version. The scroll bars next to each of the measures allows the adjustment of the financial results which is reflected in the table and graphs below.
C66: Top… | D66: Workforce Results by Week, Month, Year
D68: This page is based on the full physiotherapy cost calculator, therefore for a more complete picture including costs of prescribing use the model linked on this page. The same principles can be used for other first contact practitioners.
D71: To show the number of practitioner full time equivalents needed to manage the activity identified within the model. This page presents the data based on the timescale selected on the Model Summary page.
D74: As per the model summary page the items which can be adjusted have an orange dotted border. On this page there are scroll bars used to choose the mean appointment time, non-clinical time and NHS band. If the practitioner is private, tick the private box and insert the unit cost in the orange dotted box next to the tick box.
C78: Top… | D78: Tariffs
D80: The costs used within the model are fully adjustable, allowing for local systems to be modelled. Suggested unit costs have been provided with details of the source of the unit cost. To insert your own unit costs add them against the relevant measure under the "Own Tariff" column (light orange). You can toggle between the two tariffs by clicking on the grey button. If you are using the "Suggested Tariff" within the model this is what will appear on the button. Once depressed "Own Tariff" will appear on the button and this unit cost will be used in the model. A summary of the tariffs using in the model is in the final column. The Staff Costs give the option to adjust the figures set by the Personal Social Service Research Unit. This gives greater flexibility for the model. Use the up and down arrows to change the set figures.
C89: Top… | D89: Population Selector
D91: Input your own population figures using the table selected in orange. If a new population is added then it will be used as default in the model. The population added in by GP practice is summed to calculate a total population for that CCG. Ensure you add a population figure against all practices if you wish to use the CCG level figure, otherwise the population will be too low.

Sheet Guidance_Datasource
A2: MENU | B2: Menu | C2: Data Sources
B3: Home
B5: Instructions
B7: Data Sources | D7: Assumptions used in the model
B9: Glossary | D9: The model works off the population selected from the model summary.
D10: Population: | F10: NHS Digital Registered population - January 2019
B11: Scenario Modeller
B13: Model Details
B15: Financial Results
B17: Workforce Results | D17: Measure | J17: Default Value | L17: Source | Q17: Methodology | V17: Link to Source
D18: Rate of GP appointments per 1000 population | J18: 72 | L18: BMA (2016) Safe working in General Practice | Q18: Rate per week. | V18: Click
B19: Tariffs | D19: Proportion of appointments which are MSK conditions | J19: 20% | L19: Jordan, Kelvin, Clarke, Alexandra et al (2007) Measuring disease prevalence: a comparison of musculoskeletal disease using four general practice consultation databases. British Journal of General Practice | Q19: References: McCormick A, Fleming D, Charlton J (1995) Morbidity Statistics from General Practice: Fourth national study 1991–1992 (HMSO, London) | V19: Click
B21: Population Selector
D24: Rate of adoption of First Contact Practitioner | J24: 50% | L24: None | Q24: For local determination
D25: FCP DNA Rate | J25: 5% | L25: Advanced Physiotherapy Practitioners (APP), North West Wales case study | V25: Click
D26: Direct access diagnostics - GP Referral Rate | I26: X-ray | J26: 13.6% | L26: Holdsworth, Webster and McFadyen (2007) What are the costs to NHS Scotland of self-referral to physiotherapy? Results of a national trial. Physiotherapy 93 | Q26: Table 2, GP-referral group, X-ray % | V26: Click
I27: MRI | J27: 1.0% | Q27: Table 2, GP-referral group, MRI % | V27: Click
I28: Ultrasound | J28: 0.0% | L28: None | Q28: No sited reference - for local determination
D29: Direct access diagnostics - FCP Referral Rate | I29: X-ray | J29: 7.3% | L29: Holdsworth, Webster and McFadyen (2007) | Q29: Table 2, Self-referral group, X-ray % | V29: Click
I30: MRI | J30: 0.9% | Q30: Table 2, Self-referral group, MRI % | V30: Click
I31: Ultrasound | J31: 0.0% | L31: None | Q31: No sited reference - for local determination
D32: Physiotherapy - GP Referred | I32: Referral rate | J32: 42% | L32: Goodwin & Hendrick (2016) | Q32: GP rate of referral - university | V32: Click
I33: DNA rate | J33: 5% | L33: General 5% DNA rate | Q33: For local determination
D34: Physiotherapy - FCP Referred | I34: Referral rate | J34: 22% | L34: Goodwin & Hendrick (2016) | Q34: GP Physio rate of referral - university | V34: Click
I35: DNA rate | J35: 5% | L35: General 5% DNA rate | Q35: For local determination
D36: Orthopaedic Outpatient Attendances - GP referred | I36: Referral rate | J36: 3.1% | L36: Holdsworth, Webster and McFadyen (2007) | Q36: Table 2, GP-referral group, secondary care % | V36: Click
I37: DNA rate | J37: 5% | L37: General 5% DNA rate | Q37: For local determination
I38: First attendances | J38: 100% | L38: Assumption that all patients receive a first attendance | Q38: For local determination, to include rejected referral rates where available
I39: Follow-up attendances | J39: 0% | Q39: For local determination
D40: Orthopaedic Outpatient Attendances - GP referred | I40: Referral rate | J40: 1.4% | L40: Holdsworth, Webster and McFadyen (2007) | Q40: Table 2, Self-referral group, secondary care % | V40: Click
I41: DNA rate | J41: 5% | L41: General 5% DNA rate | Q41: For local determination
I42: First attendances | J42: 100% | L42: Assumption that all patients receive a first attendance | Q42: For local determination, to include rejected referral rates where available
I43: Follow-up attendances | J43: 0% | Q43: For local determination
D44: Inpatient conversion - GP referred | J44: 47% | L44: NCDR data | Q44: Conversion rate from outpatient to inpatient for patients with a MSK admission.
D45: Inpatient conversion - FCP referred | J45: 80% | L45: Musculoskeletal Clinical Assessment Service (MCAS) in West Glamorgan case study | Q45: Lower level of conversion rate to take into account that spinal surgery has lower rate of conversion to surgery. | V45: Click
D48: Tariffs | J48: Default Value | L48: Source | Q48: Methodology | V48: Link to Source
D50: Acute MSK First Outpatient | J50: £151.00 | L50: NHS Improvement 2017/18 National Tariffs | Q50: 2017/18 T&O WF01B Tariff | V50: Click
D51: Acute MSK Follow-up Outpatient | J51: £59.00 | L51: NHS Improvement 2017/18 National Tariffs | Q51: 2017/18 T&O WF01A Tariff | V51: Click
D52: DA Diagnostics - MRI - FCP Referral | J52: £143.00 | L52: Goodwin, Rob W. and Hendrick, Paul (2016) Physiotherapy as a first point of contact in general practice: A solution to a growing problem? Primary Health Care Research and Development, 6 | Q52: Table 3: Direct access MRI scan | V52: Click
D53: DA Diagnostics - MRI - GP Referral | J53: £143.00 | Q53: Table 3: Direct access MRI scan | V53: Click
D54: DA Diagnostics - Ultrasound - FCP Referral | J54: £45.70 | Q54: Table 3: Ultrasound scan | V54: Click
D55: DA Diagnostics - Ultrasound - GP Referral | J55: £45.70 | Q55: Table 3: Ultrasound scan | V55: Click
D56: DA Diagnostics - X-Ray - FCP Referral | J56: £31.00 | Q56: Table 3: Direct access x-ray | V56: Click
D57: DA Diagnostics - X-Ray - GP referral | J57: £31.00 | Q57: Table 3: Direct access x-ray | V57: Click
D58: First Contact Practitioner Cost - GP Referral | J58: ='Workforce Results'!K21 -> £52.95 | L58: Calculated using Workforce Results | V58: Click
D59: GP Appointment (9.22 minutes) | J59: £37.00 | L59: Curtis, Lesley and Burns, Amanda (2017) Unit Costs for Health and Social Care 2017. Personal Social Service Research Unit, University of Kent | Q59: Table 10.3b General practitioner - unit costs, with qualification costs, including direct care staff costs | V59: Click
D60: Inpatient Admission | J60: £2,980.00 | L60: NCDR | Q60: Average cost for MSK inpatient admission, including MFF, excess bed days
D61: Physiotherapy cost (episode of care) | J61: £75.94 | L61: Goodwin & Hendrick (2016) | Q61: Table 3: MSK Physiotherapy episode of care | V61: Click
D63: Staff Costs | J63: Default Value | L63: Source | Q63: Methodology | V63: Link to Source
D65: National Insurance | J65: 13.8% | L65: Gov.uk national insurance rates and categories | Q65: 2017/18 employer national insurance rates | V65: Click
D66: Pension Contributions | J66: 14.3% | L66: NHS Employers (2017) Pension contributions and tax arrangements | Q66: Employer rate for 2016/17 to 2018/19 | V66: Click
D67: Management overhead | J67: 24.5% | L67: Curtis, Lesley and Burns, Amanda (2017) Unit Costs for Health and Social Care 2017. Personal Social Service Research Unit, University of Kent | Q67: Chapter 9: Scientific and professional staff. Taken from the 2013/14 financial accounts for 10 community trusts. Management and other non-care staff costs are 24.5% of direct care salary costs and include administration and estates staff. Non-staff costs are 38.2% of direct care salary costs. They include costs to the provider for office, travel/transport, publishing, training courses and conferences, supplies and services (clinical and general), and utilities such as water, gas and electricity. | V67: Click
D68: Non-staff overhead | J68: 38.2%
D69: Capital overheads | J69: £5,125 | Q69: Chapter 9: Scientific and professional staff. Based on the new-build and land requirements of NHS hospital facilities, but adjusted to reflect shared use of office space for administration, and recreational and changing facilities
D70: Available hours (per year) | J70: 1,599 | Q70: Chapter 9: Scientific and professional staff. Working hours for each band was calculated by deducting sickness absence days as reported for NHS staff groups and study days from 225 working days.

Sheet Glossary
A2: MENU | B2: Menu | C2: Glossary
B3: Home
D4: Acronym | E4: Description
B5: Instructions
D6: CCG | E6: Clinical Commissioning Group
B7: Data Sources | D7: DA | E7: Direct access diagnostics
D8: DNA | E8: Did not attend
B9: Glossary | D9: FA | E9: First attendance
D10: FCP | E10: First Contact Practitioner
B11: Scenario Modeller | D11: FTE | E11: Full-time equivalent
D12: FUP | E12: Follow-up attendance
B13: Model Details | D13: GP | E13: General Practitioner
D14: MRI | E14: Magnetic resonance imaging
B15: Financial Results | D15: MSK | E15: Musculoskeletal
D16: NCDR | E16: National Commissioning Data Repository
B17: Workforce Results | D17: OP | E17: Outpatients
D18: PSSRU | E18: Personal Social Services Research Unit
B19: Tariffs
B21: Population Selector

Sheet Scenario Modeller
A2: MENU | B2: Menu | C2: Scenario Modeller
B3: Home | F3: SELECT DROP DOWN
D4: Choose Region | F4: Select a Region
B5: Instructions | D5: Choose STP | F5: Select a STP
D6: Choose CCG | F6: Select a CCG | K6: =IF(F9="#N/A","Selected CCG and GP Practice","") -> 
B7: Data Sources | D7: Choose GP Practice | F7: Select a Practice
I8: Or use own Population:
B9: Glossary | D9: Population: | F9: =IFERROR(IF(F6="All","Select a correct CCG or GP Practice",VLOOKUP(F7,'Population Selector'!$F$12:$L$101,7,FALSE)),"") ->  | N9: =IF(I9="",F9,I9) -> 
B11: Scenario Modeller
D12: Select Level of Adoption of FCP | H12: FTE First Contact Practitioner Required | L12: Band Selected | M12: Wage Multiplier
B13: Model Details | D13: =IF(Calculations!H5=0,"No FCP",Calculations!H5) -> 50% | H13: =IFERROR(IF(Calculations!H5=0,0,'Workforce Results'!K29),"") ->  | L13: ='Workforce Results'!I16 -> Band 8a | M13: =Calculations!B86 -> No London Weighting
B15: Financial Results | D15: Proportion of GP Appointments which are MSK Conditions | H15: Results by Week, Month or Year
D16: =Calculations!H6 -> 20%
B17: Workforce Results
B19: Tariffs | D19: NOTE: Please ensure that all options within the "Model Details", "Financial Results", "Workforce Results" and "Tariffs" pages are reviewed before relying on the financial results below. A summary of the main measures are provided below. All current measures are based on research and may not be applicable to local systems.
B21: Population Selector
D24: Summary Statistics Used in Model: | G24: GP Referred | J24: FCP Referred
D25: MSK patients referred to Physiotherapy | G25: Referral Rate % | H25: ='Model Details'!I35/100 -> 42.0% | J25: Referral Rate % | K25: ='Model Details'!M35/100 -> 22.0%
D26: Referrals to Diagnostics | G26: Referred to X-Ray % | H26: ='Model Details'!H48/100 -> 13.6% | J26: Referred to X-Ray % | K26: ='Model Details'!L48/100 -> 7.3%
G27: Referred to MRI % | H27: ='Model Details'!H49/100 -> 1.0% | J27: Referred to MRI % | K27: ='Model Details'!L49/100 -> 0.9%
G28: Referred to Ultrasound % | H28: ='Model Details'!H50/100 -> 0.0% | J28: Referred to Ultrasound % | K28: ='Model Details'!L50/100 -> 0.0%
D29: Orthopaedic Outpatient Attendance | G29: Referral Rate % | H29: ='Model Details'!I57/100 -> 3.1% | J29: Referral Rate % | K29: ='Model Details'!M57/100 -> 1.4%
D30: Elective Orthopaedic Inpatient Admissions | G30: Conversion Rate % | H30: ='Model Details'!I71/100 -> 47.0% | J30: Conversion Rate % | K30: ='Model Details'!M71/100 -> 80.0%
D32: Results Summary: | F32: No First Contact Practitioner | I32: Results from Scenario Modeller | L32: Difference
F33: Activity | G33: Finance | I33: Activity | J33: Finance | L33: Activity | M33: Finance
D34: Total | F34: =SUM(F41:F50) -> 0 | G34: =SUM(G35:G50) -> £0 | I34: =I51+L51 -> 0 | J34: =J51+M51 -> £0 | L34: =I34-F34 -> 0 | M34: =J34-G34 -> £0
F37: No First Contact Practitioner | I37: Results from Scenario Modeller
F38: MSK Costs - traditional GP Practice | I38: GP Referred MSK | L38: FCP Referred MSK
F40: Activity | G40: Finance | I40: Activity | J40: Finance | L40: Activity | M40: Finance
D41: GP Appointments | F41: =IFERROR(NoFCP_Act_GP,"") ->  | G41: =IFERROR(NoFCP_Fin_GP,"") ->  | I41: =IFERROR(Result_Act_GP,"") ->  | J41: =IFERROR(Result_Fin_GP,"") ->  | L41: =IFERROR(Result_Act_FCP,"") ->  | M41: =IFERROR(Result_Fin_FCP,"") -> 
D43: Direct Access Diagnostics | F43: =IFERROR(NoFCP_Act_GPDA,"") ->  | G43: =IFERROR(NoFCP_Fin_GPDA,"") ->  | I43: =IFERROR(Result_Act_DAGP,"") -> 0 | J43: =IFERROR(Result_Fin_DAGP,"") -> £0 | L43: =IFERROR(Result_Act_DAFPC,"") -> 0 | M43: =IFERROR(Result_Fin_DAFCP,"") -> £0
D45: Orthopaedic Outpatients | F45: =IFERROR(NoFCP_Act_GPOP,"") ->  | G45: =IFERROR(NoFCP_Fin_GPOP,"") ->  | I45: =IFERROR(Result_Act_OPGP,"") ->  | J45: =IFERROR(Result_Fin_OPGP,"") -> £0 | L45: =IFERROR(Result_Act_OPFCP,"") ->  | M45: =IFERROR(Result_Fin_OPFCP,"") -> £0
D47: Orthopaedic Inpatients | F47: =IFERROR(NoFCP_Act_GPIP,"") ->  | G47: =IFERROR(NoFCP_Fin_GPIP,"") ->  | I47: =IFERROR(Result_Act_IPGP,"") ->  | J47: =IFERROR(Result_Fin_IPGP,"") ->  | L47: =IFERROR(Result_Act_IPFCP,"") ->  | M47: =IFERROR(Result_Fin_IPFCP,"") -> 
D49: Physiotherapy Sessions | F49: =IFERROR(NoFCP_Act_GPPhysio,"") ->  | G49: =IFERROR(NoFCP_Fin_GPPhysio,"") ->  | I49: =IFERROR(Result_Act_GPPhysio,"") ->  | J49: =IFERROR(Result_Fin_GPPhysio,"") ->  | L49: =IFERROR(Result_Act_FCPPhysio,"") ->  | M49: =IFERROR(Result_Fin_FCPPhysio,"") -> 
D51: Total | F51: =SUM(F41:F50) -> 0 | G51: =SUM(G41:G50) -> £0 | I51: =SUM(I41:I50) -> 0 | J51: £0 | L51: 0 | M51: £0

Sheet Model Details
A2: MENU | B2: Menu | C2: FCP Model Detail
B3: Home
F4: Region | G4: =IF('Scenario Modeller'!$I$9="",'Scenario Modeller'!F4,"Not selected") -> Select a Region | L4: Population used in model
B5: Instructions | F5: STP | G5: =IF('Scenario Modeller'!$I$9="",'Scenario Modeller'!F5,"Not selected") -> Select a STP | L5: =IF('Scenario Modeller'!I9="",'Scenario Modeller'!F9,'Scenario Modeller'!I9) -> 
F6: CCG | G6: =IF('Scenario Modeller'!$I$9="",'Scenario Modeller'!F6,"Not selected") -> Select a CCG
B7: Data Sources | F7: GP Practice | G7: =IF('Scenario Modeller'!$I$9="",'Scenario Modeller'!F7,"Not selected") -> Select a Practice
B9: Glossary | I9: ="GP Appointments (per "&Calculations!H4&")" -> GP Appointments (per Year)
M10: FALSE | P10: FALSE | Q10: FALSE
B11: Scenario Modeller | I11: =IFERROR(IF(Calculations!H4="Week",((Population/1000)*GP_Apt_rate),IF(Calculations!H4="Month",((((Population/1000)*GP_Apt_rate)*52)/12),(((Population/1000)*GP_Apt_rate)*52))),"") ->  | K11: =IFERROR(I11*Tariff_GP,"") -> 
I12: Rate of GP appointments per week per 1000 pop'n | K12: =GP_Apt_rate -> 72
B13: Model Details
B15: Financial Results
B17: Workforce Results | I17: ="MSK GP Appointments (per "&Calculations!H4&")" -> MSK GP Appointments (per Year)
B19: Tariffs | I19: =IFERROR((I11/100)*(K20*100),"") ->  | K19: =IFERROR(I19*Tariff_GP,"") -> 
I20: % of Appts which are MSK Conditions | K20: =MSKAptRate -> 20%
B21: Population Selector
I22: Rate of Adoption of FCP | K22: =AdoptionRate -> 50%
D26: GP Appointments for MSK | N26: FCP Appointments for MSK
S27: More Info
D28: =IFERROR(I19*(1-AdoptionRate),"") ->  | F28: =IFERROR(Result_Act_GP*Tariff_GP,"") ->  | N28: =IFERROR((I19/100)*(AdoptionRate*100)-((I19*AdoptionRate)/100)*Model_FCPDNA,"") ->  | P28: =IFERROR('Workforce Results'!E29,"") -> 
N29: DNA Rate % | P29: =Model_FCPDNA -> 5.0
G32: Physiotherapy
G34: GP referred | I34: 2 | K34: FCP Referred
G35: Referral Rate % | I35: =Model_PhysioGPRef -> 42.0 | K35: Referral Rate % | M35: =Model_PhysioFCPRef -> 22.0
G37: DNA Rate % | I37: =Model_Physio_GPDNA -> 5.0 | K37: DNA Rate % | M37: =Model_Physio_FCPDNA -> 5.0
G39: =IFERROR(((Result_Act_GP/100)*Model_PhysioGPRef)-((((Result_Act_GP/100)*Model_PhysioGPRef)/100)*Model_Physio_GPDNA),"") ->  | I39: =IFERROR(Result_Act_GPPhysio*Tariff_Physio,"") ->  | K39: =IFERROR(((Result_Act_FCP/100)*Model_PhysioFCPRef)-((((Result_Act_FCP/100)*Model_PhysioFCPRef)/100)*Model_Physio_FCPDNA),"") ->  | M39: =IFERROR(Result_Act_FCPPhysio*Tariff_Physio,"") -> 
G43: Direct Access Diagnostics
G45: GP referred | I45: 2 | K45: FCP Referred
G46: =IFERROR(SUM(I48:I50),"") -> 0 | I46: =IFERROR(SUM(J48:J50),"") -> £0 | K46: =IFERROR(SUM(M48:M50),"") -> 0 | M46: =IFERROR(SUM(N48:N50),"") -> £0
G47: Test | H47: % of Pts | I47: Activity | J47: Finance | K47: Test | L47: % of Pts | M47: Activity | N47: Finance
G48: X-Ray | H48: =Model_DAGPXray -> 13.6 | I48: =IFERROR(Result_Act_GP*(H48/100),"") ->  | J48: =IFERROR(I48*Tariff_XrayGP,"") ->  | K48: X-Ray | L48: =Model_DAFCPXray -> 7.3 | M48: =IFERROR(Result_Act_FCP*(L48/100),"") ->  | N48: =IFERROR(M48*Tariff_XrayFCP,"") -> 
G49: MRI | H49: =Model_DAGPMRI -> 1.0 | I49: =IFERROR(Result_Act_GP*(H49/100),"") ->  | J49: =IFERROR(I49*Tariff_MRIGP,"") ->  | K49: MRI | L49: =Model_DAFCPMRI -> 0.9 | M49: =IFERROR(Result_Act_FCP*(L49/100),"") ->  | N49: =IFERROR(M49*Tariff_MRIFCP,"") -> 
G50: Ultrasound | H50: =Model_DAGPUS -> 0.0 | I50: =IFERROR(Result_Act_GP*(H50/100),"") ->  | J50: =IFERROR(I50*Tariff_USGP,"") ->  | K50: Ultrasound | L50: =Model_DAFCPUS -> 0.0 | M50: =IFERROR(Result_Act_FCP*(L50/100),"") ->  | N50: =IFERROR(M50*Tariff_USFCP,"") -> 
G54: Orthopaedic Outpatient Attendances
G56: GP referred | I56: 2 | K56: FCP Referred
G57: Referral Rate % | I57: =Model_OPGPRef -> 3.1 | K57: Referral Rate % | M57: =Model_OPFCPRef -> 1.4
G59: DNA Rate % | I59: =Model_OPGPDNA -> 5.0 | K59: DNA Rate % | M59: =Model_OPFCPDNA -> 5.0
G61: =IFERROR(((Result_Act_GP/100)*Model_OPGPRef)-((((Result_Act_GP/100)*Model_OPGPRef)/100)*Model_OPGPDNA),"") ->  | I61: =SUM(J63:J64) -> £0 | K61: =IFERROR(((Result_Act_FCP/100)*Model_OPFCPRef)-((((Result_Act_FCP/100)*Model_OPFCPRef)/100)*Model_OPFCPDNA),"") ->  | M61: =SUM(N63:N64) -> £0
G62: Test | H62: % of Pts | I62: Activity | J62: Finance | K62: Test | L62: % of Pts | M62: Activity | N62: Finance
G63: FA | H63: =Model_OPGPFA -> 100.0 | I63: =IFERROR((Result_Act_OPGP/100)*H63,"") ->  | J63: =IFERROR(I63*Tariff_FA,"") ->  | K63: FA | L63: =Model_OPFCPFA -> 100.0 | M63: =IFERROR((Result_Act_OPFCP/100)*L63,"") ->  | N63: =IFERROR(M63*Tariff_FA,"") -> 
G64: FUP | H64: =Model_OPGPFUP -> 0.0 | I64: =IFERROR((Result_Act_OPGP/100)*H64,"") ->  | J64: =IFERROR(I64*Tariff_FUP,"") ->  | K64: FUP | L64: =Model_OPFCPFUP -> 0.0 | M64: =IFERROR((Result_Act_OPFCP/100)*L64,"") ->  | N64: =IFERROR(M64*Tariff_FUP,"") -> 
G68: Elective Orthopaedic Inpatient Admissions
G70: GP referred | I70: 2 | K70: FCP Referred
G71: Conversion Rate % | I71: =Model_IPGPConv -> 47.0 | K71: Conversion Rate % | M71: =Model_IPFCPConv -> 80.0
G73: =IFERROR((Result_Act_OPGP/100)*I71,"") ->  | I73: =IFERROR(Result_Act_IPGP*Tariff_IP,"") ->  | K73: =IFERROR((Result_Act_OPFCP/100)*M71,"") ->  | M73: =IFERROR(Result_Act_IPFCP*Tariff_IP,"") -> 

Sheet Financial Results
A2: MENU | B2: Menu | C2: ="Finance Results by "&Calculations!H4 -> Finance Results by Year
B3: Home
E4: Adjust the scroll bar to compare the current model to other options
B5: Instructions
E6: Measures | K6: Modelled version | M6: Comparison version | O6: Scrollbar Adjustment | Q6: Change on Original
B7: Data Sources | E7: Rate of GP appointments per week per 1000 population | K7: =GP_Apt_rate -> 72 | M7: =AB7 -> 72 | Q7: =IF(K7-M7=0,"No Change",M7-K7) -> No Change | AB7: 72
E8: Proportion of appointments which are MSK conditions | K8: =MSKAptRate -> 20% | M8: =AB8/100 -> 20% | Q8: =IF(K8-M8=0,"No Change",M8-K8) -> No Change | AB8: 20
B9: Glossary | E9: Rate of adoption of First Contact Practitioner | K9: =AdoptionRate -> 50% | M9: 50% | Q9: No Change | AB9: 50
E10: FCP DNA Rate | K10: =ROUND(Model_FCPDNA/100,3) -> 5.0% | M10: =AB10/1000 -> 5.0% | Q10: =IF(K10-M10=0,"No Change",M10-K10) -> No Change | AB10: 50
B11: Scenario Modeller | E11: Physiotherapy | G11: GP Referred | I11: Referral Rate | K11: =ROUND(Model_PhysioGPRef/100,3) -> 42.0% | M11: 42.0% | Q11: =IF(K11-M11=0,"No Change",M11-K11) -> No Change | AB11: 420
I12: DNA Rate | K12: =ROUND(Model_Physio_GPDNA/100,3) -> 5.0% | M12: 5.0% | Q12: =IF(K12-M12=0,"No Change",M12-K12) -> No Change | AB12: 50
B13: Model Details | G13: FCP Referred | I13: Referral Rate | K13: =ROUND(Model_PhysioFCPRef/100,3) -> 22.0% | M13: 22.0% | Q13: =IF(K13-M13=0,"No Change",M13-K13) -> No Change | AB13: 220
I14: DNA Rate | K14: =ROUND(Model_Physio_FCPDNA/100,3) -> 5.0% | M14: 5.0% | Q14: No Change | AB14: 50
B15: Financial Results | E15: Direct Access Diagnostics | G15: GP Referred | I15: X-ray | K15: =ROUND(Model_DAGPXray/100,3) -> 13.6% | M15: 13.6% | Q15: =IF(K15-M15=0,"No Change",M15-K15) -> No Change | AB15: 136
I16: MRI | K16: =ROUND(Model_DAGPMRI/100,3) -> 1.0% | M16: 1.0% | Q16: No Change | AB16: 10
B17: Workforce Results | I17: Ultrasound | K17: =ROUND(Model_DAGPUS/100,3) -> 0.0% | M17: 0.0% | Q17: No Change | AB17: 0
G18: FCP Referred | I18: X-ray | K18: =ROUND(Model_DAFCPXray/100,3) -> 7.3% | M18: 7.3% | Q18: No Change | AB18: 73
B19: Tariffs | I19: MRI | K19: =ROUND(Model_DAFCPMRI/100,3) -> 0.9% | M19: 0.9% | Q19: No Change | AB19: 9
I20: Ultrasound | K20: =ROUND(Model_DAFCPUS/100,3) -> 0.0% | M20: 0.0% | Q20: No Change | AB20: 0
B21: Population Selector | E21: Outpatient | G21: GP Referred | I21: Referral Rate | K21: =ROUND(Model_OPGPRef/100,3) -> 3.1% | M21: 3.1% | Q21: No Change | AB21: 31
I22: DNA Rate | K22: =ROUND(Model_OPGPDNA/100,3) -> 5.0% | M22: 5.0% | Q22: =IF(K22-M22=0,"No Change",M22-K22) -> No Change | AB22: 50
G23: FCP Referred | I23: Referral Rate | K23: =ROUND(Model_OPFCPRef/100,3) -> 1.4% | M23: 1.4% | Q23: =IF(K23-M23=0,"No Change",M23-K23) -> No Change | AB23: 14
I24: DNA Rate | K24: =ROUND(Model_OPFCPDNA/100,3) -> 5.0% | M24: 5.0% | Q24: No Change | AB24: 50
E25: Inpatient | G25: GP Referred | I25: Conversion Rate | K25: =ROUND(Model_IPGPConv/100,3) -> 47.0% | M25: 47.0% | Q25: No Change | AB25: 470
G26: FCP Referred | I26: Conversion Rate | K26: =ROUND(Model_IPFCPConv/100,3) -> 80.0% | M26: 80.0% | Q26: No Change | AB26: 800
E30: Financial Results | I30: Modelled version | L30: Comparison version | N30: Difference
I31: No FCP | J31: GP | K31: FCP | L31: GP | M31: FCP | N31: GP | O31: FCP
E32: GP Appointments | I32: =IFERROR(NoFCP_Fin_GP,"") ->  | J32: =IFERROR(Result_Fin_GP,"") ->  | K32: =IFERROR(Result_Fin_FCP,"") ->  | L32: =IFERROR(Comp_Fin_GP,"") ->  | M32: =IFERROR(Comp_fin_FCP,"") ->  | N32: =IFERROR(L32-J32,"") -> 
E33: Direct Access Diagnostics | I33: =IFERROR(NoFCP_Fin_GPDA,"") ->  | J33: =IFERROR(Result_Fin_DAGP,"") -> £0 | K33: =IFERROR(Result_Fin_DAFCP,"") -> £0 | L33: =IFERROR(Comp_Fin_GPDA,"") ->  | M33: =IFERROR(Comp_Fin_FCPDA,"") -> 
E34: Outpatient Appointments | I34: =IFERROR(NoFCP_Fin_GPOP,"") ->  | J34: =IFERROR(Result_Fin_OPGP,"") -> £0 | K34: =IFERROR(Result_Fin_OPFCP,"") -> £0 | L34: =IFERROR(Comp_Fin_GPOP,"") ->  | M34: =IFERROR(Comp_Fin_FCPOP,"") -> 
E35: Inpatient Admissions | I35: =IFERROR(NoFCP_Fin_GPIP,"") ->  | J35: =IFERROR(Result_Fin_IPGP,"") ->  | K35: =IFERROR(Result_Fin_IPFCP,"") ->  | L35: =IFERROR(Comp_Fin_GPIP,"") ->  | M35: =IFERROR(Comp_Fin_FCPIP,"") -> 
E36: Physiotherapy Appointments | I36: =IFERROR(NoFCP_Fin_GPPhysio,"") ->  | J36: =IFERROR(Result_Fin_GPPhysio,"") ->  | K36: =IFERROR(Result_Fin_FCPPhysio,"") ->  | L36: =IFERROR(Comp_fin_GPPhysio,"") ->  | M36: =IFERROR(Comp_Fin_FCPPhysio,"") -> 

Sheet Workforce Results
A2: MENU | B2: Menu | C2: ="Workforce Results by "&Calculations!H4 -> Workforce Results by Year
B3: Home
Q4: Total Practices | S4: =Population!AA1 -> 1
B5: Instructions
B7: Data Sources | E7: ="Number of FCP appointments per "&Calculations!H4 -> Number of FCP appointments per Year | I7: ='Model Details'!N28 ->  | L7: Number of practices | T7: Financial Model
L8: =S4 -> 1 | Q8: =IFERROR(IF(Calculations!H4="Week",'Workforce Results'!I7,IF(Calculations!H4="Month",('Workforce Results'!I7*12/52),('Workforce Results'!I7/52))),"") ->  | T8: =IF(Calculations!H4="Week",Calculations!F50,IF(Calculations!H4="Month",(Calculations!F50*12/52),(Calculations!F50/52))) -> 
B9: Glossary
E10: Average Appointment Time | I10: =Q10&" minutes" -> 20 minutes | Q10: 20
B11: Scenario Modeller
Q12: 3 | S12: =Q12*S4 -> 3
B13: Model Details | E13: Non-Clinical time (hours) (per week) - per practice | I13: =Q12&" hours" -> 3 hours | K13: ="Per "&Calculations!H4 -> Per Year | L13: =Q13 &" hours" -> 156 hours | Q13: =ROUND(IF(Calculations!H4="Week",'Workforce Results'!Q12,IF(Calculations!H4="Month",('Workforce Results'!Q12*52)/12,('Workforce Results'!Q12*52))),2) -> 156.00
B15: Financial Results
E16: Level of practice (NHS Band) (if private click box to right) | I16: =VLOOKUP(Q16,Tariffs!C37:O44,2,FALSE) -> Band 8a | L16: Private Unit Cost | Q16: 4
B17: Workforce Results | L17: £130.00 | Q17: FALSE
B19: Tariffs
E20: Unit Cost used in model
B21: Population Selector | K21: =IF(Q17=TRUE,L17,VLOOKUP(I16,Tariffs!D37:O44,12,FALSE)) -> £52.95
E24: =Calculations!H4&"ly cost of First Contact Practitioner service (excluding prescribing)" -> Yearly cost of First Contact Practitioner service (excluding prescribing) | K24: FTE required to meet demand (MSK in primary care)
E29: =IFERROR(IF(Calculations!H4="Week",'Workforce Results'!J39,IF(Calculations!H4="Month",'Workforce Results'!K39,'Workforce Results'!L39)),"") ->  | K29: =IFERROR(J38,"") -> 
Q30: =IF(Calculations!H4="Week",'Workforce Results'!Q39,IF(Calculations!H4="Month",'Workforce Results'!R39,'Workforce Results'!S39)) -> 
J33: Week | K33: Month | L33: Year
E34: Clinical time needed (hours) | J34: =IFERROR((Q8*Q10)/60,"") ->  | K34: =IFERROR((J34*52)/12,"") ->  | L34: =IFERROR(J34*52,"") ->  | Q34: =(T8*Q10)/60 ->  | R34: =(Q34*52)/12 ->  | S34: =Q34*52 -> 
E35: Non clinical time needed (hours) | J35: =S12 -> 3 | K35: =(J35*52)/12 -> 13 | L35: =J35*52 -> 156 | Q35: =S12 -> 3 | R35: =(Q35*52)/12 -> 13 | S35: =Q35*52 -> 156
E36: Total time needed (hours) | J36: =IFERROR(J34+J35,"") ->  | K36: =IFERROR(K34+K35,"") ->  | L36: =IFERROR(L34+L35,"") ->  | Q36: =Q34+Q35 ->  | R36: =R34+R35 ->  | S36: =S34+S35 -> 
E37: Standard Working Hours (annual leave adjusted) | J37: =L37/52 -> 31 | K37: =L37/12 -> 133 | L37: =42.64*37.5 -> 1,599 | Q37: =S37/52 -> 30.6 | R37: =S37/12 -> 132.5 | S37: =42.4*37.5 -> 1590.0
E38: FTE needed | J38: =IFERROR(J36/J37,"") ->  | K38: =IFERROR(K36/K37,"") ->  | L38: =IFERROR(L36/L37,"") ->  | Q38: =Q36/Q37 ->  | R38: =R36/R37 ->  | S38: =S36/S37 -> 
E39: Cost of FCP service (exc. prescribing) | J39: =IFERROR(J36*K21,"") ->  | K39: =IFERROR(K36*K21,"") ->  | L39: =IFERROR(L36*K21,"") ->  | Q39: =Q36*K21 ->  | R39: =R36*K21 ->  | S39: =S36*K21 -> 
C42: Source: Adapted from Chartered Society of Physiotherapy - Physiotherapy Cost Calculator

Sheet Tariffs
A2: MENU | B2: Menu | C2: Tariffs
B3: Home
B5: Instructions | D5: Description | G5: Suggested Tariff | H5: Own Tariff | I5: Tariff Selected | K5: Tariff in Model
D6: GP Appointment (9.22 minutes) | G6: £33.00 | K6: =IF(R6=0,G6,H6) -> £33.00 | R6: 0
B7: Data Sources
D8: First Contact Practitioner Cost - GP Referral | G8: ='Workforce Results'!K21 -> £52.95 | I8: Adjusted via Workforce Results | K8: =G8 -> £52.95 | R8: 0
B9: Glossary
D10: Acute MSK First Outpatient | G10: =Guidance_Datasource!J50 -> £151.00 | K10: =IF(R10=0,G10,H10) -> £151.00 | R10: 0
B11: Scenario Modeller
D12: Acute MSK Follow-up Outpatient | G12: =Guidance_Datasource!J51 -> £59.00 | K12: =IF(R12=0,G12,H12) -> £59.00 | R12: 0
B13: Model Details
D14: DA Diagnostics - X-Ray - GP referral | G14: =Guidance_Datasource!J57 -> £31.00 | K14: =IF(R14=0,G14,H14) -> £31.00 | R14: 0
B15: Financial Results
D16: DA Diagnostics - MRI - GP Referral | G16: =Guidance_Datasource!J53 -> £143.00 | K16: =IF(R16=0,G16,H16) -> £143.00 | R16: 0
B17: Workforce Results
D18: DA Diagnostics - Ultrasound - GP Referral | G18: =Guidance_Datasource!J55 -> £45.70 | K18: =IF(R18=0,G18,H18) -> £45.70 | R18: 0
B19: Tariffs
D20: DA Diagnostics - X-Ray - FCP Referral | G20: =Guidance_Datasource!J56 -> £31.00 | K20: =IF(R20=0,G20,H20) -> £31.00 | R20: 0
B21: Population Selector
D22: DA Diagnostics - MRI - FCP Referral | G22: =Guidance_Datasource!J52 -> £143.00 | K22: =IF(R22=0,G22,H22) -> £143.00 | R22: 0
D24: DA Diagnostics - Ultrasound - FCP Referral | G24: =Guidance_Datasource!J54 -> £45.70 | K24: =IF(R24=0,G24,H24) -> £45.70 | R24: 0
D26: Inpatient Admission | G26: =Guidance_Datasource!J60 -> £2,980.00 | K26: =IF(R26=0,G26,H26) -> £2,980.00 | R26: 0
D28: Physiotherapy (per episode) | G28: =Guidance_Datasource!J61 -> £75.94 | K28: =IF(R28=0,G28,H28) -> £75.94 | R28: 0
D31: Staff Costs
D33: Pay Year | I33: Wage Multiplier | L33: =VLOOKUP(Calculations!B86,Calculations!B81:D84,3,FALSE) -> 0% | R33: 1
H34: 134 | I34: 143 | J34: 245 | K34: 382 | L34: 5125
D35: =IF(R33=0,"NHS Pay scales - 2017/18","NHS Pay scales - 2018/19") -> NHS Pay scales - 2018/19 | E35: Bottom of Band | F35: Top of Band | G35: Average of Band | H35: National Insurance | I35: Pension Contributions | J35: Management overhead | K35: Non-staff overhead | L35: Capital overheads | M35: TOTAL COST | N35: Available hours (per year) | O35: Unit cost (per hour)
D36: Rate | H36: =H34/1000 -> 13.4% | I36: =I34/1000 -> 14.3% | J36: =J34/1000 -> 24.5% | K36: =K34/1000 -> 38.2% | L36: =L34 -> £5,125
C37: 1 | D37: Band 5 | E37: =VLOOKUP(Calculations!$B$87&Tariffs!$D37,Calculations!$D$90:$H$121,4,FALSE) -> £22,128 | F37: =VLOOKUP(Calculations!$B$87&Tariffs!$D37,Calculations!$D$90:$H$121,5,FALSE) -> £28,746 | G37: =AVERAGE(E37:F37) -> £25,437 | H37: =$G37*$H$36 -> £3,409 | I37: =$G37*$I$36 -> £3,637 | J37: =$G37*$J$36 -> £6,232 | K37: =$G37*$K$36 -> £9,717 | L37: =$L$36 -> £5,125 | M37: =SUM(G37:K37) -> £48,432.05 | N37: 1,599 | O37: =M37/N37 -> £30.29
C38: 2 | D38: Band 6 | E38: =VLOOKUP(Calculations!$B$87&Tariffs!$D38,Calculations!$D$90:$H$121,4,FALSE) -> £26,565 | F38: =VLOOKUP(Calculations!$B$87&Tariffs!$D38,Calculations!$D$90:$H$121,5,FALSE) -> £35,577 | G38: =AVERAGE(E38:F38) -> £31,071 | H38: =$G38*$H$36 -> £4,164 | I38: £4,443 | J38: £7,612 | K38: £11,869 | L38: =$L$36 -> £5,125 | M38: £59,159.18 | N38: 1,599 | O38: =M38/N38 -> £37.00
C39: 3 | D39: Band 7 | E39: =VLOOKUP(Calculations!$B$87&Tariffs!$D39,Calculations!$D$90:$H$121,4,FALSE) -> £31,696 | F39: =VLOOKUP(Calculations!$B$87&Tariffs!$D39,Calculations!$D$90:$H$121,5,FALSE) -> £41,787 | G39: £36,742 | H39: £4,923 | I39: £5,254 | J39: £9,002 | K39: £14,035 | L39: £5,125 | M39: £69,955.82 | N39: 1,599 | O39: £43.75
C40: 4 | D40: Band 8a | E40: =VLOOKUP(Calculations!$B$87&Tariffs!$D40,Calculations!$D$90:$H$121,4,FALSE) -> £40,428 | F40: =VLOOKUP(Calculations!$B$87&Tariffs!$D40,Calculations!$D$90:$H$121,5,FALSE) -> £48,514 | G40: £44,471 | H40: £5,959 | I40: £6,359 | J40: £10,895 | K40: £16,988 | L40: £5,125 | M40: £84,672.78 | N40: 1,599 | O40: £52.95
C41: 5 | D41: Band 8b | E41: =VLOOKUP(Calculations!$B$87&Tariffs!$D41,Calculations!$D$90:$H$121,4,FALSE) -> £47,092 | F41: =VLOOKUP(Calculations!$B$87&Tariffs!$D41,Calculations!$D$90:$H$121,5,FALSE) -> £58,217 | G41: £52,655 | H41: £7,056 | I41: £7,530 | J41: £12,900 | K41: £20,114 | L41: £5,125 | M41: £100,254.17 | N41: 1,599 | O41: £62.70
C42: 6 | D42: Band 8c | E42: =VLOOKUP(Calculations!$B$87&Tariffs!$D42,Calculations!$D$90:$H$121,4,FALSE) -> £56,665 | F42: =VLOOKUP(Calculations!$B$87&Tariffs!$D42,Calculations!$D$90:$H$121,5,FALSE) -> £69,168 | G42: £62,917 | H42: £8,431 | I42: £8,997 | J42: £15,415 | K42: £24,034 | L42: £5,125 | M42: £119,793.02 | N42: 1,599 | O42: £74.92
C43: 7 | D43: Band 8d | E43: =VLOOKUP(Calculations!$B$87&Tariffs!$D43,Calculations!$D$90:$H$121,4,FALSE) -> £67,247 | F43: =VLOOKUP(Calculations!$B$87&Tariffs!$D43,Calculations!$D$90:$H$121,5,FALSE) -> £83,258 | G43: £75,253 | H43: £10,084 | I43: £10,761 | J43: £18,437 | K43: £28,746 | L43: £5,125 | M43: £143,280.76 | N43: 1,599 | O43: £89.61
C44: 8 | D44: Band 9 | E44: =VLOOKUP(Calculations!$B$87&Tariffs!$D44,Calculations!$D$90:$H$121,4,FALSE) -> £79,415 | F44: =VLOOKUP(Calculations!$B$87&Tariffs!$D44,Calculations!$D$90:$H$121,5,FALSE) -> £100,431 | G44: £89,923 | H44: £12,050 | I44: £12,859 | J44: £22,031 | K44: £34,351 | L44: £5,125 | M44: £171,213.39 | N44: 1,599 | O44: £107.08

Sheet Calculations (hidden)
B3: Model Calculations | E3: Week | F3: Month | G3: Year
B4: Results by Week, month or year | E4: FALSE | F4: FALSE | G4: TRUE | H4: =IF(E4=TRUE,"Week",IF(F4=TRUE,"Month","Year")) -> Year
B5: Rate of Adoption | G5: 5000% | H5: =G5/100 -> 50%
B6: Rate of MSK Appointments | G6: 2000% | H6: =G6/100 -> 20%
B7: GP Appointments per Week | H7: 72
B10: Model Results | F10: Output | G10: Measure | I10: DA Diag | J10: GP | L10: FCP
B11: Physio GP referral rate | F11: 420 | G11: =F11/10 -> 42.0 | I11: X Ray | J11: 136 | K11: =J11/10 -> 13.6 | L11: 73 | M11: =L11/10 -> 7.3
B12: Physio FCP referral rate | F12: 220 | G12: =F12/10 -> 22.0 | I12: MRI | J12: 10 | K12: 1.0 | L12: 9 | M12: 0.9
B13: Acute GP referral rate | F13: 31 | G13: 3.1 | I13: US | J13: 0 | K13: 0.0 | L13: 0 | M13: 0.0
B14: Acute FCP referral rate | F14: 14 | G14: 1.4
B15: Acute GP DNA rate | F15: 50 | G15: 5.0
B16: Acute FCP DNA rate | F16: 50 | G16: 5.0 | I16: OP | J16: GP | L16: FCP
B17: Inpatient conversion - GP referred | F17: 470 | G17: 47.0 | I17: FA | J17: 1,000 | K17: =J17/10 -> 100.0 | L17: 1,000 | M17: =L17/10 -> 100.0
B18: Inpatient conversion - FCP referred | F18: 800 | G18: 80.0 | I18: FUP | J18: 0 | K18: 0.0 | L18: 0 | M18: 0.0
B19: Physio GP DNA Rate | F19: 50 | G19: =F19/10 -> 5.0
B20: Physio FCP DNA Rate | F20: 50 | G20: 5.0
B21: FCP DNA | F21: 50 | G21: =F21/10 -> 5.0
B24: Financial Results comparison | F24: Original | G24: Comparison
B25: Rate of GP appointments per week per 1000 population | F25: =GP_Apt_rate -> 72 | G25: ='Financial Results'!AB7 -> 72
B26: Proportion of appointments which are MSK conditions | F26: =H6 -> 20% | G26: ='Financial Results'!AB8/100 -> 20%
B27: Rate of adoption of First Contact Physiotherapy | F27: =H5 -> 50% | G27: ='Financial Results'!AB9/100 -> 50%
B28: FCP DNA Rate | F28: =Model_FCPDNA -> 5.0 | G28: ='Financial Results'!AB10/10 -> 5.0
B29: Physiotherapy | D29: GP Referred | E29: Referral Rate | F29: =Model_PhysioGPRef -> 42.0 | G29: ='Financial Results'!AB11/10 -> 42.0
E30: DNA Rate | F30: =Model_Physio_GPDNA -> 5.0 | G30: ='Financial Results'!AB12/10 -> 5.0
D31: FCP Referred | E31: Referral Rate | F31: =Model_PhysioFCPRef -> 22.0 | G31: ='Financial Results'!AB13/10 -> 22.0
E32: DNA Rate | F32: =Model_Physio_FCPDNA -> 5.0 | G32: ='Financial Results'!AB14/10 -> 5.0
B33: Direct Access Diagnostics | D33: GP Referred | E33: X-ray | F33: =Model_DAGPXray -> 13.6 | G33: ='Financial Results'!AB15/10 -> 13.6
E34: MRI | F34: =Model_DAGPMRI -> 1.0 | G34: ='Financial Results'!AB16/10 -> 1.0
E35: Ultrasound | F35: =Model_DAGPUS -> 0.0 | G35: ='Financial Results'!AB17/10 -> 0.0
D36: FCP Referred | E36: X-ray | F36: =Model_DAFCPXray -> 7.3 | G36: ='Financial Results'!AB18/10 -> 7.3
E37: MRI | F37: =Model_DAFCPMRI -> 0.9 | G37: ='Financial Results'!AB19/10 -> 0.9
E38: Ultrasound | F38: =Model_DAFCPUS -> 0.0 | G38: ='Financial Results'!AB20/10 -> 0.0
B39: Outpatient | D39: GP Referred | E39: Referral Rate | F39: =Model_OPGPRef -> 3.1 | G39: ='Financial Results'!AB21/10 -> 3.1
E40: DNA Rate | F40: =Model_OPGPDNA -> 5.0 | G40: ='Financial Results'!AB22/10 -> 5.0
D41: FCP Referred | E41: Referral Rate | F41: =Model_OPFCPRef -> 1.4 | G41: ='Financial Results'!AB23/10 -> 1.4
E42: DNA Rate | F42: =Model_OPFCPDNA -> 5.0 | G42: ='Financial Results'!AB24/10 -> 5.0
B43: Inpatient | D43: GP Referred | E43: Conversion Rate | F43: =Model_IPGPConv -> 47.0 | G43: ='Financial Results'!AB25/10 -> 47.0
D44: FCP Referred | E44: Conversion Rate | F44: =Model_IPFCPConv -> 80.0 | G44: ='Financial Results'!AB26/10 -> 80.0
B46: COMPARISON | F46: Activity | G46: Finance | I46: DA Diag | J46: GP | L46: FCP
B47: GP appointments | F47: =IF(Calculations!H4="Week",((Population/1000)*G25),IF(Calculations!H4="Month",((((Population/1000)*G25)*52)/12),(((Population/1000)*G25)*52))) ->  | I47: X Ray | J47: =($F$49*G33)/100 ->  | K47: =J47*Tariff_XrayGP ->  | L47: =($F$50*G36)/100 ->  | M47: =L47*Tariff_XrayFCP -> 
B48: MSK GP appointments | F48: =(F47/100)*(G26*100) ->  | G48: =F48*Tariff_GP ->  | I48: MRI | J48: =($F$49*G34)/100 ->  | K48: =J48*Tariff_MRIGP ->  | L48: =($F$50*G37)/100 ->  | M48: =L48*Tariff_MRIFCP -> 
B49: GP MSK | F49: =F48*(1-G27) ->  | G49: =F49*Tariff_GP ->  | I49: US | K49: =J49*Tariff_USGP ->  | M49: =L49*Tariff_USFCP -> 
B50: FCP MSK | F50: =(F48/100)*(G27*100)-((F48*G27)/100)*G28 ->  | G50: ='Workforce Results'!Q30 ->  | I50: Total | J50: =SUM(J47:J49) ->  | K50: =SUM(K47:K49) ->  | L50: =SUM(L47:L49) ->  | M50: =SUM(M47:M49) -> 
B51: GP Physio | F51: =((F49/100)*G29)-((((F49/100)*G29)/100)*G30) ->  | G51: =F51*Tariff_Physio -> 
B52: FCP Physio | F52: =((F50/100)*G31)-((((F50/100)*G31)/100)*G32) ->  | G52: =F52*Tariff_Physio ->  | I52: OP | J52: GP | L52: FCP
B53: GP DA Diag | F53: =J50 ->  | G53: =K50 ->  | I53: FA | J53: =($F$55*Model_OPGPFA)/100 ->  | K53: =J53*Tariff_FA ->  | L53: =(F56*Model_OPFCPFA)/100 ->  | M53: =L53*Tariff_FA -> 
B54: FCP DA Diag | F54: =L50 ->  | G54: =M50 ->  | I54: FUP | J54: =($F$55*Model_OPGPFUP)/100 ->  | K54: =J54*Tariff_FUP ->  | L54: =(F56*Model_OPFCPFUP)/100 ->  | M54: =L54*Tariff_FUP -> 
B55: GP OP | F55: =((F49/100)*G39)-((((F49/100)*G39)/100)*G40) ->  | G55: =SUM(K53:K54) -> 
B56: FCP OP | F56: =((F50/100)*G41)-((((F50/100)*G41)/100)*G42) ->  | G56: =SUM(M53:M54) -> 
B57: GP IP | F57: =(F55/100)*G43 ->  | G57: =F57*Tariff_IP -> 
B58: FCP IP | F58: =(F56/100)*G44 ->  | G58: =F58*Tariff_IP -> 
B60: NO FCP | F60: Activity | G60: Finance | I60: DA Diag | J60: GP
B61: GP appointments | F61: ='Model Details'!I11 ->  | I61: X Ray | J61: =($F$63*Model_DAGPXray)/100 ->  | K61: =J61*Tariff_XrayGP -> 
B62: MSK GP appointments | F62: ='Model Details'!I19 ->  | G62: =F62*Tariff_GP ->  | I62: MRI | J62: =($F$63*Model_DAGPMRI)/100 ->  | K62: =J62*Tariff_MRIGP -> 
B63: GP MSK | F63: =F62 ->  | G63: =F63*Tariff_GP ->  | I63: US | J63: =($F$63*Model_DAGPUS)/100 ->  | K63: =J63*Tariff_USGP -> 
B64: FCP MSK | F64: 0 | G64: ='Workforce Results'!Q41 -> £0 | I64: Total | J64: =SUM(J61:J63) ->  | K64: =SUM(K61:K63) -> 
B65: GP Physio | F65: =((F63/100)*F29)-((((F63/100)*F29)/100)*F30) ->  | G65: =F65*Tariff_Physio -> 
B66: FCP Physio | F66: 0 | G66: =F66*Tariff_IP -> £0 | I66: OP | J66: GP
B67: GP DA Diag | F67: =J64 ->  | G67: =K64 ->  | I67: FA | J67: =($F$69*Model_OPGPFA)/100 ->  | K67: =J67*Tariff_FA -> 
B68: FCP DA Diag | F68: 0 | G68: =SUM(M67:M68) -> £0 | I68: FUP | J68: =($F$69*Model_OPGPFUP)/100 ->  | K68: =J68*Tariff_FUP -> 
B69: GP OP | F69: =((F63/100)*F39)-((((F63/100)*F39)/100)*F40) ->  | G69: =SUM(K67:K68) -> 
B70: FCP OP | F70: 0 | G70: =SUM(M69:M70) -> £0
B71: GP IP | F71: =(F69/100)*F43 ->  | G71: =F71*Tariff_IP -> 
B72: FCP IP | F72: 0 | G72: =F72*Tariff_IP -> £0
B74: Wage Calculations
B76: 2017/18
B77: 2018/19
B78: 2019/20
B79: 2020/21
B81: Inner London | D81: 20%
B82: Outer London | D82: 15%
B83: Fringe | D83: 5%
B84: No London Weighting | D84: 0%
B86: No London Weighting
B87: 2017/18
B89: Year | C89: Band | D89: Code | E89: Bottom | F89: Top | G89: With Wage Multipler - Bottom | H89: With Wage Multipler - Top
B90: 2017/18 | C90: Band 5 | D90: =B90&C90 -> 2017/18Band 5 | E90: £22,128 | F90: £28,746 | G90: =(E90*Tariffs!$L$33)+Calculations!E90 -> £22,128 | H90: =(F90*Tariffs!$L$33)+Calculations!F90 -> £28,746
B91: 2017/18 | C91: Band 6 | D91: =B91&C91 -> 2017/18Band 6 | E91: £26,565 | F91: £35,577 | G91: =(E91*Tariffs!$L$33)+Calculations!E91 -> £26,565 | H91: =(F91*Tariffs!$L$33)+Calculations!F91 -> £35,577
B92: 2017/18 | C92: Band 7 | D92: 2017/18Band 7 | E92: £31,696 | F92: £41,787 | G92: =(E92*Tariffs!$L$33)+Calculations!E92 -> £31,696 | H92: =(F92*Tariffs!$L$33)+Calculations!F92 -> £41,787
B93: 2017/18 | C93: Band 8a | D93: 2017/18Band 8a | E93: £40,428 | F93: £48,514 | G93: =(E93*Tariffs!$L$33)+Calculations!E93 -> £40,428 | H93: =(F93*Tariffs!$L$33)+Calculations!F93 -> £48,514
B94: 2017/18 | C94: Band 8b | D94: 2017/18Band 8b | E94: £47,092 | F94: £58,217 | G94: =(E94*Tariffs!$L$33)+Calculations!E94 -> £47,092 | H94: =(F94*Tariffs!$L$33)+Calculations!F94 -> £58,217
B95: 2017/18 | C95: Band 8c | D95: 2017/18Band 8c | E95: £56,665 | F95: £69,168 | G95: =(E95*Tariffs!$L$33)+Calculations!E95 -> £56,665 | H95: =(F95*Tariffs!$L$33)+Calculations!F95 -> £69,168
B96: 2017/18 | C96: Band 8d | D96: 2017/18Band 8d | E96: £67,247 | F96: £83,258 | G96: =(E96*Tariffs!$L$33)+Calculations!E96 -> £67,247 | H96: =(F96*Tariffs!$L$33)+Calculations!F96 -> £83,258
B97: 2017/18 | C97: Band 9 | D97: 2017/18Band 9 | E97: £79,415 | F97: £100,431 | G97: =(E97*Tariffs!$L$33)+Calculations!E97 -> £79,415 | H97: =(F97*Tariffs!$L$33)+Calculations!F97 -> £100,431
B98: 2018/19 | C98: Band 5 | D98: 2018/19Band 5 | E98: £23,023 | F98: £29,608 | G98: =(E98*Tariffs!$L$33)+Calculations!E98 -> £23,023 | H98: =(F98*Tariffs!$L$33)+Calculations!F98 -> £29,608
B99: 2018/19 | C99: Band 6 | D99: 2018/19Band 6 | E99: £28,050 | F99: £36,644 | G99: =(E99*Tariffs!$L$33)+Calculations!E99 -> £28,050 | H99: =(F99*Tariffs!$L$33)+Calculations!F99 -> £36,644
B100: 2018/19 | C100: Band 7 | D100: 2018/19Band 7 | E100: £33,222 | F100: £43,041 | G100: =(E100*Tariffs!$L$33)+Calculations!E100 -> £33,222 | H100: =(F100*Tariffs!$L$33)+Calculations!F100 -> £43,041
B101: 2018/19 | C101: Band 8a | D101: 2018/19Band 8a | E101: £42,414 | F101: £49,969 | G101: =(E101*Tariffs!$L$33)+Calculations!E101 -> £42,414 | H101: =(F101*Tariffs!$L$33)+Calculations!F101 -> £49,969
B102: 2018/19 | C102: Band 8b | D102: 2018/19Band 8b | E102: £49,242 | F102: £59,964 | G102: =(E102*Tariffs!$L$33)+Calculations!E102 -> £49,242 | H102: =(F102*Tariffs!$L$33)+Calculations!F102 -> £59,964
B103: 2018/19 | C103: Band 8c | D103: 2018/19Band 8c | E103: £59,090 | F103: £71,243 | G103: =(E103*Tariffs!$L$33)+Calculations!E103 -> £59,090 | H103: =(F103*Tariffs!$L$33)+Calculations!F103 -> £71,243
B104: 2018/19 | C104: Band 8d | D104: 2018/19Band 8d | E104: £70,206 | F104: £85,333 | G104: =(E104*Tariffs!$L$33)+Calculations!E104 -> £70,206 | H104: =(F104*Tariffs!$L$33)+Calculations!F104 -> £85,333
B105: 2018/19 | C105: Band 9 | D105: 2018/19Band 9 | E105: £84,507 | F105: £102,506 | G105: =(E105*Tariffs!$L$33)+Calculations!E105 -> £84,507 | H105: =(F105*Tariffs!$L$33)+Calculations!F105 -> £102,506
B106: 2019/20 | C106: Band 5 | D106: 2019/20Band 5 | E106: £24,214 | F106: £30,112 | G106: =(E106*Tariffs!$L$33)+Calculations!E106 -> £24,214 | H106: =(F106*Tariffs!$L$33)+Calculations!F106 -> £30,112
B107: 2019/20 | C107: Band 6 | D107: 2019/20Band 6 | E107: £30,401 | F107: £37,267 | G107: =(E107*Tariffs!$L$33)+Calculations!E107 -> £30,401 | H107: =(F107*Tariffs!$L$33)+Calculations!F107 -> £37,267
B108: 2019/20 | C108: Band 7 | D108: 2019/20Band 7 | E108: £37,570 | F108: £43,772 | G108: =(E108*Tariffs!$L$33)+Calculations!E108 -> £37,570 | H108: =(F108*Tariffs!$L$33)+Calculations!F108 -> £43,772
B109: 2019/20 | C109: Band 8a | D109: 2019/20Band 8a | E109: £44,606 | F109: £50,819 | G109: =(E109*Tariffs!$L$33)+Calculations!E109 -> £44,606 | H109: =(F109*Tariffs!$L$33)+Calculations!F109 -> £50,819
B110: 2019/20 | C110: Band 8b | D110: 2019/20Band 8b | E110: £52,306 | F110: £60,983 | G110: =(E110*Tariffs!$L$33)+Calculations!E110 -> £52,306 | H110: =(F110*Tariffs!$L$33)+Calculations!F110 -> £60,983
B111: 2019/20 | C111: Band 8c | D111: 2019/20Band 8c | E111: £61,777 | F111: £72,597 | G111: =(E111*Tariffs!$L$33)+Calculations!E111 -> £61,777 | H111: =(F111*Tariffs!$L$33)+Calculations!F111 -> £72,597
B112: 2019/20 | C112: Band 8d | D112: 2019/20Band 8d | E112: £73,936 | F112: £86,687 | G112: =(E112*Tariffs!$L$33)+Calculations!E112 -> £73,936 | H112: =(F112*Tariffs!$L$33)+Calculations!F112 -> £86,687
B113: 2019/20 | C113: Band 9 | D113: 2019/20Band 9 | E113: £89,537 | F113: £103,860 | G113: =(E113*Tariffs!$L$33)+Calculations!E113 -> £89,537 | H113: =(F113*Tariffs!$L$33)+Calculations!F113 -> £103,860
B114: 2020/21 | C114: Band 5 | D114: 2020/21Band 5 | E114: £26,970 | F114: £30,615 | G114: =(E114*Tariffs!$L$33)+Calculations!E114 -> £26,970 | H114: =(F114*Tariffs!$L$33)+Calculations!F114 -> £30,615
B115: 2020/21 | C115: Band 6 | D115: 2020/21Band 6 | E115: £33,176 | F115: £37,890 | G115: =(E115*Tariffs!$L$33)+Calculations!E115 -> £33,176 | H115: =(F115*Tariffs!$L$33)+Calculations!F115 -> £37,890
B116: 2020/21 | C116: Band 7 | D116: 2020/21Band 7 | E116: £40,894 | F116: £44,503 | G116: =(E116*Tariffs!$L$33)+Calculations!E116 -> £40,894 | H116: =(F116*Tariffs!$L$33)+Calculations!F116 -> £44,503
B117: 2020/21 | C117: Band 8a | D117: 2020/21Band 8a | E117: £46,518 | F117: £51,668 | G117: =(E117*Tariffs!$L$33)+Calculations!E117 -> £46,518 | H117: =(F117*Tariffs!$L$33)+Calculations!F117 -> £51,668
B118: 2020/21 | C118: Band 8b | D118: 2020/21Band 8b | E118: £55,450 | F118: £62,001 | G118: =(E118*Tariffs!$L$33)+Calculations!E118 -> £55,450 | H118: =(F118*Tariffs!$L$33)+Calculations!F118 -> £62,001
B119: 2020/21 | C119: Band 8c | D119: 2020/21Band 8c | E119: £64,931 | F119: £73,664 | G119: =(E119*Tariffs!$L$33)+Calculations!E119 -> £64,931 | H119: =(F119*Tariffs!$L$33)+Calculations!F119 -> £73,664
B120: 2020/21 | C120: Band 8d | D120: 2020/21Band 8d | E120: £77,863 | F120: £87,854 | G120: =(E120*Tariffs!$L$33)+Calculations!E120 -> £77,863 | H120: =(F120*Tariffs!$L$33)+Calculations!F120 -> £87,854
B121: 2020/21 | C121: Band 9 | D121: 2020/21Band 9 | E121: £94,213 | F121: £104,927 | G121: =(E121*Tariffs!$L$33)+Calculations!E121 -> £94,213 | H121: =(F121*Tariffs!$L$33)+Calculations!F121 -> £104,927

Sheet Population Selector
A2: MENU | B2: Menu | C2: Selected Population
B3: Home
B5: Instructions
E6: Region | F6: ='Scenario Modeller'!F4 -> Select a Region | R6: 0
B7: Data Sources | E7: STP | F7: ='Scenario Modeller'!F5 -> Select a STP
E8: CCG | F8: ='Scenario Modeller'!F6 -> Select a CCG | R8: 0
B9: Glossary | E9: GP Practice | F9: ='Scenario Modeller'!F7 -> Select a Practice
R10: 0
B11: Scenario Modeller | H11: Population Jan 19 | J11: Insert Own Population | L11: Population Used in Model
E12: Total Population | F12: All | H12: =SUM(H14:H200) -> 0 | J12: =SUM(J14:J200) -> 0 | L12: =SUM(L14:L191) -> 0 | R12: 0
B13: Model Details
D14: =IF(F14="",0,1) -> 0 | E14: GP Practice | F14: =IFERROR(Population!X7,"") ->  | H14: =IFERROR(VLOOKUP($F$8&$F14,Population!S:V,4,FALSE),"") ->  | L14: =IF(J14=0,H14,J14) ->  | R14: 0
B15: Financial Results | D15: =IF(F15="",0,1) -> 0 | F15: =IFERROR(Population!X8,"") ->  | H15: =IFERROR(VLOOKUP($F$8&$F15,Population!S:V,4,FALSE),"") -> 
D16: 0 | F16: =IFERROR(Population!X9,"") ->  | H16: =IFERROR(VLOOKUP($F$8&$F16,Population!S:V,4,FALSE),"") ->  | R16: 0
B17: Workforce Results | D17: 0 | F17: =IFERROR(Population!X10,"") ->  | H17: =IFERROR(VLOOKUP($F$8&$F17,Population!S:V,4,FALSE),"") -> 
D18: 0 | F18: =IFERROR(Population!X11,"") ->  | H18: =IFERROR(VLOOKUP($F$8&$F18,Population!S:V,4,FALSE),"") ->  | R18: 0
B19: Tariffs | D19: 0 | F19: =IFERROR(Population!X12,"") ->  | H19: =IFERROR(VLOOKUP($F$8&$F19,Population!S:V,4,FALSE),"") -> 
D20: 0 | F20: =IFERROR(Population!X13,"") ->  | H20: =IFERROR(VLOOKUP($F$8&$F20,Population!S:V,4,FALSE),"") ->  | R20: 0
B21: Population Selector | D21: 0 | F21: =IFERROR(Population!X14,"") ->  | H21: =IFERROR(VLOOKUP($F$8&$F21,Population!S:V,4,FALSE),"") -> 
D22: 0 | F22: =IFERROR(Population!X15,"") ->  | H22: =IFERROR(VLOOKUP($F$8&$F22,Population!S:V,4,FALSE),"") ->  | R22: 0
D23: 0 | F23: =IFERROR(Population!X16,"") ->  | H23: =IFERROR(VLOOKUP($F$8&$F23,Population!S:V,4,FALSE),"") -> 
D24: 0 | F24: =IFERROR(Population!X17,"") ->  | H24: =IFERROR(VLOOKUP($F$8&$F24,Population!S:V,4,FALSE),"") ->  | R24: 0
D25: 0 | F25: =IFERROR(Population!X18,"") ->  | H25: =IFERROR(VLOOKUP($F$8&$F25,Population!S:V,4,FALSE),"") -> 
D26: 0 | F26: =IFERROR(Population!X19,"") ->  | H26: =IFERROR(VLOOKUP($F$8&$F26,Population!S:V,4,FALSE),"") ->  | R26: 0
D27: 0 | F27: =IFERROR(Population!X20,"") ->  | H27: =IFERROR(VLOOKUP($F$8&$F27,Population!S:V,4,FALSE),"") -> 
D28: 0 | F28: =IFERROR(Population!X21,"") ->  | H28: =IFERROR(VLOOKUP($F$8&$F28,Population!S:V,4,FALSE),"") ->  | R28: 0
D29: 0 | F29: =IFERROR(Population!X22,"") ->  | H29: =IFERROR(VLOOKUP($F$8&$F29,Population!S:V,4,FALSE),"") -> 
D30: 0 | F30: =IFERROR(Population!X23,"") ->  | H30: =IFERROR(VLOOKUP($F$8&$F30,Population!S:V,4,FALSE),"") -> 
D31: 0 | F31: =IFERROR(Population!X24,"") ->  | H31: =IFERROR(VLOOKUP($F$8&$F31,Population!S:V,4,FALSE),"") -> 
D32: 0 | F32: =IFERROR(Population!X25,"") ->  | H32: =IFERROR(VLOOKUP($F$8&$F32,Population!S:V,4,FALSE),"") -> 
D33: 0 | F33: =IFERROR(Population!X26,"") ->  | H33: =IFERROR(VLOOKUP($F$8&$F33,Population!S:V,4,FALSE),"") ->  | R33: 1
D34: 0 | F34: =IFERROR(Population!X27,"") ->  | H34: =IFERROR(VLOOKUP($F$8&$F34,Population!S:V,4,FALSE),"") -> 
D35: 0 | F35: =IFERROR(Population!X28,"") ->  | H35: =IFERROR(VLOOKUP($F$8&$F35,Population!S:V,4,FALSE),"") -> 
D36: 0 | F36: =IFERROR(Population!X29,"") ->  | H36: =IFERROR(VLOOKUP($F$8&$F36,Population!S:V,4,FALSE),"") -> 
C37: 1 | D37: 0 | F37: =IFERROR(Population!X30,"") ->  | H37: =IFERROR(VLOOKUP($F$8&$F37,Population!S:V,4,FALSE),"") -> 
C38: 2 | D38: 0 | F38: =IFERROR(Population!X31,"") ->  | H38: =IFERROR(VLOOKUP($F$8&$F38,Population!S:V,4,FALSE),"") -> 
C39: 3 | D39: 0 | F39: =IFERROR(Population!X32,"") ->  | H39: =IFERROR(VLOOKUP($F$8&$F39,Population!S:V,4,FALSE),"") -> 
C40: 4 | D40: 0 | F40: =IFERROR(Population!X33,"") ->  | H40: =IFERROR(VLOOKUP($F$8&$F40,Population!S:V,4,FALSE),"") -> 
C41: 5 | D41: 0 | F41: =IFERROR(Population!X34,"") ->  | H41: =IFERROR(VLOOKUP($F$8&$F41,Population!S:V,4,FALSE),"") -> 
C42: 6 | D42: 0 | F42: =IFERROR(Population!X35,"") ->  | H42: =IFERROR(VLOOKUP($F$8&$F42,Population!S:V,4,FALSE),"") -> 
C43: 7 | D43: 0 | F43: =IFERROR(Population!X36,"") ->  | H43: =IFERROR(VLOOKUP($F$8&$F43,Population!S:V,4,FALSE),"") ->  | L43: =IF(J43=0,H43,J43) -> 
C44: 8 | D44: 0 | F44: =IFERROR(Population!X37,"") ->  | H44: =IFERROR(VLOOKUP($F$8&$F44,Population!S:V,4,FALSE),"") -> 
D45: 0 | F45: =IFERROR(Population!X38,"") ->  | H45: =IFERROR(VLOOKUP($F$8&$F45,Population!S:V,4,FALSE),"") -> 
D46: 0 | F46: =IFERROR(Population!X39,"") ->  | H46: =IFERROR(VLOOKUP($F$8&$F46,Population!S:V,4,FALSE),"") ->  | L46: =IF(J46=0,H46,J46) -> 
D47: 0 | F47: =IFERROR(Population!X40,"") ->  | H47: =IFERROR(VLOOKUP($F$8&$F47,Population!S:V,4,FALSE),"") -> 
D48: 0 | F48: =IFERROR(Population!X41,"") ->  | H48: =IFERROR(VLOOKUP($F$8&$F48,Population!S:V,4,FALSE),"") -> 
D49: 0 | F49: =IFERROR(Population!X42,"") ->  | H49: =IFERROR(VLOOKUP($F$8&$F49,Population!S:V,4,FALSE),"") -> 
D50: 0 | F50: =IFERROR(Population!X43,"") ->  | H50: =IFERROR(VLOOKUP($F$8&$F50,Population!S:V,4,FALSE),"") -> 
D51: 0 | F51: =IFERROR(Population!X44,"") ->  | H51: =IFERROR(VLOOKUP($F$8&$F51,Population!S:V,4,FALSE),"") -> 
D52: 0 | F52: =IFERROR(Population!X45,"") ->  | H52: =IFERROR(VLOOKUP($F$8&$F52,Population!S:V,4,FALSE),"") -> 
D53: 0 | F53: =IFERROR(Population!X46,"") ->  | H53: =IFERROR(VLOOKUP($F$8&$F53,Population!S:V,4,FALSE),"") -> 
D54: 0 | F54: =IFERROR(Population!X47,"") ->  | H54: =IFERROR(VLOOKUP($F$8&$F54,Population!S:V,4,FALSE),"") -> 
D55: 0 | F55: =IFERROR(Population!X48,"") ->  | H55: =IFERROR(VLOOKUP($F$8&$F55,Population!S:V,4,FALSE),"") -> 
D56: 0 | F56: =IFERROR(Population!X49,"") ->  | H56: =IFERROR(VLOOKUP($F$8&$F56,Population!S:V,4,FALSE),"") -> 
D57: 0 | F57: =IFERROR(Population!X50,"") ->  | H57: =IFERROR(VLOOKUP($F$8&$F57,Population!S:V,4,FALSE),"") -> 
D58: 0 | F58: =IFERROR(Population!X51,"") ->  | H58: =IFERROR(VLOOKUP($F$8&$F58,Population!S:V,4,FALSE),"") -> 
D59: 0 | F59: =IFERROR(Population!X52,"") ->  | H59: =IFERROR(VLOOKUP($F$8&$F59,Population!S:V,4,FALSE),"") -> 
D60: 0 | F60: =IFERROR(Population!X53,"") ->  | H60: =IFERROR(VLOOKUP($F$8&$F60,Population!S:V,4,FALSE),"") -> 
D61: 0 | F61: =IFERROR(Population!X54,"") ->  | H61: =IFERROR(VLOOKUP($F$8&$F61,Population!S:V,4,FALSE),"") -> 
D62: 0 | F62: =IFERROR(Population!X55,"") ->  | H62: =IFERROR(VLOOKUP($F$8&$F62,Population!S:V,4,FALSE),"") -> 
D63: 0 | F63: =IFERROR(Population!X56,"") ->  | H63: =IFERROR(VLOOKUP($F$8&$F63,Population!S:V,4,FALSE),"") -> 
D64: 0 | F64: =IFERROR(Population!X57,"") ->  | H64: =IFERROR(VLOOKUP($F$8&$F64,Population!S:V,4,FALSE),"") -> 
D65: 0 | F65: =IFERROR(Population!X58,"") ->  | H65: =IFERROR(VLOOKUP($F$8&$F65,Population!S:V,4,FALSE),"") -> 
D66: 0 | F66: =IFERROR(Population!X59,"") ->  | H66: =IFERROR(VLOOKUP($F$8&$F66,Population!S:V,4,FALSE),"") -> 
D67: 0 | F67: =IFERROR(Population!X60,"") ->  | H67: =IFERROR(VLOOKUP($F$8&$F67,Population!S:V,4,FALSE),"") -> 
D68: 0 | F68: =IFERROR(Population!X61,"") ->  | H68: =IFERROR(VLOOKUP($F$8&$F68,Population!S:V,4,FALSE),"") -> 
D69: 0 | F69: =IFERROR(Population!X62,"") ->  | H69: =IFERROR(VLOOKUP($F$8&$F69,Population!S:V,4,FALSE),"") -> 
D70: 0 | F70: =IFERROR(Population!X63,"") ->  | H70: =IFERROR(VLOOKUP($F$8&$F70,Population!S:V,4,FALSE),"") -> 
D71: 0 | F71: =IFERROR(Population!X64,"") ->  | H71: =IFERROR(VLOOKUP($F$8&$F71,Population!S:V,4,FALSE),"") -> 
D72: 0 | F72: =IFERROR(Population!X65,"") ->  | H72: =IFERROR(VLOOKUP($F$8&$F72,Population!S:V,4,FALSE),"") -> 
D73: 0 | F73: =IFERROR(Population!X66,"") ->  | H73: =IFERROR(VLOOKUP($F$8&$F73,Population!S:V,4,FALSE),"") -> 
D74: 0 | F74: =IFERROR(Population!X67,"") ->  | H74: =IFERROR(VLOOKUP($F$8&$F74,Population!S:V,4,FALSE),"") -> 
D75: 0 | F75: =IFERROR(Population!X68,"") ->  | H75: =IFERROR(VLOOKUP($F$8&$F75,Population!S:V,4,FALSE),"") -> 
D76: 0 | F76: =IFERROR(Population!X69,"") ->  | H76: =IFERROR(VLOOKUP($F$8&$F76,Population!S:V,4,FALSE),"") -> 
D77: 0 | F77: =IFERROR(Population!X70,"") ->  | H77: =IFERROR(VLOOKUP($F$8&$F77,Population!S:V,4,FALSE),"") -> 
D78: 0 | F78: =IFERROR(Population!X71,"") ->  | H78: =IFERROR(VLOOKUP($F$8&$F78,Population!S:V,4,FALSE),"") -> 
D79: =IF(F79="",0,1) -> 0 | F79: =IFERROR(Population!X72,"") ->  | H79: =IFERROR(VLOOKUP($F$8&$F79,Population!S:V,4,FALSE),"") -> 
D80: 0 | F80: =IFERROR(Population!X73,"") ->  | H80: =IFERROR(VLOOKUP($F$8&$F80,Population!S:V,4,FALSE),"") -> 
D81: 0 | F81: =IFERROR(Population!X74,"") ->  | H81: =IFERROR(VLOOKUP($F$8&$F81,Population!S:V,4,FALSE),"") -> 
D82: 0 | F82: =IFERROR(Population!X75,"") ->  | H82: =IFERROR(VLOOKUP($F$8&$F82,Population!S:V,4,FALSE),"") -> 
D83: 0 | F83: =IFERROR(Population!X76,"") ->  | H83: =IFERROR(VLOOKUP($F$8&$F83,Population!S:V,4,FALSE),"") -> 
D84: 0 | F84: =IFERROR(Population!X77,"") ->  | H84: =IFERROR(VLOOKUP($F$8&$F84,Population!S:V,4,FALSE),"") -> 
D85: 0 | F85: =IFERROR(Population!X78,"") ->  | H85: =IFERROR(VLOOKUP($F$8&$F85,Population!S:V,4,FALSE),"") -> 
D86: 0 | F86: =IFERROR(Population!X79,"") ->  | H86: =IFERROR(VLOOKUP($F$8&$F86,Population!S:V,4,FALSE),"") -> 
D87: 0 | F87: =IFERROR(Population!X80,"") ->  | H87: =IFERROR(VLOOKUP($F$8&$F87,Population!S:V,4,FALSE),"") -> 
D88: 0 | F88: =IFERROR(Population!X81,"") ->  | H88: =IFERROR(VLOOKUP($F$8&$F88,Population!S:V,4,FALSE),"") -> 
D89: 0 | F89: =IFERROR(Population!X82,"") ->  | H89: =IFERROR(VLOOKUP($F$8&$F89,Population!S:V,4,FALSE),"") -> 
D90: 0 | F90: =IFERROR(Population!X83,"") ->  | H90: =IFERROR(VLOOKUP($F$8&$F90,Population!S:V,4,FALSE),"") -> 
D91: 0 | F91: =IFERROR(Population!X84,"") ->  | H91: =IFERROR(VLOOKUP($F$8&$F91,Population!S:V,4,FALSE),"") -> 
D92: 0 | F92: =IFERROR(Population!X85,"") ->  | H92: =IFERROR(VLOOKUP($F$8&$F92,Population!S:V,4,FALSE),"") -> 
D93: 0 | F93: =IFERROR(Population!X86,"") ->  | H93: =IFERROR(VLOOKUP($F$8&$F93,Population!S:V,4,FALSE),"") -> 
D94: 0 | F94: =IFERROR(Population!X87,"") ->  | H94: =IFERROR(VLOOKUP($F$8&$F94,Population!S:V,4,FALSE),"") -> 
D95: 0 | F95: =IFERROR(Population!X88,"") ->  | H95: =IFERROR(VLOOKUP($F$8&$F95,Population!S:V,4,FALSE),"") -> 
D96: 0 | F96: =IFERROR(Population!X89,"") ->  | H96: =IFERROR(VLOOKUP($F$8&$F96,Population!S:V,4,FALSE),"") -> 
D97: 0 | F97: =IFERROR(Population!X90,"") ->  | H97: =IFERROR(VLOOKUP($F$8&$F97,Population!S:V,4,FALSE),"") -> 
D98: 0 | F98: =IFERROR(Population!X91,"") ->  | H98: =IFERROR(VLOOKUP($F$8&$F98,Population!S:V,4,FALSE),"") -> 
D99: 0 | F99: =IFERROR(Population!X92,"") ->  | H99: =IFERROR(VLOOKUP($F$8&$F99,Population!S:V,4,FALSE),"") -> 
D100: 0 | F100: =IFERROR(Population!X93,"") ->  | H100: =IFERROR(VLOOKUP($F$8&$F100,Population!S:V,4,FALSE),"") -> 
D101: 0 | F101: =IFERROR(Population!X94,"") ->  | H101: =IFERROR(VLOOKUP($F$8&$F101,Population!S:V,4,FALSE),"") -> 
D102: 0 | F102: =IFERROR(Population!X95,"") ->  | H102: =IFERROR(VLOOKUP($F$8&$F102,Population!S:V,4,FALSE),"") -> 
D103: 0 | F103: =IFERROR(Population!X96,"") ->  | H103: =IFERROR(VLOOKUP($F$8&$F103,Population!S:V,4,FALSE),"") -> 
D104: 0 | F104: =IFERROR(Population!X97,"") ->  | H104: =IFERROR(VLOOKUP($F$8&$F104,Population!S:V,4,FALSE),"") -> 
D105: 0 | F105: =IFERROR(Population!X98,"") ->  | H105: =IFERROR(VLOOKUP($F$8&$F105,Population!S:V,4,FALSE),"") -> 
D106: 0 | F106: =IFERROR(Population!X99,"") ->  | H106: =IFERROR(VLOOKUP($F$8&$F106,Population!S:V,4,FALSE),"") -> 
D107: 0 | F107: =IFERROR(Population!X100,"") ->  | H107: =IFERROR(VLOOKUP($F$8&$F107,Population!S:V,4,FALSE),"") -> 
D108: 0 | F108: =IFERROR(Population!X101,"") ->  | H108: =IFERROR(VLOOKUP($F$8&$F108,Population!S:V,4,FALSE),"") -> 
D109: 0 | F109: =IFERROR(Population!X102,"") ->  | H109: =IFERROR(VLOOKUP($F$8&$F109,Population!S:V,4,FALSE),"") -> 
D110: 0 | F110: =IFERROR(Population!X103,"") ->  | H110: =IFERROR(VLOOKUP($F$8&$F110,Population!S:V,4,FALSE),"") ->  | L110: =IF(J110=0,H110,J110) -> 
D111: 0 | F111: =IFERROR(Population!X104,"") ->  | H111: =IFERROR(VLOOKUP($F$8&$F111,Population!S:V,4,FALSE),"") -> 
D112: 0 | F112: =IFERROR(Population!X105,"") ->  | H112: =IFERROR(VLOOKUP($F$8&$F112,Population!S:V,4,FALSE),"") -> 
D113: 0 | F113: =IFERROR(Population!X106,"") ->  | H113: =IFERROR(VLOOKUP($F$8&$F113,Population!S:V,4,FALSE),"") -> 
D114: 0 | F114: =IFERROR(Population!X107,"") ->  | H114: =IFERROR(VLOOKUP($F$8&$F114,Population!S:V,4,FALSE),"") -> 
D115: 0 | F115: =IFERROR(Population!X108,"") ->  | H115: =IFERROR(VLOOKUP($F$8&$F115,Population!S:V,4,FALSE),"") -> 
D116: 0 | F116: =IFERROR(Population!X109,"") ->  | H116: =IFERROR(VLOOKUP($F$8&$F116,Population!S:V,4,FALSE),"") -> 
D117: 0 | F117: =IFERROR(Population!X110,"") ->  | H117: =IFERROR(VLOOKUP($F$8&$F117,Population!S:V,4,FALSE),"") -> 
D118: 0 | F118: =IFERROR(Population!X111,"") ->  | H118: =IFERROR(VLOOKUP($F$8&$F118,Population!S:V,4,FALSE),"") -> 
D119: 0 | F119: =IFERROR(Population!X112,"") ->  | H119: =IFERROR(VLOOKUP($F$8&$F119,Population!S:V,4,FALSE),"") -> 
D120: 0 | F120: =IFERROR(Population!X113,"") ->  | H120: =IFERROR(VLOOKUP($F$8&$F120,Population!S:V,4,FALSE),"") -> 
D121: 0 | F121: =IFERROR(Population!X114,"") ->  | H121: =IFERROR(VLOOKUP($F$8&$F121,Population!S:V,4,FALSE),"") -> 
D122: 0 | F122: =IFERROR(Population!X115,"") ->  | H122: =IFERROR(VLOOKUP($F$8&$F122,Population!S:V,4,FALSE),"") -> 
D123: 0 | F123: =IFERROR(Population!X116,"") ->  | H123: =IFERROR(VLOOKUP($F$8&$F123,Population!S:V,4,FALSE),"") -> 
D124: 0 | F124: =IFERROR(Population!X117,"") ->  | H124: =IFERROR(VLOOKUP($F$8&$F124,Population!S:V,4,FALSE),"") -> 
D125: 0 | F125: =IFERROR(Population!X118,"") ->  | H125: =IFERROR(VLOOKUP($F$8&$F125,Population!S:V,4,FALSE),"") -> 
D126: 0 | F126: =IFERROR(Population!X119,"") ->  | H126: =IFERROR(VLOOKUP($F$8&$F126,Population!S:V,4,FALSE),"") -> 
D127: 0 | F127: =IFERROR(Population!X120,"") ->  | H127: =IFERROR(VLOOKUP($F$8&$F127,Population!S:V,4,FALSE),"") -> 
D128: 0 | F128: =IFERROR(Population!X121,"") ->  | H128: =IFERROR(VLOOKUP($F$8&$F128,Population!S:V,4,FALSE),"") -> 
D129: 0 | F129: =IFERROR(Population!X122,"") ->  | H129: =IFERROR(VLOOKUP($F$8&$F129,Population!S:V,4,FALSE),"") -> 
D130: 0 | F130: =IFERROR(Population!X123,"") ->  | H130: =IFERROR(VLOOKUP($F$8&$F130,Population!S:V,4,FALSE),"") -> 
D131: 0 | F131: =IFERROR(Population!X124,"") ->  | H131: =IFERROR(VLOOKUP($F$8&$F131,Population!S:V,4,FALSE),"") -> 
D132: 0 | F132: =IFERROR(Population!X125,"") ->  | H132: =IFERROR(VLOOKUP($F$8&$F132,Population!S:V,4,FALSE),"") -> 
D133: 0 | F133: =IFERROR(Population!X126,"") ->  | H133: =IFERROR(VLOOKUP($F$8&$F133,Population!S:V,4,FALSE),"") -> 
D134: 0 | F134: =IFERROR(Population!X127,"") ->  | H134: =IFERROR(VLOOKUP($F$8&$F134,Population!S:V,4,FALSE),"") -> 
D135: 0 | F135: =IFERROR(Population!X128,"") ->  | H135: =IFERROR(VLOOKUP($F$8&$F135,Population!S:V,4,FALSE),"") -> 
D136: 0 | F136: =IFERROR(Population!X129,"") ->  | H136: =IFERROR(VLOOKUP($F$8&$F136,Population!S:V,4,FALSE),"") -> 
D137: 0 | F137: =IFERROR(Population!X130,"") ->  | H137: =IFERROR(VLOOKUP($F$8&$F137,Population!S:V,4,FALSE),"") -> 
D138: 0 | F138: =IFERROR(Population!X131,"") ->  | H138: =IFERROR(VLOOKUP($F$8&$F138,Population!S:V,4,FALSE),"") -> 
D139: 0 | F139: =IFERROR(Population!X132,"") ->  | H139: =IFERROR(VLOOKUP($F$8&$F139,Population!S:V,4,FALSE),"") -> 
D140: 0 | F140: =IFERROR(Population!X133,"") ->  | H140: =IFERROR(VLOOKUP($F$8&$F140,Population!S:V,4,FALSE),"") -> 
D141: 0 | F141: =IFERROR(Population!X134,"") ->  | H141: =IFERROR(VLOOKUP($F$8&$F141,Population!S:V,4,FALSE),"") -> 
D142: 0 | F142: =IFERROR(Population!X135,"") ->  | H142: =IFERROR(VLOOKUP($F$8&$F142,Population!S:V,4,FALSE),"") -> 
D143: =IF(F143="",0,1) -> 0 | F143: =IFERROR(Population!X136,"") ->  | H143: =IFERROR(VLOOKUP($F$8&$F143,Population!S:V,4,FALSE),"") -> 
D144: 0 | F144: =IFERROR(Population!X137,"") ->  | H144: =IFERROR(VLOOKUP($F$8&$F144,Population!S:V,4,FALSE),"") -> 
D145: 0 | F145: =IFERROR(Population!X138,"") ->  | H145: =IFERROR(VLOOKUP($F$8&$F145,Population!S:V,4,FALSE),"") -> 
D146: 0 | F146: =IFERROR(Population!X139,"") ->  | H146: =IFERROR(VLOOKUP($F$8&$F146,Population!S:V,4,FALSE),"") -> 
D147: 0 | F147: =IFERROR(Population!X140,"") ->  | H147: =IFERROR(VLOOKUP($F$8&$F147,Population!S:V,4,FALSE),"") -> 
D148: 0 | F148: =IFERROR(Population!X141,"") ->  | H148: =IFERROR(VLOOKUP($F$8&$F148,Population!S:V,4,FALSE),"") -> 
D149: 0 | F149: =IFERROR(Population!X142,"") ->  | H149: =IFERROR(VLOOKUP($F$8&$F149,Population!S:V,4,FALSE),"") -> 
D150: 0 | F150: =IFERROR(Population!X143,"") ->  | H150: =IFERROR(VLOOKUP($F$8&$F150,Population!S:V,4,FALSE),"") -> 
D151: 0 | F151: =IFERROR(Population!X144,"") ->  | H151: =IFERROR(VLOOKUP($F$8&$F151,Population!S:V,4,FALSE),"") -> 
D152: 0 | F152: =IFERROR(Population!X145,"") ->  | H152: =IFERROR(VLOOKUP($F$8&$F152,Population!S:V,4,FALSE),"") -> 
D153: 0 | F153: =IFERROR(Population!X146,"") ->  | H153: =IFERROR(VLOOKUP($F$8&$F153,Population!S:V,4,FALSE),"") -> 
D154: 0 | F154: =IFERROR(Population!X147,"") ->  | H154: =IFERROR(VLOOKUP($F$8&$F154,Population!S:V,4,FALSE),"") -> 
D155: 0 | F155: =IFERROR(Population!X148,"") ->  | H155: =IFERROR(VLOOKUP($F$8&$F155,Population!S:V,4,FALSE),"") -> 
D156: 0 | F156: =IFERROR(Population!X149,"") ->  | H156: =IFERROR(VLOOKUP($F$8&$F156,Population!S:V,4,FALSE),"") -> 
D157: 0 | F157: =IFERROR(Population!X150,"") ->  | H157: =IFERROR(VLOOKUP($F$8&$F157,Population!S:V,4,FALSE),"") -> 
D158: 0 | F158: =IFERROR(Population!X151,"") ->  | H158: =IFERROR(VLOOKUP($F$8&$F158,Population!S:V,4,FALSE),"") -> 
D159: 0 | F159: =IFERROR(Population!X152,"") ->  | H159: =IFERROR(VLOOKUP($F$8&$F159,Population!S:V,4,FALSE),"") -> 
D160: 0 | F160: =IFERROR(Population!X153,"") ->  | H160: =IFERROR(VLOOKUP($F$8&$F160,Population!S:V,4,FALSE),"") -> 
D161: 0 | F161: =IFERROR(Population!X154,"") ->  | H161: =IFERROR(VLOOKUP($F$8&$F161,Population!S:V,4,FALSE),"") -> 
D162: 0 | F162: =IFERROR(Population!X155,"") ->  | H162: =IFERROR(VLOOKUP($F$8&$F162,Population!S:V,4,FALSE),"") -> 
D163: 0 | F163: =IFERROR(Population!X156,"") ->  | H163: =IFERROR(VLOOKUP($F$8&$F163,Population!S:V,4,FALSE),"") -> 
D164: 0 | F164: =IFERROR(Population!X157,"") ->  | H164: =IFERROR(VLOOKUP($F$8&$F164,Population!S:V,4,FALSE),"") -> 
D165: 0 | F165: =IFERROR(Population!X158,"") ->  | H165: =IFERROR(VLOOKUP($F$8&$F165,Population!S:V,4,FALSE),"") -> 
D166: 0 | F166: =IFERROR(Population!X159,"") ->  | H166: =IFERROR(VLOOKUP($F$8&$F166,Population!S:V,4,FALSE),"") -> 
D167: 0 | F167: =IFERROR(Population!X160,"") ->  | H167: =IFERROR(VLOOKUP($F$8&$F167,Population!S:V,4,FALSE),"") -> 
D168: 0 | F168: =IFERROR(Population!X161,"") ->  | H168: =IFERROR(VLOOKUP($F$8&$F168,Population!S:V,4,FALSE),"") -> 
D169: 0 | F169: =IFERROR(Population!X162,"") ->  | H169: =IFERROR(VLOOKUP($F$8&$F169,Population!S:V,4,FALSE),"") -> 
D170: 0 | F170: =IFERROR(Population!X163,"") ->  | H170: =IFERROR(VLOOKUP($F$8&$F170,Population!S:V,4,FALSE),"") -> 
D171: 0 | F171: =IFERROR(Population!X164,"") ->  | H171: =IFERROR(VLOOKUP($F$8&$F171,Population!S:V,4,FALSE),"") -> 
D172: 0 | F172: =IFERROR(Population!X165,"") ->  | H172: =IFERROR(VLOOKUP($F$8&$F172,Population!S:V,4,FALSE),"") -> 
D173: 0 | F173: =IFERROR(Population!X166,"") ->  | H173: =IFERROR(VLOOKUP($F$8&$F173,Population!S:V,4,FALSE),"") -> 
D174: 0 | F174: =IFERROR(Population!X167,"") ->  | H174: =IFERROR(VLOOKUP($F$8&$F174,Population!S:V,4,FALSE),"") ->  | L174: =IF(J174=0,H174,J174) -> 
D175: 0 | F175: =IFERROR(Population!X168,"") ->  | H175: =IFERROR(VLOOKUP($F$8&$F175,Population!S:V,4,FALSE),"") -> 
D176: 0 | F176: =IFERROR(Population!X169,"") ->  | H176: =IFERROR(VLOOKUP($F$8&$F176,Population!S:V,4,FALSE),"") -> 
D177: 0 | F177: =IFERROR(Population!X170,"") ->  | H177: =IFERROR(VLOOKUP($F$8&$F177,Population!S:V,4,FALSE),"") -> 
D178: 0 | F178: =IFERROR(Population!X171,"") ->  | H178: =IFERROR(VLOOKUP($F$8&$F178,Population!S:V,4,FALSE),"") -> 
D179: 0 | F179: =IFERROR(Population!X172,"") ->  | H179: =IFERROR(VLOOKUP($F$8&$F179,Population!S:V,4,FALSE),"") -> 
D180: 0 | F180: =IFERROR(Population!X173,"") ->  | H180: =IFERROR(VLOOKUP($F$8&$F180,Population!S:V,4,FALSE),"") -> 
D181: 0 | F181: =IFERROR(Population!X174,"") ->  | H181: =IFERROR(VLOOKUP($F$8&$F181,Population!S:V,4,FALSE),"") -> 
D182: 0 | F182: =IFERROR(Population!X175,"") ->  | H182: =IFERROR(VLOOKUP($F$8&$F182,Population!S:V,4,FALSE),"") -> 
D183: 0 | F183: =IFERROR(Population!X176,"") ->  | H183: =IFERROR(VLOOKUP($F$8&$F183,Population!S:V,4,FALSE),"") -> 
D184: 0 | F184: =IFERROR(Population!X177,"") ->  | H184: =IFERROR(VLOOKUP($F$8&$F184,Population!S:V,4,FALSE),"") -> 
D185: 0 | F185: =IFERROR(Population!X178,"") ->  | H185: =IFERROR(VLOOKUP($F$8&$F185,Population!S:V,4,FALSE),"") -> 
D186: 0 | F186: =IFERROR(Population!X179,"") ->  | H186: =IFERROR(VLOOKUP($F$8&$F186,Population!S:V,4,FALSE),"") -> 
D187: 0 | F187: =IFERROR(Population!X180,"") ->  | H187: =IFERROR(VLOOKUP($F$8&$F187,Population!S:V,4,FALSE),"") -> 
D188: 0 | F188: =IFERROR(Population!X181,"") ->  | H188: =IFERROR(VLOOKUP($F$8&$F188,Population!S:V,4,FALSE),"") -> 
D189: 0 | F189: =IFERROR(Population!X182,"") ->  | H189: =IFERROR(VLOOKUP($F$8&$F189,Population!S:V,4,FALSE),"") -> 
D190: 0 | F190: =IFERROR(Population!X183,"") ->  | H190: =IFERROR(VLOOKUP($F$8&$F190,Population!S:V,4,FALSE),"") -> 
F191: =IFERROR(Population!X184,"") ->  | H191: =IFERROR(VLOOKUP($F$8&$F191,Population!S:V,4,FALSE),"") -> 

Sheet Population
B1: Code | C1: Region | D1: STP | E1: CCG Code | F1: CCG | G1: GP Practice Code | H1: Practice | I1: Pop | L1: Region | N1: Region | O1: STP | Q1: STP | R1: CCG | T1: CCG | U1: Practice | X1: Selected Population | AA1: =IF(X3="All",VLOOKUP(X2,AA4:AB7,2,FALSE),IF(X4="All",VLOOKUP(X3,AD:AE,2,FALSE),IF(X5="All",VLOOKUP(X4,AG:AH,2,FALSE),1))) -> 1
A2: =F2&H2 -> NHS Darlington CCGWHINFIELD MEDICAL PRACTICE | B2: =D2&F2&H2 -> Durham, Darlington, Teesside, Hambleton, Richmondshire and WhitbyNHS Darlington CCGWHINFIELD MEDICAL PRACTICE | C2: North | D2: Durham, Darlington, Teesside, Hambleton, Richmondshire and Whitby | E2: 00C | F2: NHS Darlington CCG | G2: A83005 | H2: WHINFIELD MEDICAL PRACTICE | I2: 11,923 | L2: Select a Region | N2: Select a Region | O2: Select a STP | Q2: Select a STP | R2: Select a CCG | T2: Select a CCG | U2: Select a Practice | V2: Population | W2: Check | X2: ='Scenario Modeller'!F4 -> Select a Region
A3: =F3&H3 -> NHS Darlington CCGORCHARD COURT SURGERY | B3: Durham, Darlington, Teesside, Hambleton, Richmondshire and WhitbyNHS Darlington CCGORCHARD COURT SURGERY | C3: North | D3: Durham, Darlington, Teesside, Hambleton, Richmondshire and Whitby | E3: 00C | F3: NHS Darlington CCG | G3: A83006 | H3: ORCHARD COURT SURGERY | I3: 8,051 | L3: North | N3: London | O3: East London | Q3: BaNES, Swindon and Wiltshire | R3: All | S3: =T3&U3 -> AllAll | T3: All | U3: All | V3: 59607191 | X3: ='Scenario Modeller'!F5 -> Select a STP
A4: NHS Darlington CCGMOORLANDS SURGERY | B4: Durham, Darlington, Teesside, Hambleton, Richmondshire and WhitbyNHS Darlington CCGMOORLANDS SURGERY | C4: North | D4: Durham, Darlington, Teesside, Hambleton, Richmondshire and Whitby | E4: 00C | F4: NHS Darlington CCG | G4: A83010 | H4: MOORLANDS SURGERY | I4: 13,969 | L4: Midlands and East | N4: London | O4: North London | Q4: BaNES, Swindon and Wiltshire | R4: NHS Bath and North East Somerset CCG | S4: =T4&U4 -> NHS Airedale, Wharfedale and Craven CCGAll | T4: NHS Airedale, Wharfedale and Craven CCG | U4: All | V4: 159873 | W4: =IF(VLOOKUP(S4,A:I,9,FALSE)=V4,"OK","CHECK") -> OK | X4: ='Scenario Modeller'!F6 -> Select a CCG | AA4: London | AB4: 1323 | AD4: BaNES, Swindon and Wiltshire | AE4: 97 | AG4: NHS AIREDALE, WHARFEDALE AND CRAVEN CCG | AH4: 16
A5: NHS Darlington CCGNEASHAM ROAD SURGERY | B5: Durham, Darlington, Teesside, Hambleton, Richmondshire and WhitbyNHS Darlington CCGNEASHAM ROAD SURGERY | C5: North | D5: Durham, Darlington, Teesside, Hambleton, Richmondshire and Whitby | E5: 00C | F5: NHS Darlington CCG | G5: A83013 | H5: NEASHAM ROAD SURGERY | I5: 11,454 | L5: London | N5: London | O5: North West London | Q5: BaNES, Swindon and Wiltshire | R5: NHS Swindon CCG | S5: NHS Airedale, Wharfedale and Craven CCGADDINGHAM SURGERY | T5: NHS Airedale, Wharfedale and Craven CCG | U5: ADDINGHAM SURGERY | V5: 2983 | W5: =IF(VLOOKUP(S5,A:I,9,FALSE)=V5,"OK","CHECK") -> OK | X5: ='Scenario Modeller'!F7 -> Select a Practice | AA5: Midlands and East | AB5: 2047 | AD5: Birmingham and Solihull | AE5: 396 | AG5: NHS ASHFORD CCG | AH5: 12
A6: NHS Darlington CCGCARMEL MEDICAL PRACTICE | B6: Durham, Darlington, Teesside, Hambleton, Richmondshire and WhitbyNHS Darlington CCGCARMEL MEDICAL PRACTICE | C6: North | D6: Durham, Darlington, Teesside, Hambleton, Richmondshire and Whitby | E6: 00C | F6: NHS Darlington CCG | G6: A83031 | H6: CARMEL MEDICAL PRACTICE | I6: 10,304 | L6: South | N6: London | O6: South East London | Q6: BaNES, Swindon and Wiltshire | R6: NHS Wiltshire CCG | S6: NHS Airedale, Wharfedale and Craven CCGCROSS HILLS GROUP PRACTICE | T6: NHS Airedale, Wharfedale and Craven CCG | U6: CROSS HILLS GROUP PRACTICE | V6: 12033 | W6: OK | AA6: North | AB6: 2190 | AD6: Bristol, North Somerset and South Gloucestershire | AE6: 86 | AG6: NHS BARKING AND DAGENHAM CCG | AH6: 36
A7: NHS Darlington CCGBLACKETTS MEDICAL PRACTICE | B7: Durham, Darlington, Teesside, Hambleton, Richmondshire and WhitbyNHS Darlington CCGBLACKETTS MEDICAL PRACTICE | C7: North | D7: Durham, Darlington, Teesside, Hambleton, Richmondshire and Whitby | E7: 00C | F7: NHS Darlington CCG | G7: A83034 | H7: BLACKETTS MEDICAL PRACTICE | I7: 10,138 | N7: London | O7: South West London | Q7: Birmingham and Solihull | R7: All | S7: NHS Airedale, Wharfedale and Craven CCGDYNELEY HOUSE SURGERY | T7: NHS Airedale, Wharfedale and Craven CCG | U7: DYNELEY HOUSE SURGERY | V7: 12558 | W7: OK | X7: =INDEX(PopulationTable,SMALL(IF(($X$4=$T$3:$T$7439),ROW($T$3:$T$7439)-MIN(ROW($T$3:$T$7439))+1,""),ROW(S2)),2) ->  | AA7: South | AB7: 1681 | AD7: Buckinghamshire, Oxfordshire, and Berkshire West | AE7: 169 | AG7: NHS BARNET CCG | AH7: 58
A8: NHS Darlington CCGCLIFTON COURT MEDICAL PRACTICE | B8: Durham, Darlington, Teesside, Hambleton, Richmondshire and WhitbyNHS Darlington CCGCLIFTON COURT MEDICAL PRACTICE | C8: North | D8: Durham, Darlington, Teesside, Hambleton, Richmondshire and Whitby | E8: 00C | F8: NHS Darlington CCG | G8: A83040 | H8: CLIFTON COURT MEDICAL PRACTICE | I8: 12,013 | N8: Midlands and East | O8: Birmingham and Solihull | Q8: Birmingham and Solihull | R8: NHS Birmingham and Solihull CCG | S8: NHS Airedale, Wharfedale and Craven CCGFARFIELD GROUP PRACTICE | T8: NHS Airedale, Wharfedale and Craven CCG | U8: FARFIELD GROUP PRACTICE | V8: 12939 | W8: OK | X8: =INDEX(PopulationTable,SMALL(IF(($X$4=$T$3:$T$7439),ROW($T$3:$T$7439)-MIN(ROW($T$3:$T$7439))+1,""),ROW(S3)),2) ->  | AD8: Cambridgeshire and Peterborough | AE8: 94 | AG8: NHS BARNSLEY CCG | AH8: 33
A9: NHS Darlington CCGDENMARK STREET SURGERY | B9: Durham, Darlington, Teesside, Hambleton, Richmondshire and WhitbyNHS Darlington CCGDENMARK STREET SURGERY | C9: North | D9: Durham, Darlington, Teesside, Hambleton, Richmondshire and Whitby | E9: 00C | F9: NHS Darlington CCG | G9: A83047 | H9: DENMARK STREET SURGERY | I9: 14,814 | N9: Midlands and East | O9: Cambridgeshire and Peterborough | Q9: Birmingham and Solihull | R9: NHS Dudley CCG | S9: NHS Airedale, Wharfedale and Craven CCGFISHER MEDICAL CENTRE | T9: NHS Airedale, Wharfedale and Craven CCG | U9: FISHER MEDICAL CENTRE | V9: 14093 | W9: OK | X9: =INDEX(PopulationTable,SMALL(IF(($X$4=$T$3:$T$7439),ROW($T$3:$T$7439)-MIN(ROW($T$3:$T$7439))+1,""),ROW(S4)),2) ->  | AD9: Cheshire and Merseyside | AE9: 375 | AG9: NHS BASILDON AND BRENTWOOD CCG | AH9: 39
A10: NHS Darlington CCGROCKLIFFE COURT SURGERY | B10: Durham, Darlington, Teesside, Hambleton, Richmondshire and WhitbyNHS Darlington CCGROCKLIFFE COURT SURGERY | C10: North | D10: Durham, Darlington, Teesside, Hambleton, Richmondshire and Whitby | E10: 00C | F10: NHS Darlington CCG | G10: A83048 | H10: ROCKLIFFE COURT SURGERY | I10: 5,601 | N10: Midlands and East | O10: Coventry and Warwickshire | Q10: Birmingham and Solihull | R10: NHS Sandwell and West Birmingham CCG | S10: NHS Airedale, Wharfedale and Craven CCGGRANGE PARK SURGERY | T10: NHS Airedale, Wharfedale and Craven CCG | U10: GRANGE PARK SURGERY | V10: 6774 | W10: OK | X10: =INDEX(PopulationTable,SMALL(IF(($X$4=$T$3:$T$7439),ROW($T$3:$T$7439)-MIN(ROW($T$3:$T$7439))+1,""),ROW(S5)),2) ->  | AD10: Cornwall and the Isles of Scilly | AE10: 62 | AG10: NHS BASSETLAW CCG | AH10: 9
A11: NHS Darlington CCGST GEORGE'S MEDICAL PRACTICE | B11: Durham, Darlington, Teesside, Hambleton, Richmondshire and WhitbyNHS Darlington CCGST GEORGE'S MEDICAL PRACTICE | C11: North | D11: Durham, Darlington, Teesside, Hambleton, Richmondshire and Whitby | E11: 00C | F11: NHS Darlington CCG | G11: A83070 | H11: ST GEORGE'S MEDICAL PRACTICE | I11: 5,542 | N11: Midlands and East | O11: Derbyshire | Q11: Birmingham and Solihull | R11: NHS Walsall CCG | S11: NHS Airedale, Wharfedale and Craven CCGHAWORTH MEDICAL PRACTICE | T11: NHS Airedale, Wharfedale and Craven CCG | U11: HAWORTH MEDICAL PRACTICE | V11: 9400 | W11: OK | X11: =INDEX(PopulationTable,SMALL(IF(($X$4=$T$3:$T$7439),ROW($T$3:$T$7439)-MIN(ROW($T$3:$T$7439))+1,""),ROW(S6)),2) ->  | AD11: Coventry and Warwickshire | AE11: 128 | AG11: NHS BATH AND NORTH EAST SOMERSET CCG | AH11: 25
A12: NHS Darlington CCGPARKGATE SURGERY | B12: Durham, Darlington, Teesside, Hambleton, Richmondshire and WhitbyNHS Darlington CCGPARKGATE SURGERY | C12: North | D12: Durham, Darlington, Teesside, Hambleton, Richmondshire and Whitby | E12: 00C | F12: NHS Darlington CCG | G12: A83641 | H12: PARKGATE SURGERY | I12: 4,816 | N12: Midlands and East | O12: Herefordshire and Worcestershire | Q12: Birmingham and Solihull | R12: NHS Wolverhampton CCG | S12: NHS Airedale, Wharfedale and Craven CCGHOLYCROFT SURGERY | T12: NHS Airedale, Wharfedale and Craven CCG | U12: HOLYCROFT SURGERY | V12: 9930 | W12: OK | X12: =INDEX(PopulationTable,SMALL(IF(($X$4=$T$3:$T$7439),ROW($T$3:$T$7439)-MIN(ROW($T$3:$T$7439))+1,""),ROW(S7)),2) ->  | AD12: Derbyshire | AE12: 116 | AG12: NHS BEDFORDSHIRE CCG | AH12: 48
A13: NHS Darlington CCGAll | B13: Durham, Darlington, Teesside, Hambleton, Richmondshire and WhitbyNHS Darlington CCGAll | C13: North | D13: Durham, Darlington, Teesside, Hambleton, Richmondshire and Whitby | E13: 00C | F13: NHS Darlington CCG | H13: All | I13: 108,625 | N13: Midlands and East | O13: Hertfordshire and West Essex | Q13: Bristol, North Somerset and South Gloucestershire | R13: All | S13: NHS Airedale, Wharfedale and Craven CCGI G MEDICAL | T13: NHS Airedale, Wharfedale and Craven CCG | U13: I G MEDICAL | V13: 17964 | W13: OK | X13: =INDEX(PopulationTable,SMALL(IF(($X$4=$T$3:$T$7439),ROW($T$3:$T$7439)-MIN(ROW($T$3:$T$7439))+1,""),ROW(S8)),2) ->  | AD13: Devon | AE13: 134 | AG13: NHS BERKSHIRE WEST CCG | AH13: 49
A14: NHS Durham Dales, Easington and Sedgefield CCGST ANDREW'S MEDICAL PRACTICE | B14: Durham, Darlington, Teesside, Hambleton, Richmondshire and WhitbyNHS Durham Dales, Easington and Sedgefield CCGST ANDREW'S MEDICAL PRACTICE | C14: North | D14: Durham, Darlington, Teesside, Hambleton, Richmondshire and Whitby | E14: 00D | F14: NHS Durham Dales, Easington and Sedgefield CCG | G14: A83001 | H14: ST ANDREW'S MEDICAL PRACTICE | I14: 11,473 | N14: Midlands and East | O14: Leicester, Leicestershire and Rutland | Q14: Bristol, North Somerset and South Gloucestershire | R14: NHS Bristol, North Somerset and South Gloucestershire CCG | S14: NHS Airedale, Wharfedale and Craven CCGILKLEY & WHARFEDALE MEDICAL PRACTICE | T14: NHS Airedale, Wharfedale and Craven CCG | U14: ILKLEY & WHARFEDALE MEDICAL PRACTICE | V14: 4766 | W14: OK | X14: =INDEX(PopulationTable,SMALL(IF(($X$4=$T$3:$T$7439),ROW($T$3:$T$7439)-MIN(ROW($T$3:$T$7439))+1,""),ROW(S9)),2) ->  | AD14: Dorset | AE14: 86 | AG14: NHS BEXLEY CCG | AH14: 24
A15: NHS Durham Dales, Easington and Sedgefield CCGWILLINGTON MEDICAL GROUP | B15: Durham, Darlington, Teesside, Hambleton, Richmondshire and WhitbyNHS Durham Dales, Easington and Sedgefield CCGWILLINGTON MEDICAL GROUP | C15: North | D15: Durham, Darlington, Teesside, Hambleton, Richmondshire and Whitby | E15: 00D | F15: NHS Durham Dales, Easington and Sedgefield CCG | G15: A83003 | H15: WILLINGTON MEDICAL GROUP | I15: 9,234 | N15: Midlands and East | O15: Lincolnshire | Q15: Buckinghamshire, Oxfordshire, and Berkshire West | R15: All | S15: NHS Airedale, Wharfedale and Craven CCGKILMENY GROUP MEDICAL PRACTICE | T15: NHS Airedale, Wharfedale and Craven CCG | U15: KILMENY GROUP MEDICAL PRACTICE | V15: 13355 | W15: OK | X15: =INDEX(PopulationTable,SMALL(IF(($X$4=$T$3:$T$7439),ROW($T$3:$T$7439)-MIN(ROW($T$3:$T$7439))+1,""),ROW(S10)),2) ->  | AD15: Durham, Darlington, Teesside, Hambleton, Richmondshire and Whitby | AE15: 172 | AG15: NHS BIRMINGHAM AND SOLIHULL CCG | AH15: 171
A16: NHS Durham Dales, Easington and Sedgefield CCGAVENUE FAMILY PRACTICE | B16: Durham, Darlington, Teesside, Hambleton, Richmondshire and WhitbyNHS Durham Dales, Easington and Sedgefield CCGAVENUE FAMILY PRACTICE | C16: North | D16: Durham, Darlington, Teesside, Hambleton, Richmondshire and Whitby | E16: 00D | F16: NHS Durham Dales, Easington and Sedgefield CCG | G16: A83004 | H16: AVENUE FAMILY PRACTICE | I16: 3,820 | N16: Midlands and East | O16: Norfolk and Waveney | Q16: Buckinghamshire, Oxfordshire, and Berkshire West | R16: NHS Berkshire West CCG | S16: NHS Airedale, Wharfedale and Craven CCGLING HOUSE MEDICAL CENTRE | T16: NHS Airedale, Wharfedale and Craven CCG | U16: LING HOUSE MEDICAL CENTRE | V16: 11891 | W16: OK | X16: =INDEX(PopulationTable,SMALL(IF(($X$4=$T$3:$T$7439),ROW($T$3:$T$7439)-MIN(ROW($T$3:$T$7439))+1,""),ROW(S11)),2) ->  | AD16: Frimley | AE16: 75 | AG16: NHS BLACKBURN WITH DARWEN CCG | AH16: 23
A17: NHS Durham Dales, Easington and Sedgefield CCGBLACKHALL AND PETERLEE PRACTICE | B17: Durham, Darlington, Teesside, Hambleton, Richmondshire and WhitbyNHS Durham Dales, Easington and Sedgefield CCGBLACKHALL AND PETERLEE PRACTICE | C17: North | D17: Durham, Darlington, Teesside, Hambleton, Richmondshire and Whitby | E17: 00D | F17: NHS Durham Dales, Easington and Sedgefield CCG | G17: A83007 | H17: BLACKHALL AND PETERLEE PRACTICE | I17: 10,004 | N17: Midlands and East | O17: Northamptonshire | Q17: Buckinghamshire, Oxfordshire, and Berkshire West | R17: NHS Buckinghamshire CCG | S17: NHS Airedale, Wharfedale and Craven CCGNORTH STREET MEDICAL PRACTICE | T17: NHS Airedale, Wharfedale and Craven CCG | U17: NORTH STREET MEDICAL PRACTICE | V17: 6570 | W17: OK | X17: =INDEX(PopulationTable,SMALL(IF(($X$4=$T$3:$T$7439),ROW($T$3:$T$7439)-MIN(ROW($T$3:$T$7439))+1,""),ROW(S12)),2) ->  | AD17: Gloucestershire | AE17: 77 | AG17: NHS BLACKPOOL CCG | AH17: 20
A18: NHS Durham Dales, Easington and Sedgefield CCGHALLGARTH SURGERY | B18: Durham, Darlington, Teesside, Hambleton, Richmondshire and WhitbyNHS Durham Dales, Easington and Sedgefield CCGHALLGARTH SURGERY | C18: North | D18: Durham, Darlington, Teesside, Hambleton, Richmondshire and Whitby | E18: 00D | F18: NHS Durham Dales, Easington and Sedgefield CCG | G18: A83008 | H18: HALLGARTH SURGERY | I18: 5,526 | N18: Midlands and East | O18: Nottinghamshire | Q18: Buckinghamshire, Oxfordshire, and Berkshire West | R18: NHS Oxfordshire CCG | S18: NHS Airedale, Wharfedale and Craven CCGOAKWORTH MEDICAL PRACTICE | T18: NHS Airedale, Wharfedale and Craven CCG | U18: OAKWORTH MEDICAL PRACTICE | V18: 3472 | W18: OK | X18: =INDEX(PopulationTable,SMALL(IF(($X$4=$T$3:$T$7439),ROW($T$3:$T$7439)-MIN(ROW($T$3:$T$7439))+1,""),ROW(S13)),2) ->  | AD18: Greater Manchester | AE18: 459 | AG18: NHS BOLTON CCG | AH18: 49
A19: NHS Durham Dales, Easington and Sedgefield CCGWILLIAM BROWN CENTRE | B19: Durham, Darlington, Teesside, Hambleton, Richmondshire and WhitbyNHS Durham Dales, Easington and Sedgefield CCGWILLIAM BROWN CENTRE | C19: North | D19: Durham, Darlington, Teesside, Hambleton, Richmondshire and Whitby | E19: 00D | F19: NHS Durham Dales, Easington and Sedgefield CCG | G19: A83012 | H19: WILLIAM BROWN CENTRE | I19: 16,238 | N19: Midlands and East | O19: Shropshire and Telford & Wrekin | Q19: Cambridgeshire and Peterborough | R19: All | S19: NHS Airedale, Wharfedale and Craven CCGSILSDEN & STEETON MEDICAL PRACTICE | T19: NHS Airedale, Wharfedale and Craven CCG | U19: SILSDEN & STEETON MEDICAL PRACTICE | V19: 11533 | W19: OK | X19: =INDEX(PopulationTable,SMALL(IF(($X$4=$T$3:$T$7439),ROW($T$3:$T$7439)-MIN(ROW($T$3:$T$7439))+1,""),ROW(S14)),2) ->  | AD19: Hampshire and the Isle of Wight | AE19: 163 | AG19: NHS BRADFORD CITY CCG | AH19: 26
A20: NHS Durham Dales, Easington and Sedgefield CCGSTATION VIEW MEDICAL CENTRE | B20: Durham, Darlington, Teesside, Hambleton, Richmondshire and WhitbyNHS Durham Dales, Easington and Sedgefield CCGSTATION VIEW MEDICAL CENTRE | C20: North | D20: Durham, Darlington, Teesside, Hambleton, Richmondshire and Whitby | E20: 00D | F20: NHS Durham Dales, Easington and Sedgefield CCG | G20: A83015 | H20: STATION VIEW MEDICAL CENTRE | I20: 10,145 | N20: Midlands and East | O20: Staffordshire and Stoke on Trent | Q20: Cambridgeshire and Peterborough | R20: NHS Cambridgeshire and Peterborough CCG | S20: NHS Airedale, Wharfedale and Craven CCGTOWNHEAD SURGERY | T20: NHS Airedale, Wharfedale and Craven CCG | U20: TOWNHEAD SURGERY | V20: 9612 | W20: OK | X20: =INDEX(PopulationTable,SMALL(IF(($X$4=$T$3:$T$7439),ROW($T$3:$T$7439)-MIN(ROW($T$3:$T$7439))+1,""),ROW(S15)),2) ->  | AD20: Herefordshire and Worcestershire | AE20: 84 | AG20: NHS BRADFORD DISTRICTS CCG | AH20: 35
A21: NHS Durham Dales, Easington and Sedgefield CCGPHOENIX MEDICAL GROUP | B21: Durham, Darlington, Teesside, Hambleton, Richmondshire and WhitbyNHS Durham Dales, Easington and Sedgefield CCGPHOENIX MEDICAL GROUP | C21: North | D21: Durham, Darlington, Teesside, Hambleton, Richmondshire and Whitby | E21: 00D | F21: NHS Durham Dales, Easington and Sedgefield CCG | G21: A83017 | H21: PHOENIX MEDICAL GROUP | I21: 7,571 | N21: Midlands and East | O21: Suffolk and North East Essex | Q21: Cheshire and Merseyside | R21: All | S21: NHS Ashford CCGAll | T21: NHS Ashford CCG | U21: All | V21: 134605 | W21: OK | X21: =INDEX(PopulationTable,SMALL(IF(($X$4=$T$3:$T$7439),ROW($T$3:$T$7439)-MIN(ROW($T$3:$T$7439))+1,""),ROW(S16)),2) ->  | AD21: Hertfordshire and West Essex | AE21: 352 | AG21: NHS BRENT CCG | AH21: 56
A22: NHS Durham Dales, Easington and Sedgefield CCGSTATION ROAD SURGERY | B22: Durham, Darlington, Teesside, Hambleton, Richmondshire and WhitbyNHS Durham Dales, Easington and Sedgefield CCGSTATION ROAD SURGERY | C22: North | D22: Durham, Darlington, Teesside, Hambleton, Richmondshire and Whitby | E22: 00D | F22: NHS Durham Dales, Easington and Sedgefield CCG | G22: A83019 | H22: STATION ROAD SURGERY | I22: 5,177 | N22: North | O22: Cheshire and Merseyside | Q22: Cheshire and Merseyside | R22: NHS Eastern Cheshire CCG | S22: NHS Ashford CCGCHARING SURGERY | T22: NHS Ashford CCG | U22: CHARING SURGERY | V22: 10098 | W22: OK | X22: =INDEX(PopulationTable,SMALL(IF(($X$4=$T$3:$T$7439),ROW($T$3:$T$7439)-MIN(ROW($T$3:$T$7439))+1,""),ROW(S17)),2) ->  | AD22: Humber, Coast and Vale | AE22: 154 | AG22: NHS BRIGHTON AND HOVE CCG | AH22: 37
A23: NHS Durham Dales, Easington and Sedgefield CCGNORTH HOUSE SURGERY | B23: Durham, Darlington, Teesside, Hambleton, Richmondshire and WhitbyNHS Durham Dales, Easington and Sedgefield CCGNORTH HOUSE SURGERY | C23: North | D23: Durham, Darlington, Teesside, Hambleton, Richmondshire and Whitby | E23: 00D | F23: NHS Durham Dales, Easington and Sedgefield CCG | G23: A83020 | H23: NORTH HOUSE SURGERY | I23: 13,391 | N23: North | O23: Durham, Darlington, Teesside, Hambleton, Richmondshire and Whitby | Q23: Cheshire and Merseyside | R23: NHS Halton CCG | S23: NHS Ashford CCGHAMSTREET SURGERY | T23: NHS Ashford CCG | U23: HAMSTREET SURGERY | V23: 7238 | W23: OK | X23: =INDEX(PopulationTable,SMALL(IF(($X$4=$T$3:$T$7439),ROW($T$3:$T$7439)-MIN(ROW($T$3:$T$7439))+1,""),ROW(S18)),2) ->  | AD23: Kent & Medway | AE23: 228 | AG23: NHS BRISTOL, NORTH SOMERSET AND SOUTH GLOUCESTERSHIRE CCG | AH23: 86
A24: NHS Durham Dales, Easington and Sedgefield CCGAUCKLAND MEDICAL GROUP | B24: Durham, Darlington, Teesside, Hambleton, Richmondshire and WhitbyNHS Durham Dales, Easington and Sedgefield CCGAUCKLAND MEDICAL GROUP | C24: North | D24: Durham, Darlington, Teesside, Hambleton, Richmondshire and Whitby | E24: 00D | F24: NHS Durham Dales, Easington and Sedgefield CCG | G24: A83021 | H24: AUCKLAND MEDICAL GROUP | I24: 14,493 | N24: North | O24: Greater Manchester | Q24: Cheshire and Merseyside | R24: NHS Knowsley CCG | S24: NHS Ashford CCGHOLLINGTON SURGERY | T24: NHS Ashford CCG | U24: HOLLINGTON SURGERY | V24: 3539 | W24: OK | X24: =INDEX(PopulationTable,SMALL(IF(($X$4=$T$3:$T$7439),ROW($T$3:$T$7439)-MIN(ROW($T$3:$T$7439))+1,""),ROW(S19)),2) ->  | AD24: Lancashire and South Cumbria | AE24: 264 | AG24: NHS BROMLEY CCG | AH24: 45
A25: NHS Durham Dales, Easington and Sedgefield CCGBISHOPGATE MEDICAL CENTRE | B25: Durham, Darlington, Teesside, Hambleton, Richmondshire and WhitbyNHS Durham Dales, Easington and Sedgefield CCGBISHOPGATE MEDICAL CENTRE | C25: North | D25: Durham, Darlington, Teesside, Hambleton, Richmondshire and Whitby | E25: 00D | F25: NHS Durham Dales, Easington and Sedgefield CCG | G25: A83025 | H25: BISHOPGATE MEDICAL CENTRE | I25: 13,389 | N25: North | O25: Humber, Coast and Vale | Q25: Cheshire and Merseyside | R25: NHS Liverpool CCG | S25: NHS Ashford CCGIVY COURT SURGERY | T25: NHS Ashford CCG | U25: IVY COURT SURGERY | V25: 14211 | W25: OK | X25: =INDEX(PopulationTable,SMALL(IF(($X$4=$T$3:$T$7439),ROW($T$3:$T$7439)-MIN(ROW($T$3:$T$7439))+1,""),ROW(S20)),2) ->  | AD25: Leicester, Leicestershire and Rutland | AE25: 137 | AG25: NHS BUCKINGHAMSHIRE CCG | AH25: 50
A26: NHS Durham Dales, Easington and Sedgefield CCGWOODVIEW MEDICAL PRACTICE | B26: Durham, Darlington, Teesside, Hambleton, Richmondshire and WhitbyNHS Durham Dales, Easington and Sedgefield CCGWOODVIEW MEDICAL PRACTICE | C26: North | D26: Durham, Darlington, Teesside, Hambleton, Richmondshire and Whitby | E26: 00D | F26: NHS Durham Dales, Easington and Sedgefield CCG | G26: A83032 | H26: WOODVIEW MEDICAL PRACTICE | I26: 2,493 | N26: North | O26: Lancashire and South Cumbria | Q26: Cheshire and Merseyside | R26: NHS South Cheshire CCG | S26: NHS Ashford CCGKINGSNORTH MEDICAL PRACTICE | T26: NHS Ashford CCG | U26: KINGSNORTH MEDICAL PRACTICE | V26: 12045 | W26: OK | X26: =INDEX(PopulationTable,SMALL(IF(($X$4=$T$3:$T$7439),ROW($T$3:$T$7439)-MIN(ROW($T$3:$T$7439))+1,""),ROW(S21)),2) ->  | AD26: Lincolnshire | AE26: 86 | AG26: NHS BURY CCG | AH26: 28
A27: NHS Durham Dales, Easington and Sedgefield CCGTHE WEARDALE PRACTICE | B27: Durham, Darlington, Teesside, Hambleton, Richmondshire and WhitbyNHS Durham Dales, Easington and Sedgefield CCGTHE WEARDALE PRACTICE | C27: North | D27: Durham, Darlington, Teesside, Hambleton, Richmondshire and Whitby | E27: 00D | F27: NHS Durham Dales, Easington and Sedgefield CCG | G27: A83035 | H27: THE WEARDALE PRACTICE | I27: 7,152 | N27: North | O27: Northumberland, Tyne and Wear and North Durham | Q27: Cheshire and Merseyside | R27: NHS South Sefton CCG | S27: NHS Ashford CCGNEW HAYESBANK SURGERY | T27: NHS Ashford CCG | U27: NEW HAYESBANK SURGERY | V27: 17550 | W27: OK | X27: =INDEX(PopulationTable,SMALL(IF(($X$4=$T$3:$T$7439),ROW($T$3:$T$7439)-MIN(ROW($T$3:$T$7439))+1,""),ROW(S22)),2) ->  | AD27: Milton Keynes, Bedfordshire and Luton | AE27: 102 | AG27: NHS CALDERDALE CCG | AH27: 27
A28: NHS Durham Dales, Easington and Sedgefield CCGBEWICK CRESCENT SURGERY | B28: Durham, Darlington, Teesside, Hambleton, Richmondshire and WhitbyNHS Durham Dales, Easington and Sedgefield CCGBEWICK CRESCENT SURGERY | C28: North | D28: Durham, Darlington, Teesside, Hambleton, Richmondshire and Whitby | E28: 00D | F28: NHS Durham Dales, Easington and Sedgefield CCG | G28: A83037 | H28: BEWICK CRESCENT SURGERY | I28: 13,899 | N28: North | O28: South Yorkshire and Bassetlaw | Q28: Cheshire and Merseyside | R28: NHS Southport and Formby CCG | S28: NHS Ashford CCGSELLINDGE SURGERY | T28: NHS Ashford CCG | U28: SELLINDGE SURGERY | V28: 4857 | W28: OK | X28: =INDEX(PopulationTable,SMALL(IF(($X$4=$T$3:$T$7439),ROW($T$3:$T$7439)-MIN(ROW($T$3:$T$7439))+1,""),ROW(S23)),2) ->  | AD28: Norfolk and Waveney | AE28: 107 | AG28: NHS CAMBRIDGESHIRE AND PETERBOROUGH CCG | AH28: 94
A29: NHS Durham Dales, Easington and Sedgefield CCGMURTON MEDICAL CENTRE | B29: Durham, Darlington, Teesside, Hambleton, Richmondshire and WhitbyNHS Durham Dales, Easington and Sedgefield CCGMURTON MEDICAL CENTRE | C29: North | D29: Durham, Darlington, Teesside, Hambleton, Richmondshire and Whitby | E29: 00D | F29: NHS Durham Dales, Easington and Sedgefield CCG | G29: A83041 | H29: MURTON MEDICAL CENTRE | I29: 7,550 | N29: North | O29: West Yorkshire and Harrogate | Q29: Cheshire and Merseyside | R29: NHS St Helens CCG | S29: NHS Ashford CCGSOUTH ASHFORD MEDICS | T29: NHS Ashford CCG | U29: SOUTH ASHFORD MEDICS | V29: 8904 | W29: OK | X29: =INDEX(PopulationTable,SMALL(IF(($X$4=$T$3:$T$7439),ROW($T$3:$T$7439)-MIN(ROW($T$3:$T$7439))+1,""),ROW(S24)),2) ->  | AD29: North Central London | AE29: 211 | AG29: NHS CAMDEN CCG | AH29: 35
A30: NHS Durham Dales, Easington and Sedgefield CCGOLD FORGE SURGERY | B30: Durham, Darlington, Teesside, Hambleton, Richmondshire and WhitbyNHS Durham Dales, Easington and Sedgefield CCGOLD FORGE SURGERY | C30: North | D30: Durham, Darlington, Teesside, Hambleton, Richmondshire and Whitby | E30: 00D | F30: NHS Durham Dales, Easington and Sedgefield CCG | G30: A83043 | H30: OLD FORGE SURGERY | I30: 2,683 | N30: South | O30: BaNES, Swindon and Wiltshire | Q30: Cheshire and Merseyside | R30: NHS Vale Royal CCG | S30: NHS Ashford CCGSYDENHAM HOUSE MEDICAL CENTRE | T30: NHS Ashford CCG | U30: SYDENHAM HOUSE MEDICAL CENTRE | V30: 20777 | W30: OK | X30: =INDEX(PopulationTable,SMALL(IF(($X$4=$T$3:$T$7439),ROW($T$3:$T$7439)-MIN(ROW($T$3:$T$7439))+1,""),ROW(S25)),2) ->  | AD30: North East London | AE30: 296 | AG30: NHS CANNOCK CHASE CCG | AH30: 23
A31: NHS Durham Dales, Easington and Sedgefield CCGTHE HORDEN GROUP PRACTICE | B31: Durham, Darlington, Teesside, Hambleton, Richmondshire and WhitbyNHS Durham Dales, Easington and Sedgefield CCGTHE HORDEN GROUP PRACTICE | C31: North | D31: Durham, Darlington, Teesside, Hambleton, Richmondshire and Whitby | E31: 00D | F31: NHS Durham Dales, Easington and Sedgefield CCG | G31: A83044 | H31: THE HORDEN GROUP PRACTICE | I31: 7,401 | N31: South | O31: Bristol, North Somerset and South Gloucestershire | Q31: Cheshire and Merseyside | R31: NHS Warrington CCG | S31: NHS Ashford CCGWILLESBOROUGH HEALTH CTR. | T31: NHS Ashford CCG | U31: WILLESBOROUGH HEALTH CTR. | V31: 22596 | W31: OK | X31: =INDEX(PopulationTable,SMALL(IF(($X$4=$T$3:$T$7439),ROW($T$3:$T$7439)-MIN(ROW($T$3:$T$7439))+1,""),ROW(S26)),2) ->  | AD31: North West London | AE31: 366 | AG31: NHS CANTERBURY AND COASTAL CCG | AH31: 16
A32: NHS Durham Dales, Easington and Sedgefield CCGFERRYHILL AND CHILTON MEDICAL PRACTICE | B32: Durham, Darlington, Teesside, Hambleton, Richmondshire and WhitbyNHS Durham Dales, Easington and Sedgefield CCGFERRYHILL AND CHILTON MEDICAL PRACTICE | C32: North | D32: Durham, Darlington, Teesside, Hambleton, Richmondshire and Whitby | E32: 00D | F32: NHS Durham Dales, Easington and Sedgefield CCG | G32: A83045 | H32: FERRYHILL AND CHILTON MEDICAL PRACTICE | I32: 15,151 | N32: South | O32: Buckinghamshire, Oxfordshire, and Berkshire West | Q32: Cheshire and Merseyside | R32: NHS West Cheshire CCG | S32: NHS Ashford CCGWOODCHURCH SURGERY | T32: NHS Ashford CCG | U32: WOODCHURCH SURGERY | V32: 4059 | W32: OK | X32: =INDEX(PopulationTable,SMALL(IF(($X$4=$T$3:$T$7439),ROW($T$3:$T$7439)-MIN(ROW($T$3:$T$7439))+1,""),ROW(S27)),2) ->  | AD32: Northamptonshire | AE32: 71 | AG32: NHS CASTLE POINT AND ROCHFORD CCG | AH32: 23
A33: NHS Durham Dales, Easington and Sedgefield CCGBARNARD CASTLE SURGERY | B33: Durham, Darlington, Teesside, Hambleton, Richmondshire and WhitbyNHS Durham Dales, Easington and Sedgefield CCGBARNARD CASTLE SURGERY | C33: North | D33: Durham, Darlington, Teesside, Hambleton, Richmondshire and Whitby | E33: 00D | F33: NHS Durham Dales, Easington and Sedgefield CCG | G33: A83046 | H33: BARNARD CASTLE SURGERY | I33: 10,571 | N33: South | O33: Cornwall and the Isles of Scilly | Q33: Cheshire and Merseyside | R33: NHS Wirral CCG | S33: NHS Ashford CCGWYE SURGERY | T33: NHS Ashford CCG | U33: WYE SURGERY | V33: 8731 | W33: OK | X33: =INDEX(PopulationTable,SMALL(IF(($X$4=$T$3:$T$7439),ROW($T$3:$T$7439)-MIN(ROW($T$3:$T$7439))+1,""),ROW(S28)),2) ->  | AD33: Northumberland, Tyne and Wear and North Durham | AE33: 197 | AG33: NHS CENTRAL LONDON (WESTMINSTER) CCG | AH33: 35
A34: NHS Durham Dales, Easington and Sedgefield CCGMARLBOROUGH SURGERY | B34: Durham, Darlington, Teesside, Hambleton, Richmondshire and WhitbyNHS Durham Dales, Easington and Sedgefield CCGMARLBOROUGH SURGERY | C34: North | D34: Durham, Darlington, Teesside, Hambleton, Richmondshire and Whitby | E34: 00D | F34: NHS Durham Dales, Easington and Sedgefield CCG | G34: A83051 | H34: MARLBOROUGH SURGERY | I34: 10,287 | N34: South | O34: Devon | Q34: Cornwall and the Isles of Scilly | R34: All | S34: NHS Barking and Dagenham CCGAll | T34: NHS Barking and Dagenham CCG | U34: All | V34: 226357 | W34: OK | X34: =INDEX(PopulationTable,SMALL(IF(($X$4=$T$3:$T$7439),ROW($T$3:$T$7439)-MIN(ROW($T$3:$T$7439))+1,""),ROW(S29)),2) ->  | AD34: Nottinghamshire | AE34: 137 | AG34: NHS CHORLEY AND SOUTH RIBBLE CCG | AH34: 30
A35: NHS Durham Dales, Easington and Sedgefield CCGBISHOPS CLOSE MEDICAL PRACTICE | B35: Durham, Darlington, Teesside, Hambleton, Richmondshire and WhitbyNHS Durham Dales, Easington and Sedgefield CCGBISHOPS CLOSE MEDICAL PRACTICE | C35: North | D35: Durham, Darlington, Teesside, Hambleton, Richmondshire and Whitby | E35: 00D | F35: NHS Durham Dales, Easington and Sedgefield CCG | G35: A83052 | H35: BISHOPS CLOSE MEDICAL PRACTICE | I35: 8,688 | N35: South | O35: Dorset | Q35: Cornwall and the Isles of Scilly | R35: NHS Kernow CCG | S35: NHS Barking and Dagenham CCGABBEY MEDICAL CENTRE | T35: NHS Barking and Dagenham CCG | U35: ABBEY MEDICAL CENTRE | V35: 6948 | W35: OK | X35: =INDEX(PopulationTable,SMALL(IF(($X$4=$T$3:$T$7439),ROW($T$3:$T$7439)-MIN(ROW($T$3:$T$7439))+1,""),ROW(S30)),2) ->  | AD35: Shropshire and Telford & Wrekin | AE35: 56 | AG35: NHS CITY AND HACKNEY CCG | AH35: 42
A36: NHS Durham Dales, Easington and Sedgefield CCGSKERNE MEDICAL GROUP | B36: Durham, Darlington, Teesside, Hambleton, Richmondshire and WhitbyNHS Durham Dales, Easington and Sedgefield CCGSKERNE MEDICAL GROUP | C36: North | D36: Durham, Darlington, Teesside, Hambleton, Richmondshire and Whitby | E36: 00D | F36: NHS Durham Dales, Easington and Sedgefield CCG | G36: A83054 | H36: SKERNE MEDICAL GROUP | I36: 15,504 | N36: South | O36: Frimley | Q36: Coventry and Warwickshire | R36: All | S36: NHS Barking and Dagenham CCGBARKING MEDICAL GROUP PRACTICE | T36: NHS Barking and Dagenham CCG | U36: BARKING MEDICAL GROUP PRACTICE | V36: 11354 | W36: OK | X36: =INDEX(PopulationTable,SMALL(IF(($X$4=$T$3:$T$7439),ROW($T$3:$T$7439)-MIN(ROW($T$3:$T$7439))+1,""),ROW(S31)),2) ->  | AD36: Somerset | AE36: 66 | AG36: NHS COASTAL WEST SUSSEX CCG | AH36: 47
A37: NHS Durham Dales, Easington and Sedgefield CCGEAST DURHAM MEDICAL GROUP | B37: Durham, Darlington, Teesside, Hambleton, Richmondshire and WhitbyNHS Durham Dales, Easington and Sedgefield CCGEAST DURHAM MEDICAL GROUP | C37: North | D37: Durham, Darlington, Teesside, Hambleton, Richmondshire and Whitby | E37: 00D | F37: NHS Durham Dales, Easington and Sedgefield CCG | G37: A83057 | H37: EAST DURHAM MEDICAL GROUP | I37: 10,776 | N37: South | O37: Gloucestershire | Q37: Coventry and Warwickshire | R37: NHS Coventry and Rugby CCG | S37: NHS Barking and Dagenham CCGCHILD & FAMILY HEALTH CENTRE | T37: NHS Barking and Dagenham CCG | U37: CHILD & FAMILY HEALTH CENTRE | V37: 11033 | W37: OK | X37: =INDEX(PopulationTable,SMALL(IF(($X$4=$T$3:$T$7439),ROW($T$3:$T$7439)-MIN(ROW($T$3:$T$7439))+1,""),ROW(S32)),2) ->  | AD37: South East London | AE37: 225 | AG37: NHS CORBY CCG | AH37: 5
A38: NHS Durham Dales, Easington and Sedgefield CCGPINFOLD MEDICAL PRACTICE | B38: Durham, Darlington, Teesside, Hambleton, Richmondshire and WhitbyNHS Durham Dales, Easington and Sedgefield CCGPINFOLD MEDICAL PRACTICE | C38: North | D38: Durham, Darlington, Teesside, Hambleton, Richmondshire and Whitby | E38: 00D | F38: NHS Durham Dales, Easington and Sedgefield CCG | G38: A83060 | H38: PINFOLD MEDICAL PRACTICE | I38: 2,975 | N38: South | O38: Hampshire and the Isle of Wight | Q38: Coventry and Warwickshire | R38: NHS South Warwickshire CCG | S38: NHS Barking and Dagenham CCGDR A ARIF | T38: NHS Barking and Dagenham CCG | U38: DR A ARIF | V38: 4537 | W38: OK | X38: =INDEX(PopulationTable,SMALL(IF(($X$4=$T$3:$T$7439),ROW($T$3:$T$7439)-MIN(ROW($T$3:$T$7439))+1,""),ROW(S33)),2) ->  | AD38: South West London | AE38: 191 | AG38: NHS COVENTRY AND RUGBY CCG | AH38: 69
A39: NHS Durham Dales, Easington and Sedgefield CCGGAINFORD SURGERY | B39: Durham, Darlington, Teesside, Hambleton, Richmondshire and WhitbyNHS Durham Dales, Easington and Sedgefield CCGGAINFORD SURGERY | C39: North | D39: Durham, Darlington, Teesside, Hambleton, Richmondshire and Whitby | E39: 00D | F39: NHS Durham Dales, Easington and Sedgefield CCG | G39: A83061 | H39: GAINFORD SURGERY | I39: 3,440 | N39: South | O39: Kent & Medway | Q39: Coventry and Warwickshire | R39: NHS Warwickshire North CCG | S39: NHS Barking and Dagenham CCGDR A MOGHAL'S PRACTICE | T39: NHS Barking and Dagenham CCG | U39: DR A MOGHAL'S PRACTICE | V39: 6622 | W39: OK | X39: =INDEX(PopulationTable,SMALL(IF(($X$4=$T$3:$T$7439),ROW($T$3:$T$7439)-MIN(ROW($T$3:$T$7439))+1,""),ROW(S34)),2) ->  | AD39: South Yorkshire and Bassetlaw | AE39: 192 | AG39: NHS CRAWLEY CCG | AH39: 12
A40: NHS Durham Dales, Easington and Sedgefield CCGJUBILEE MEDICAL GROUP | B40: Durham, Darlington, Teesside, Hambleton, Richmondshire and WhitbyNHS Durham Dales, Easington and Sedgefield CCGJUBILEE MEDICAL GROUP | C40: North | D40: Durham, Darlington, Teesside, Hambleton, Richmondshire and Whitby | E40: 00D | F40: NHS Durham Dales, Easington and Sedgefield CCG | G40: A83066 | H40: JUBILEE MEDICAL GROUP | I40: 10,641 | N40: South | O40: Milton Keynes, Bedfordshire and Luton | Q40: Derbyshire | R40: All | S40: NHS Barking and Dagenham CCGDR AA ANSARI'S PRACTICE | T40: NHS Barking and Dagenham CCG | U40: DR AA ANSARI'S PRACTICE | V40: 8265 | W40: OK | X40: =INDEX(PopulationTable,SMALL(IF(($X$4=$T$3:$T$7439),ROW($T$3:$T$7439)-MIN(ROW($T$3:$T$7439))+1,""),ROW(S35)),2) ->  | AD40: Staffordshire and Stoke on Trent | AE40: 157 | AG40: NHS CROYDON CCG | AH40: 53
A41: NHS Durham Dales, Easington and Sedgefield CCGTHE NEW SEAHAM MEDICAL GROUP | B41: Durham, Darlington, Teesside, Hambleton, Richmondshire and WhitbyNHS Durham Dales, Easington and Sedgefield CCGTHE NEW SEAHAM MEDICAL GROUP | C41: North | D41: Durham, Darlington, Teesside, Hambleton, Richmondshire and Whitby | E41: 00D | F41: NHS Durham Dales, Easington and Sedgefield CCG | G41: A83071 | H41: THE NEW SEAHAM MEDICAL GROUP | I41: 5,003 | N41: South | O41: Somerset | Q41: Derbyshire | R41: NHS Erewash CCG | S41: NHS Barking and Dagenham CCGDR BK JAISWAL'S PRACTICE | T41: NHS Barking and Dagenham CCG | U41: DR BK JAISWAL'S PRACTICE | V41: 5416 | W41: OK | X41: =INDEX(PopulationTable,SMALL(IF(($X$4=$T$3:$T$7439),ROW($T$3:$T$7439)-MIN(ROW($T$3:$T$7439))+1,""),ROW(S36)),2) ->  | AD41: Suffolk and North East Essex | AE41: 64 | AG41: NHS DARLINGTON CCG | AH41: 11
A42: NHS Durham Dales, Easington and Sedgefield CCGPEASE WAY MEDICAL CENTRE | B42: Durham, Darlington, Teesside, Hambleton, Richmondshire and WhitbyNHS Durham Dales, Easington and Sedgefield CCGPEASE WAY MEDICAL CENTRE | C42: North | D42: Durham, Darlington, Teesside, Hambleton, Richmondshire and Whitby | E42: 00D | F42: NHS Durham Dales, Easington and Sedgefield CCG | G42: A83074 | H42: PEASE WAY MEDICAL CENTRE | I42: 11,674 | N42: South | O42: Surrey Heartlands | Q42: Derbyshire | R42: NHS Hardwick CCG | S42: NHS Barking and Dagenham CCGDR C OLA'S PRACTICE | T42: NHS Barking and Dagenham CCG | U42: DR C OLA'S PRACTICE | V42: 3761 | W42: OK | X42: =INDEX(PopulationTable,SMALL(IF(($X$4=$T$3:$T$7439),ROW($T$3:$T$7439)-MIN(ROW($T$3:$T$7439))+1,""),ROW(S37)),2) ->  | AD42: Surrey Heartlands | AE42: 92 | AG42: NHS DARTFORD, GRAVESHAM AND SWANLEY CCG | AH42: 30
A43: NHS Durham Dales, Easington and Sedgefield CCGDENESIDE MEDICAL CENTRE | B43: Durham, Darlington, Teesside, Hambleton, Richmondshire and WhitbyNHS Durham Dales, Easington and Sedgefield CCGDENESIDE MEDICAL CENTRE | C43: North | D43: Durham, Darlington, Teesside, Hambleton, Richmondshire and Whitby | E43: 00D | F43: NHS Durham Dales, Easington and Sedgefield CCG | G43: A83075 | H43: DENESIDE MEDICAL CENTRE | I43: 4,669 | N43: South | O43: Sussex and East Surrey | Q43: Derbyshire | R43: NHS North Derbyshire CCG | S43: NHS Barking and Dagenham CCGDR DP SHAH'S PRACTICE | T43: NHS Barking and Dagenham CCG | U43: DR DP SHAH'S PRACTICE | V43: 4601 | W43: OK | X43: =INDEX(PopulationTable,SMALL(IF(($X$4=$T$3:$T$7439),ROW($T$3:$T$7439)-MIN(ROW($T$3:$T$7439))+1,""),ROW(S38)),2) ->  | AD43: Sussex and East Surrey | AE43: 202 | AG43: NHS DONCASTER CCG | AH43: 40
A44: NHS Durham Dales, Easington and Sedgefield CCGOXFORD ROAD MEDICAL PRACTICE | B44: Durham, Darlington, Teesside, Hambleton, Richmondshire and WhitbyNHS Durham Dales, Easington and Sedgefield CCGOXFORD ROAD MEDICAL PRACTICE | C44: North | D44: Durham, Darlington, Teesside, Hambleton, Richmondshire and Whitby | E44: 00D | F44: NHS Durham Dales, Easington and Sedgefield CCG | G44: A83603 | H44: OXFORD ROAD MEDICAL PRACTICE | I44: 2,625 | Q44: Derbyshire | R44: NHS Southern Derbyshire CCG | S44: NHS Barking and Dagenham CCGDR GS KALKAT'S PRACTICE | T44: NHS Barking and Dagenham CCG | U44: DR GS KALKAT'S PRACTICE | V44: 8543 | W44: OK | X44: =INDEX(PopulationTable,SMALL(IF(($X$4=$T$3:$T$7439),ROW($T$3:$T$7439)-MIN(ROW($T$3:$T$7439))+1,""),ROW(S39)),2) ->  | AD44: West Yorkshire and Harrogate | AE44: 329 | AG44: NHS DORSET CCG | AH44: 86
A45: NHS Durham Dales, Easington and Sedgefield CCGWINGATE MEDICAL PRACTICE INTRAHEALTH | B45: Durham, Darlington, Teesside, Hambleton, Richmondshire and WhitbyNHS Durham Dales, Easington and Sedgefield CCGWINGATE MEDICAL PRACTICE INTRAHEALTH | C45: North | D45: Durham, Darlington, Teesside, Hambleton, Richmondshire and Whitby | E45: 00D | F45: NHS Durham Dales, Easington and Sedgefield CCG | G45: A83610 | H45: WINGATE MEDICAL PRACTICE INTRAHEALTH | I45: 2,920 | Q45: Devon | R45: All | S45: NHS Barking and Dagenham CCGDR KM ALKAISY PRACTICE | T45: NHS Barking and Dagenham CCG | U45: DR KM ALKAISY PRACTICE | V45: 4685 | W45: OK | X45: =INDEX(PopulationTable,SMALL(IF(($X$4=$T$3:$T$7439),ROW($T$3:$T$7439)-MIN(ROW($T$3:$T$7439))+1,""),ROW(S40)),2) ->  | AG45: NHS DUDLEY CCG | AH45: 44
A46: NHS Durham Dales, Easington and Sedgefield CCGSHOTTON MEDICAL PRACTICE | B46: Durham, Darlington, Teesside, Hambleton, Richmondshire and WhitbyNHS Durham Dales, Easington and Sedgefield CCGSHOTTON MEDICAL PRACTICE | C46: North | D46: Durham, Darlington, Teesside, Hambleton, Richmondshire and Whitby | E46: 00D | F46: NHS Durham Dales, Easington and Sedgefield CCG | G46: A83616 | H46: SHOTTON MEDICAL PRACTICE | I46: 2,548 | Q46: Devon | R46: NHS Northern, Eastern and Western Devon CCG | S46: NHS Barking and Dagenham CCGDR M EHSAN | T46: NHS Barking and Dagenham CCG | U46: DR M EHSAN | V46: 3040 | W46: OK | X46: =INDEX(PopulationTable,SMALL(IF(($X$4=$T$3:$T$7439),ROW($T$3:$T$7439)-MIN(ROW($T$3:$T$7439))+1,""),ROW(S41)),2) ->  | AG46: NHS DURHAM DALES, EASINGTON AND SEDGEFIELD CCG | AH46: 38
A47: NHS Durham Dales, Easington and Sedgefield CCGSOUTHDENE MEDICAL CENTRE | B47: Durham, Darlington, Teesside, Hambleton, Richmondshire and WhitbyNHS Durham Dales, Easington and Sedgefield CCGSOUTHDENE MEDICAL CENTRE | C47: North | D47: Durham, Darlington, Teesside, Hambleton, Richmondshire and Whitby | E47: 00D | F47: NHS Durham Dales, Easington and Sedgefield CCG | G47: A83619 | H47: SOUTHDENE MEDICAL CENTRE | I47: 3,098 | Q47: Devon | R47: NHS South Devon and Torbay CCG | S47: NHS Barking and Dagenham CCGDR M FATEH'S PRACTICE | T47: NHS Barking and Dagenham CCG | U47: DR M FATEH'S PRACTICE | V47: 5397 | W47: OK | X47: =INDEX(PopulationTable,SMALL(IF(($X$4=$T$3:$T$7439),ROW($T$3:$T$7439)-MIN(ROW($T$3:$T$7439))+1,""),ROW(S42)),2) ->  | AG47: NHS EALING CCG | AH47: 76
A48: NHS Durham Dales, Easington and Sedgefield CCGEVENWOOD MEDICAL PRACTICE | B48: Durham, Darlington, Teesside, Hambleton, Richmondshire and WhitbyNHS Durham Dales, Easington and Sedgefield CCGEVENWOOD MEDICAL PRACTICE | C48: North | D48: Durham, Darlington, Teesside, Hambleton, Richmondshire and Whitby | E48: 00D | F48: NHS Durham Dales, Easington and Sedgefield CCG | G48: A83626 | H48: EVENWOOD MEDICAL PRACTICE | I48: 2,045 | Q48: Dorset | R48: All | S48: NHS Barking and Dagenham CCGDR M GOYAL'S PRACTICE | T48: NHS Barking and Dagenham CCG | U48: DR M GOYAL'S PRACTICE | V48: 6197 | W48: OK | X48: =INDEX(PopulationTable,SMALL(IF(($X$4=$T$3:$T$7439),ROW($T$3:$T$7439)-MIN(ROW($T$3:$T$7439))+1,""),ROW(S43)),2) ->  | AG48: NHS EAST AND NORTH HERTFORDSHIRE CCG | AH48: 57
A49: NHS Durham Dales, Easington and Sedgefield CCGSILVERDALE FAMILY PRACTICE | B49: Durham, Darlington, Teesside, Hambleton, Richmondshire and WhitbyNHS Durham Dales, Easington and Sedgefield CCGSILVERDALE FAMILY PRACTICE | C49: North | D49: Durham, Darlington, Teesside, Hambleton, Richmondshire and Whitby | E49: 00D | F49: NHS Durham Dales, Easington and Sedgefield CCG | G49: A83627 | H49: SILVERDALE FAMILY PRACTICE | I49: 5,713 | Q49: Dorset | R49: NHS Dorset CCG | S49: NHS Barking and Dagenham CCGDR P PRASAD'S PRACTICE | T49: NHS Barking and Dagenham CCG | U49: DR P PRASAD'S PRACTICE | V49: 2430 | W49: OK | X49: =INDEX(PopulationTable,SMALL(IF(($X$4=$T$3:$T$7439),ROW($T$3:$T$7439)-MIN(ROW($T$3:$T$7439))+1,""),ROW(S44)),2) ->  | AG49: NHS EAST BERKSHIRE CCG | AH49: 47
A50: NHS Durham Dales, Easington and Sedgefield CCGWEST CORNFORTH MEDICAL CENTRE | B50: Durham, Darlington, Teesside, Hambleton, Richmondshire and WhitbyNHS Durham Dales, Easington and Sedgefield CCGWEST CORNFORTH MEDICAL CENTRE | C50: North | D50: Durham, Darlington, Teesside, Hambleton, Richmondshire and Whitby | E50: 00D | F50: NHS Durham Dales, Easington and Sedgefield CCG | G50: A83634 | H50: WEST CORNFORTH MEDICAL CENTRE | I50: 2,747 | Q50: Durham, Darlington, Teesside, Hambleton, Richmondshire and Whitby | R50: All | S50: NHS Barking and Dagenham CCGDR R CHIBBER'S PRACTICE | T50: NHS Barking and Dagenham CCG | U50: DR R CHIBBER'S PRACTICE | V50: 4461 | W50: OK | X50: =INDEX(PopulationTable,SMALL(IF(($X$4=$T$3:$T$7439),ROW($T$3:$T$7439)-MIN(ROW($T$3:$T$7439))+1,""),ROW(S45)),2) ->  | AG50: NHS EAST LANCASHIRE CCG | AH50: 53
A51: NHS Durham Dales, Easington and Sedgefield CCGAll | B51: Durham, Darlington, Teesside, Hambleton, Richmondshire and WhitbyNHS Durham Dales, Easington and Sedgefield CCGAll | C51: North | D51: Durham, Darlington, Teesside, Hambleton, Richmondshire and Whitby | E51: 00D | F51: NHS Durham Dales, Easington and Sedgefield CCG | H51: All | I51: 292,714 | Q51: Durham, Darlington, Teesside, Hambleton, Richmondshire and Whitby | R51: NHS Darlington CCG | S51: NHS Barking and Dagenham CCGDR SN AHMAD'S PRACTICE | T51: NHS Barking and Dagenham CCG | U51: DR SN AHMAD'S PRACTICE | V51: 5711 | W51: OK | X51: =INDEX(PopulationTable,SMALL(IF(($X$4=$T$3:$T$7439),ROW($T$3:$T$7439)-MIN(ROW($T$3:$T$7439))+1,""),ROW(S46)),2) ->  | AG51: NHS EAST LEICESTERSHIRE AND RUTLAND CCG | AH51: 33
A52: NHS North Durham CCGBRIDGE END SURGERY | B52: Durham, Darlington, Teesside, Hambleton, Richmondshire and WhitbyNHS North Durham CCGBRIDGE END SURGERY | C52: North | D52: Durham, Darlington, Teesside, Hambleton, Richmondshire and Whitby | E52: 00J | F52: NHS North Durham CCG | G52: A83009 | H52: BRIDGE END SURGERY | I52: 8,387 | Q52: Durham, Darlington, Teesside, Hambleton, Richmondshire and Whitby | R52: NHS Durham Dales, Easington and Sedgefield CCG | S52: NHS Barking and Dagenham CCGDR SZ HAIDER'S PRACTICE | T52: NHS Barking and Dagenham CCG | U52: DR SZ HAIDER'S PRACTICE | V52: 5705 | W52: OK | X52: =INDEX(PopulationTable,SMALL(IF(($X$4=$T$3:$T$7439),ROW($T$3:$T$7439)-MIN(ROW($T$3:$T$7439))+1,""),ROW(S47)),2) ->  | AG52: NHS EAST RIDING OF YORKSHIRE CCG | AH52: 32
A53: NHS North Durham CCGCLAYPATH & UNIVERSITY MEDICAL GROUP | B53: Durham, Darlington, Teesside, Hambleton, Richmondshire and WhitbyNHS North Durham CCGCLAYPATH & UNIVERSITY MEDICAL GROUP | C53: North | D53: Durham, Darlington, Teesside, Hambleton, Richmondshire and Whitby | E53: 00J | F53: NHS North Durham CCG | G53: A83011 | H53: CLAYPATH & UNIVERSITY MEDICAL GROUP | I53: 33,308 | Q53: Durham, Darlington, Teesside, Hambleton, Richmondshire and Whitby | R53: NHS Hambleton, Richmondshire and Whitby CCG | S53: NHS Barking and Dagenham CCGFIVE ELMS MEDICAL PRACTICE | T53: NHS Barking and Dagenham CCG | U53: FIVE ELMS MEDICAL PRACTICE | V53: 4062 | W53: OK | X53: =INDEX(PopulationTable,SMALL(IF(($X$4=$T$3:$T$7439),ROW($T$3:$T$7439)-MIN(ROW($T$3:$T$7439))+1,""),ROW(S48)),2) ->  | AG53: NHS EAST STAFFORDSHIRE CCG | AH53: 18
A54: NHS North Durham CCGBELMONT & SHERBURN MEDICAL GROUP | B54: Durham, Darlington, Teesside, Hambleton, Richmondshire and WhitbyNHS North Durham CCGBELMONT & SHERBURN MEDICAL GROUP | C54: North | D54: Durham, Darlington, Teesside, Hambleton, Richmondshire and Whitby | E54: 00J | F54: NHS North Durham CCG | G54: A83014 | H54: BELMONT & SHERBURN MEDICAL GROUP | I54: 6,946 | Q54: Durham, Darlington, Teesside, Hambleton, Richmondshire and Whitby | R54: NHS Hartlepool and Stockton-on-Tees CCG | S54: NHS Barking and Dagenham CCGGABLES SURGERY | T54: NHS Barking and Dagenham CCG | U54: GABLES SURGERY | V54: 6872 | W54: OK | X54: =INDEX(PopulationTable,SMALL(IF(($X$4=$T$3:$T$7439),ROW($T$3:$T$7439)-MIN(ROW($T$3:$T$7439))+1,""),ROW(S49)),2) ->  | AG54: NHS EAST SURREY CCG | AH54: 18
A55: NHS North Durham CCGTANFIELD VIEW MEDICAL GROUP | B55: Durham, Darlington, Teesside, Hambleton, Richmondshire and WhitbyNHS North Durham CCGTANFIELD VIEW MEDICAL GROUP | C55: North | D55: Durham, Darlington, Teesside, Hambleton, Richmondshire and Whitby | E55: 00J | F55: NHS North Durham CCG | G55: A83016 | H55: TANFIELD VIEW MEDICAL GROUP | I55: 11,267 | Q55: Durham, Darlington, Teesside, Hambleton, Richmondshire and Whitby | R55: NHS North Durham CCG | S55: NHS Barking and Dagenham CCGGREEN LANE SURGERY | T55: NHS Barking and Dagenham CCG | U55: GREEN LANE SURGERY | V55: 3745 | W55: OK | X55: =INDEX(PopulationTable,SMALL(IF(($X$4=$T$3:$T$7439),ROW($T$3:$T$7439)-MIN(ROW($T$3:$T$7439))+1,""),ROW(S50)),2) ->  | AG55: NHS EASTBOURNE, HAILSHAM AND SEAFORD CCG | AH55: 21
A56: NHS North Durham CCGCONSETT MEDICAL CENTRE | B56: Durham, Darlington, Teesside, Hambleton, Richmondshire and WhitbyNHS North Durham CCGCONSETT MEDICAL CENTRE | C56: North | D56: Durham, Darlington, Teesside, Hambleton, Richmondshire and Whitby | E56: 00J | F56: NHS North Durham CCG | G56: A83018 | H56: CONSETT MEDICAL CENTRE | I56: 18,778 | Q56: Durham, Darlington, Teesside, Hambleton, Richmondshire and Whitby | R56: NHS South Tees CCG | S56: NHS Barking and Dagenham CCGHALBUTT STREET SURGERY | T56: NHS Barking and Dagenham CCG | U56: HALBUTT STREET SURGERY | V56: 6782 | W56: OK | X56: =INDEX(PopulationTable,SMALL(IF(($X$4=$T$3:$T$7439),ROW($T$3:$T$7439)-MIN(ROW($T$3:$T$7439))+1,""),ROW(S51)),2) ->  | AG56: NHS EASTERN CHESHIRE CCG | AH56: 24
A57: NHS North Durham CCGTHE MEDICAL GROUP | B57: Durham, Darlington, Teesside, Hambleton, Richmondshire and WhitbyNHS North Durham CCGTHE MEDICAL GROUP | C57: North | D57: Durham, Darlington, Teesside, Hambleton, Richmondshire and Whitby | E57: 00J | F57: NHS North Durham CCG | G57: A83022 | H57: THE MEDICAL GROUP | I57: 24,521 | Q57: East London | R57: All | S57: NHS Barking and Dagenham CCGHEALTH 1000 LTD | T57: NHS Barking and Dagenham CCG | U57: HEALTH 1000 LTD | V57: 1 | W57: OK | X57: =INDEX(PopulationTable,SMALL(IF(($X$4=$T$3:$T$7439),ROW($T$3:$T$7439)-MIN(ROW($T$3:$T$7439))+1,""),ROW(S52)),2) ->  | AG57: NHS ENFIELD CCG | AH57: 47
A58: NHS North Durham CCGSTANLEY MEDICAL GROUP | B58: Durham, Darlington, Teesside, Hambleton, Richmondshire and WhitbyNHS North Durham CCGSTANLEY MEDICAL GROUP | C58: North | D58: Durham, Darlington, Teesside, Hambleton, Richmondshire and Whitby | E58: 00J | F58: NHS North Durham CCG | G58: A83023 | H58: STANLEY MEDICAL GROUP | I58: 11,576 | Q58: East London | R58: NHS Barking and Dagenham CCG | S58: NHS Barking and Dagenham CCGHEATHWAY MEDICAL CENTRE | T58: NHS Barking and Dagenham CCG | U58: HEATHWAY MEDICAL CENTRE | V58: 4891 | W58: OK | X58: =INDEX(PopulationTable,SMALL(IF(($X$4=$T$3:$T$7439),ROW($T$3:$T$7439)-MIN(ROW($T$3:$T$7439))+1,""),ROW(S53)),2) ->  | AG58: NHS EREWASH CCG | AH58: 12
A59: NHS North Durham CCGWEST RAINTON SURGERY | B59: Durham, Darlington, Teesside, Hambleton, Richmondshire and WhitbyNHS North Durham CCGWEST RAINTON SURGERY | C59: North | D59: Durham, Darlington, Teesside, Hambleton, Richmondshire and Whitby | E59: 00J | F59: NHS North Durham CCG | G59: A83024 | H59: WEST RAINTON SURGERY | I59: 5,649 | Q59: East London | R59: NHS City and Hackney CCG | S59: NHS Barking and Dagenham CCGHIGHGROVE SURGERY | T59: NHS Barking and Dagenham CCG | U59: HIGHGROVE SURGERY | V59: 7958 | W59: OK | X59: =INDEX(PopulationTable,SMALL(IF(($X$4=$T$3:$T$7439),ROW($T$3:$T$7439)-MIN(ROW($T$3:$T$7439))+1,""),ROW(S54)),2) ->  | AG59: NHS FAREHAM AND GOSPORT CCG | AH59: 18
A60: NHS North Durham CCGSACRISTON MEDICAL CENTRE | B60: Durham, Darlington, Teesside, Hambleton, Richmondshire and WhitbyNHS North Durham CCGSACRISTON MEDICAL CENTRE | C60: North | D60: Durham, Darlington, Teesside, Hambleton, Richmondshire and Whitby | E60: 00J | F60: NHS North Durham CCG | G60: A83026 | H60: SACRISTON MEDICAL CENTRE | I60: 10,198 | Q60: East London | R60: NHS Havering CCG | S60: NHS Barking and Dagenham CCGJOHN SMITH MEDICAL CENTRE | T60: NHS Barking and Dagenham CCG | U60: JOHN SMITH MEDICAL CENTRE | V60: 2953 | W60: OK | X60: =INDEX(PopulationTable,SMALL(IF(($X$4=$T$3:$T$7439),ROW($T$3:$T$7439)-MIN(ROW($T$3:$T$7439))+1,""),ROW(S55)),2) ->  | AG60: NHS FYLDE AND WYRE CCG | AH60: 20
A61: NHS North Durham CCGCOXHOE MEDICAL PRACTICE | B61: Durham, Darlington, Teesside, Hambleton, Richmondshire and WhitbyNHS North Durham CCGCOXHOE MEDICAL PRACTICE | C61: North | D61: Durham, Darlington, Teesside, Hambleton, Richmondshire and Whitby | E61: 00J | F61: NHS North Durham CCG | G61: A83027 | H61: COXHOE MEDICAL PRACTICE | I61: 6,411 | Q61: East London | R61: NHS Newham CCG | S61: NHS Barking and Dagenham CCGKING EDWARDS MEDICAL CENTRE | T61: NHS Barking and Dagenham CCG | U61: KING EDWARDS MEDICAL CENTRE | V61: 8414 | W61: OK | X61: =INDEX(PopulationTable,SMALL(IF(($X$4=$T$3:$T$7439),ROW($T$3:$T$7439)-MIN(ROW($T$3:$T$7439))+1,""),ROW(S56)),2) ->  | AG61: NHS GLOUCESTERSHIRE CCG | AH61: 77
A62: NHS North Durham CCGMIDDLE CHARE MEDICAL GROUP | B62: Durham, Darlington, Teesside, Hambleton, Richmondshire and WhitbyNHS North Durham CCGMIDDLE CHARE MEDICAL GROUP | C62: North | D62: Durham, Darlington, Teesside, Hambleton, Richmondshire and Whitby | E62: 00J | F62: NHS North Durham CCG | G62: A83028 | H62: MIDDLE CHARE MEDICAL GROUP | I62: 9,625 | Q62: East London | R62: NHS Redbridge CCG | S62: NHS Barking and Dagenham CCGLABURNUM HEALTH CENTRE | T62: NHS Barking and Dagenham CCG | U62: LABURNUM HEALTH CENTRE | V62: 9876 | W62: OK | X62: =INDEX(PopulationTable,SMALL(IF(($X$4=$T$3:$T$7439),ROW($T$3:$T$7439)-MIN(ROW($T$3:$T$7439))+1,""),ROW(S57)),2) ->  | AG62: NHS GREAT YARMOUTH AND WAVENEY CCG | AH62: 20
A63: NHS North Durham CCGGREAT LUMLEY SURGERY | B63: Durham, Darlington, Teesside, Hambleton, Richmondshire and WhitbyNHS North Durham CCGGREAT LUMLEY SURGERY | C63: North | D63: Durham, Darlington, Teesside, Hambleton, Richmondshire and Whitby | E63: 00J | F63: NHS North Durham CCG | G63: A83029 | H63: GREAT LUMLEY SURGERY | I63: 4,934 | Q63: East London | R63: NHS Tower Hamlets CCG | S63: NHS Barking and Dagenham CCGMARKS GATE HEALTH CENTRE | T63: NHS Barking and Dagenham CCG | U63: MARKS GATE HEALTH CENTRE | V63: 4937 | W63: OK | X63: =INDEX(PopulationTable,SMALL(IF(($X$4=$T$3:$T$7439),ROW($T$3:$T$7439)-MIN(ROW($T$3:$T$7439))+1,""),ROW(S58)),2) ->  | AG63: NHS GREATER HUDDERSFIELD CCG | AH63: 37
A64: NHS North Durham CCGDUNELM MEDICAL PRACTICE | B64: Durham, Darlington, Teesside, Hambleton, Richmondshire and WhitbyNHS North Durham CCGDUNELM MEDICAL PRACTICE | C64: North | D64: Durham, Darlington, Teesside, Hambleton, Richmondshire and Whitby | E64: 00J | F64: NHS North Durham CCG | G64: A83030 | H64: DUNELM MEDICAL PRACTICE | I64: 13,024 | Q64: East London | R64: NHS Waltham Forest CCG | S64: NHS Barking and Dagenham CCGPORTERS AVENUE HEALTH CENTRE | T64: NHS Barking and Dagenham CCG | U64: PORTERS AVENUE HEALTH CENTRE | V64: 8888 | W64: OK | X64: =INDEX(PopulationTable,SMALL(IF(($X$4=$T$3:$T$7439),ROW($T$3:$T$7439)-MIN(ROW($T$3:$T$7439))+1,""),ROW(S59)),2) ->  | AG64: NHS GREATER PRESTON CCG | AH64: 26
A65: NHS North Durham CCGPELTON & FELLROSE MEDICAL GROUP | B65: Durham, Darlington, Teesside, Hambleton, Richmondshire and WhitbyNHS North Durham CCGPELTON & FELLROSE MEDICAL GROUP | C65: North | D65: Durham, Darlington, Teesside, Hambleton, Richmondshire and Whitby | E65: 00J | F65: NHS North Durham CCG | G65: A83033 | H65: PELTON & FELLROSE MEDICAL GROUP | I65: 8,908 | Q65: Frimley | R65: All | S65: NHS Barking and Dagenham CCGPRIME PRACTICE PARTNERSHIP | T65: NHS Barking and Dagenham CCG | U65: PRIME PRACTICE PARTNERSHIP | V65: 6553 | W65: OK | X65: =INDEX(PopulationTable,SMALL(IF(($X$4=$T$3:$T$7439),ROW($T$3:$T$7439)-MIN(ROW($T$3:$T$7439))+1,""),ROW(S60)),2) ->  | AG65: NHS GREENWICH CCG | AH65: 35
A66: NHS North Durham CCGCHASTLETON MEDICAL GROUP | B66: =D66&F66&H66 -> Durham, Darlington, Teesside, Hambleton, Richmondshire and WhitbyNHS North Durham CCGCHASTLETON MEDICAL GROUP | C66: North | D66: Durham, Darlington, Teesside, Hambleton, Richmondshire and Whitby | E66: 00J | F66: NHS North Durham CCG | G66: A83036 | H66: CHASTLETON MEDICAL GROUP | I66: 11,310 | Q66: Frimley | R66: NHS East Berkshire CCG | S66: NHS Barking and Dagenham CCGSHIFA MEDICAL PRACTICE | T66: NHS Barking and Dagenham CCG | U66: SHIFA MEDICAL PRACTICE | V66: 2202 | W66: OK | X66: =INDEX(PopulationTable,SMALL(IF(($X$4=$T$3:$T$7439),ROW($T$3:$T$7439)-MIN(ROW($T$3:$T$7439))+1,""),ROW(S61)),2) ->  | AG66: NHS GUILDFORD AND WAVERLEY CCG | AH66: 21
A67: =F67&H67 -> NHS North Durham CCGCEDARS MEDICAL GROUP | B67: Durham, Darlington, Teesside, Hambleton, Richmondshire and WhitbyNHS North Durham CCGCEDARS MEDICAL GROUP | C67: North | D67: Durham, Darlington, Teesside, Hambleton, Richmondshire and Whitby | E67: 00J | F67: NHS North Durham CCG | G67: A83038 | H67: CEDARS MEDICAL GROUP | I67: 5,759 | Q67: Frimley | R67: NHS North East Hampshire and Farnham CCG | S67: NHS Barking and Dagenham CCGST ALBANS SURGERY | T67: NHS Barking and Dagenham CCG | U67: ST ALBANS SURGERY | V67: 8084 | W67: OK | X67: =INDEX(PopulationTable,SMALL(IF(($X$4=$T$3:$T$7439),ROW($T$3:$T$7439)-MIN(ROW($T$3:$T$7439))+1,""),ROW(S62)),2) ->  | AG67: NHS HALTON CCG | AH67: 14
A68: NHS North Durham CCGQUEENS ROAD SURGERY | B68: Durham, Darlington, Teesside, Hambleton, Richmondshire and WhitbyNHS North Durham CCGQUEENS ROAD SURGERY | C68: North | D68: Durham, Darlington, Teesside, Hambleton, Richmondshire and Whitby | E68: 00J | F68: NHS North Durham CCG | G68: A83049 | H68: QUEENS ROAD SURGERY | I68: 13,719 | Q68: Frimley | R68: NHS Surrey Heath CCG | S68: =T68&U68 -> NHS Barking and Dagenham CCGTHE WHITE HOUSE SURGERY | T68: NHS Barking and Dagenham CCG | U68: THE WHITE HOUSE SURGERY | V68: 5496 | W68: OK | X68: =INDEX(PopulationTable,SMALL(IF(($X$4=$T$3:$T$7439),ROW($T$3:$T$7439)-MIN(ROW($T$3:$T$7439))+1,""),ROW(S63)),2) ->  | AG68: NHS HAMBLETON, RICHMONDSHIRE AND WHITBY CCG | AH68: 22
A69: NHS North Durham CCGCESTRIA HEALTH CENTRE | B69: Durham, Darlington, Teesside, Hambleton, Richmondshire and WhitbyNHS North Durham CCGCESTRIA HEALTH CENTRE | C69: North | D69: Durham, Darlington, Teesside, Hambleton, Richmondshire and Whitby | E69: 00J | F69: NHS North Durham CCG | G69: A83050 | H69: CESTRIA HEALTH CENTRE | I69: 12,457 | Q69: Gloucestershire | R69: All | S69: NHS Barking and Dagenham CCGTULASI MEDICAL CENTRE | T69: NHS Barking and Dagenham CCG | U69: TULASI MEDICAL CENTRE | V69: 21066 | W69: =IF(VLOOKUP(S69,A:I,9,FALSE)=V69,"OK","CHECK") -> OK | X69: =INDEX(PopulationTable,SMALL(IF(($X$4=$T$3:$T$7439),ROW($T$3:$T$7439)-MIN(ROW($T$3:$T$7439))+1,""),ROW(S64)),2) ->  | AG69: NHS HAMMERSMITH AND FULHAM CCG | AH69: 29
A70: NHS North Durham CCGCHEVELEY PARK MEDICAL CTR | B70: Durham, Darlington, Teesside, Hambleton, Richmondshire and WhitbyNHS North Durham CCGCHEVELEY PARK MEDICAL CTR | C70: North | D70: Durham, Darlington, Teesside, Hambleton, Richmondshire and Whitby | E70: 00J | F70: NHS North Durham CCG | G70: A83055 | H70: CHEVELEY PARK MEDICAL CTR | I70: 4,338 | Q70: Gloucestershire | R70: NHS Gloucestershire CCG | S70: NHS Barking and Dagenham CCGVICTORIA MEDICAL CENTRE | T70: NHS Barking and Dagenham CCG | U70: VICTORIA MEDICAL CENTRE | V70: 4871 | W70: OK | X70: =INDEX(PopulationTable,SMALL(IF(($X$4=$T$3:$T$7439),ROW($T$3:$T$7439)-MIN(ROW($T$3:$T$7439))+1,""),ROW(S65)),2) ->  | AG70: NHS HARDWICK CCG | AH70: 15
A71: NHS North Durham CCGLANCHESTER MEDICAL CENTRE | B71: Durham, Darlington, Teesside, Hambleton, Richmondshire and WhitbyNHS North Durham CCGLANCHESTER MEDICAL CENTRE | C71: North | D71: Durham, Darlington, Teesside, Hambleton, Richmondshire and Whitby | E71: 00J | F71: NHS North Durham CCG | G71: A83072 | H71: LANCHESTER MEDICAL CENTRE | I71: 4,226 | Q71: Greater Manchester | R71: All | S71: NHS Barnet CCGAll | T71: NHS Barnet CCG | U71: All | V71: 427977 | W71: OK | X71: =INDEX(PopulationTable,SMALL(IF(($X$4=$T$3:$T$7439),ROW($T$3:$T$7439)-MIN(ROW($T$3:$T$7439))+1,""),ROW(S66)),2) ->  | AG71: NHS HARINGEY CCG | AH71: 38
A72: NHS North Durham CCGDRS LAMBERT & NG | B72: Durham, Darlington, Teesside, Hambleton, Richmondshire and WhitbyNHS North Durham CCGDRS LAMBERT & NG | C72: North | D72: Durham, Darlington, Teesside, Hambleton, Richmondshire and Whitby | E72: 00J | F72: NHS North Durham CCG | G72: A83073 | H72: DRS LAMBERT & NG | I72: 5,157 | Q72: Greater Manchester | R72: NHS Bolton CCG | S72: NHS Barnet CCG188 THE PRACTICE | T72: NHS Barnet CCG | U72: 188 THE PRACTICE | V72: 7590 | W72: OK | X72: =INDEX(PopulationTable,SMALL(IF(($X$4=$T$3:$T$7439),ROW($T$3:$T$7439)-MIN(ROW($T$3:$T$7439))+1,""),ROW(S67)),2) ->  | AG72: NHS HARROGATE AND RURAL DISTRICT CCG | AH72: 17
A73: NHS North Durham CCGBROWNEY HOUSE SURGERY | B73: Durham, Darlington, Teesside, Hambleton, Richmondshire and WhitbyNHS North Durham CCGBROWNEY HOUSE SURGERY | C73: North | D73: Durham, Darlington, Teesside, Hambleton, Richmondshire and Whitby | E73: 00J | F73: NHS North Durham CCG | G73: A83617 | H73: BROWNEY HOUSE SURGERY | I73: 2,648 | Q73: Greater Manchester | R73: NHS Bury CCG | S73: NHS Barnet CCGADDINGTON MEDICAL CENTRE | T73: NHS Barnet CCG | U73: ADDINGTON MEDICAL CENTRE | V73: 9059 | W73: OK | X73: =INDEX(PopulationTable,SMALL(IF(($X$4=$T$3:$T$7439),ROW($T$3:$T$7439)-MIN(ROW($T$3:$T$7439))+1,""),ROW(S68)),2) ->  | AG73: NHS HARROW CCG | AH73: 35
A74: NHS North Durham CCGOAKFIELDS HEALTH GROUP | B74: Durham, Darlington, Teesside, Hambleton, Richmondshire and WhitbyNHS North Durham CCGOAKFIELDS HEALTH GROUP | C74: North | D74: Durham, Darlington, Teesside, Hambleton, Richmondshire and Whitby | E74: 00J | F74: NHS North Durham CCG | G74: A83618 | H74: OAKFIELDS HEALTH GROUP | I74: 7,281 | Q74: Greater Manchester | R74: NHS Heywood, Middleton and Rochdale CCG | S74: NHS Barnet CCGADLER JS-THE SURGERY | T74: NHS Barnet CCG | U74: ADLER JS-THE SURGERY | V74: 5845 | W74: OK | X74: =INDEX(PopulationTable,SMALL(IF(($X$4=$T$3:$T$7439),ROW($T$3:$T$7439)-MIN(ROW($T$3:$T$7439))+1,""),ROW(S69)),2) ->  | AG74: NHS HARTLEPOOL AND STOCKTON-ON-TEES CCG | AH74: 33
A75: NHS North Durham CCGTHE HAVEN SURGERY | B75: Durham, Darlington, Teesside, Hambleton, Richmondshire and WhitbyNHS North Durham CCGTHE HAVEN SURGERY | C75: North | D75: Durham, Darlington, Teesside, Hambleton, Richmondshire and Whitby | E75: 00J | F75: NHS North Durham CCG | G75: A83622 | H75: THE HAVEN SURGERY | I75: 1,635 | Q75: Greater Manchester | R75: NHS Manchester CCG | S75: NHS Barnet CCGBRUNSWICK PARK MEDICAL CENTRE | T75: NHS Barnet CCG | U75: BRUNSWICK PARK MEDICAL CENTRE | V75: 8543 | W75: OK | X75: =INDEX(PopulationTable,SMALL(IF(($X$4=$T$3:$T$7439),ROW($T$3:$T$7439)-MIN(ROW($T$3:$T$7439))+1,""),ROW(S70)),2) ->  | AG75: NHS HASTINGS AND ROTHER CCG | AH75: 25
A76: NHS North Durham CCGDENHOLM HOUSE | B76: Durham, Darlington, Teesside, Hambleton, Richmondshire and WhitbyNHS North Durham CCGDENHOLM HOUSE | C76: North | D76: Durham, Darlington, Teesside, Hambleton, Richmondshire and Whitby | E76: 00J | F76: NHS North Durham CCG | G76: A83630 | H76: DENHOLM HOUSE | I76: 2,394 | Q76: Greater Manchester | R76: NHS Oldham CCG | S76: NHS Barnet CCGCHERRY TREE SURGERY | T76: NHS Barnet CCG | U76: CHERRY TREE SURGERY | V76: 890 | W76: OK | X76: =INDEX(PopulationTable,SMALL(IF(($X$4=$T$3:$T$7439),ROW($T$3:$T$7439)-MIN(ROW($T$3:$T$7439))+1,""),ROW(S71)),2) ->  | AG76: NHS HAVERING CCG | AH76: 44
A77: NHS North Durham CCGCRAGHEAD MEDICAL CENTRE | B77: Durham, Darlington, Teesside, Hambleton, Richmondshire and WhitbyNHS North Durham CCGCRAGHEAD MEDICAL CENTRE | C77: North | D77: Durham, Darlington, Teesside, Hambleton, Richmondshire and Whitby | E77: 00J | F77: NHS North Durham CCG | G77: A83632 | H77: CRAGHEAD MEDICAL CENTRE | I77: 2,346 | Q77: Greater Manchester | R77: NHS Salford CCG | S77: NHS Barnet CCGCOLINDALE MEDICAL CENTRE LP | T77: NHS Barnet CCG | U77: COLINDALE MEDICAL CENTRE LP | V77: 8824 | W77: OK | X77: =INDEX(PopulationTable,SMALL(IF(($X$4=$T$3:$T$7439),ROW($T$3:$T$7439)-MIN(ROW($T$3:$T$7439))+1,""),ROW(S72)),2) ->  | AG77: NHS HEREFORDSHIRE CCG | AH77: 20
A78: NHS North Durham CCGBOWBURN MEDICAL CENTRE | B78: Durham, Darlington, Teesside, Hambleton, Richmondshire and WhitbyNHS North Durham CCGBOWBURN MEDICAL CENTRE | C78: North | D78: Durham, Darlington, Teesside, Hambleton, Richmondshire and Whitby | E78: 00J | F78: NHS North Durham CCG | G78: A83635 | H78: BOWBURN MEDICAL CENTRE | I78: 4,110 | Q78: Greater Manchester | R78: NHS Stockport CCG | S78: NHS Barnet CCGCOLNEY HATCH LANE SURGERY | T78: NHS Barnet CCG | U78: COLNEY HATCH LANE SURGERY | V78: 5426 | W78: OK | X78: =INDEX(PopulationTable,SMALL(IF(($X$4=$T$3:$T$7439),ROW($T$3:$T$7439)-MIN(ROW($T$3:$T$7439))+1,""),ROW(S73)),2) ->  | AG78: NHS HERTS VALLEYS CCG | AH78: 64
A79: NHS North Durham CCGLEADGATE SURGERY | B79: Durham, Darlington, Teesside, Hambleton, Richmondshire and WhitbyNHS North Durham CCGLEADGATE SURGERY | C79: North | D79: Durham, Darlington, Teesside, Hambleton, Richmondshire and Whitby | E79: 00J | F79: NHS North Durham CCG | G79: A83636 | H79: LEADGATE SURGERY | I79: 5,951 | Q79: Greater Manchester | R79: NHS Tameside and Glossop CCG | S79: NHS Barnet CCGCORNWALL HOUSE SURGERY | T79: NHS Barnet CCG | U79: CORNWALL HOUSE SURGERY | V79: 6413 | W79: OK | X79: =INDEX(PopulationTable,SMALL(IF(($X$4=$T$3:$T$7439),ROW($T$3:$T$7439)-MIN(ROW($T$3:$T$7439))+1,""),ROW(S74)),2) ->  | AG79: NHS HEYWOOD, MIDDLETON AND ROCHDALE CCG | AH79: 36
A80: NHS North Durham CCGGARDINER CRESCENT | B80: Durham, Darlington, Teesside, Hambleton, Richmondshire and WhitbyNHS North Durham CCGGARDINER CRESCENT | C80: North | D80: Durham, Darlington, Teesside, Hambleton, Richmondshire and Whitby | E80: 00J | F80: NHS North Durham CCG | G80: A83637 | H80: GARDINER CRESCENT | I80: 2,079 | Q80: Greater Manchester | R80: NHS Trafford CCG | S80: NHS Barnet CCGCRICKLEWOOD HEALTH CENTRE | T80: NHS Barnet CCG | U80: CRICKLEWOOD HEALTH CENTRE | V80: 4740 | W80: OK | X80: =INDEX(PopulationTable,SMALL(IF(($X$4=$T$3:$T$7439),ROW($T$3:$T$7439)-MIN(ROW($T$3:$T$7439))+1,""),ROW(S75)),2) ->  | AG80: NHS HIGH WEALD LEWES HAVENS CCG | AH80: 19
A81: NHS North Durham CCGANNFIELD PLAIN SURGERY | B81: Durham, Darlington, Teesside, Hambleton, Richmondshire and WhitbyNHS North Durham CCGANNFIELD PLAIN SURGERY | C81: North | D81: Durham, Darlington, Teesside, Hambleton, Richmondshire and Whitby | E81: 00J | F81: NHS North Durham CCG | G81: A83644 | H81: ANNFIELD PLAIN SURGERY | I81: 3,527 | Q81: Greater Manchester | R81: NHS Wigan Borough CCG | S81: NHS Barnet CCGDERWENT CRESCENT MEDICAL CENTRE | T81: NHS Barnet CCG | U81: DERWENT CRESCENT MEDICAL CENTRE | V81: 5580 | W81: OK | X81: =INDEX(PopulationTable,SMALL(IF(($X$4=$T$3:$T$7439),ROW($T$3:$T$7439)-MIN(ROW($T$3:$T$7439))+1,""),ROW(S76)),2) ->  | AG81: NHS HILLINGDON CCG | AH81: 45
A82: NHS North Durham CCGAll | B82: Durham, Darlington, Teesside, Hambleton, Richmondshire and WhitbyNHS North Durham CCGAll | C82: North | D82: Durham, Darlington, Teesside, Hambleton, Richmondshire and Whitby | E82: 00J | F82: NHS North Durham CCG | H82: All | I82: 262,469 | Q82: Hampshire and the Isle of Wight | R82: All | S82: NHS Barnet CCGDR AZIM & PARTNERS | T82: NHS Barnet CCG | U82: DR AZIM & PARTNERS | V82: 9157 | W82: OK | X82: =INDEX(PopulationTable,SMALL(IF(($X$4=$T$3:$T$7439),ROW($T$3:$T$7439)-MIN(ROW($T$3:$T$7439))+1,""),ROW(S77)),2) ->  | AG82: NHS HORSHAM AND MID SUSSEX CCG | AH82: 23
A83: NHS Hartlepool and Stockton-on-Tees CCGTHE DENSHAM SURGERY | B83: Durham, Darlington, Teesside, Hambleton, Richmondshire and WhitbyNHS Hartlepool and Stockton-on-Tees CCGTHE DENSHAM SURGERY | C83: North | D83: Durham, Darlington, Teesside, Hambleton, Richmondshire and Whitby | E83: 00K | F83: NHS Hartlepool and Stockton-on-Tees CCG | G83: A81001 | H83: THE DENSHAM SURGERY | I83: 4,088 | Q83: Hampshire and the Isle of Wight | R83: NHS Fareham and Gosport CCG | S83: NHS Barnet CCGDR SP TALPAHEWA | T83: NHS Barnet CCG | U83: DR SP TALPAHEWA | V83: 4252 | W83: OK | X83: =INDEX(PopulationTable,SMALL(IF(($X$4=$T$3:$T$7439),ROW($T$3:$T$7439)-MIN(ROW($T$3:$T$7439))+1,""),ROW(S78)),2) ->  | AG83: NHS HOUNSLOW CCG | AH83: 47
A84: NHS Hartlepool and Stockton-on-Tees CCGQUEENS PARK MEDICAL CENTRE | B84: Durham, Darlington, Teesside, Hambleton, Richmondshire and WhitbyNHS Hartlepool and Stockton-on-Tees CCGQUEENS PARK MEDICAL CENTRE | C84: North | D84: Durham, Darlington, Teesside, Hambleton, Richmondshire and Whitby | E84: 00K | F84: NHS Hartlepool and Stockton-on-Tees CCG | G84: A81002 | H84: QUEENS PARK MEDICAL CENTRE | I84: 19,599 | Q84: Hampshire and the Isle of Wight | R84: NHS Isle of Wight CCG | S84: NHS Barnet CCGEAST FINCHLEY MEDICAL CENTRE | T84: NHS Barnet CCG | U84: EAST FINCHLEY MEDICAL CENTRE | V84: 7799 | W84: OK | X84: =INDEX(PopulationTable,SMALL(IF(($X$4=$T$3:$T$7439),ROW($T$3:$T$7439)-MIN(ROW($T$3:$T$7439))+1,""),ROW(S79)),2) ->  | AG84: NHS HULL CCG | AH84: 39
A85: NHS Hartlepool and Stockton-on-Tees CCGTENNANT STREET MEDICAL PRACTICE | B85: Durham, Darlington, Teesside, Hambleton, Richmondshire and WhitbyNHS Hartlepool and Stockton-on-Tees CCGTENNANT STREET MEDICAL PRACTICE | C85: North | D85: Durham, Darlington, Teesside, Hambleton, Richmondshire and Whitby | E85: 00K | F85: NHS Hartlepool and Stockton-on-Tees CCG | G85: A81006 | H85: TENNANT STREET MEDICAL PRACTICE | I85: 14,585 | Q85: Hampshire and the Isle of Wight | R85: NHS North Hampshire CCG | S85: NHS Barnet CCGEBHC DR CJ PESKIN | T85: NHS Barnet CCG | U85: EBHC DR CJ PESKIN | V85: 4507 | W85: OK | X85: =INDEX(PopulationTable,SMALL(IF(($X$4=$T$3:$T$7439),ROW($T$3:$T$7439)-MIN(ROW($T$3:$T$7439))+1,""),ROW(S80)),2) ->  | AG85: NHS IPSWICH AND EAST SUFFOLK CCG | AH85: 40
A86: NHS Hartlepool and Stockton-on-Tees CCGBANKHOUSE SURGERY | B86: Durham, Darlington, Teesside, Hambleton, Richmondshire and WhitbyNHS Hartlepool and Stockton-on-Tees CCGBANKHOUSE SURGERY | C86: North | D86: Durham, Darlington, Teesside, Hambleton, Richmondshire and Whitby | E86: 00K | F86: NHS Hartlepool and Stockton-on-Tees CCG | G86: A81007 | H86: BANKHOUSE SURGERY | I86: 10,011 | Q86: Hampshire and the Isle of Wight | R86: NHS Portsmouth CCG | S86: NHS Barnet CCGEBHC DR D MONKMAN | T86: NHS Barnet CCG | U86: EBHC DR D MONKMAN | V86: 3070 | W86: OK | X86: =INDEX(PopulationTable,SMALL(IF(($X$4=$T$3:$T$7439),ROW($T$3:$T$7439)-MIN(ROW($T$3:$T$7439))+1,""),ROW(S81)),2) ->  | AG86: NHS ISLE OF WIGHT CCG | AH86: 16
A87: NHS Hartlepool and Stockton-on-Tees CCGCHADWICK PRACTICE | B87: Durham, Darlington, Teesside, Hambleton, Richmondshire and WhitbyNHS Hartlepool and Stockton-on-Tees CCGCHADWICK PRACTICE | C87: North | D87: Durham, Darlington, Teesside, Hambleton, Richmondshire and Whitby | E87: 00K | F87: NHS Hartlepool and Stockton-on-Tees CCG | G87: A81011 | H87: CHADWICK PRACTICE | I87: 11,930 | Q87: Hampshire and the Isle of Wight | R87: NHS South Eastern Hampshire CCG | S87: NHS Barnet CCGEBHC DR P WESTON | T87: NHS Barnet CCG | U87: EBHC DR P WESTON | V87: 3608 | W87: OK | X87: =INDEX(PopulationTable,SMALL(IF(($X$4=$T$3:$T$7439),ROW($T$3:$T$7439)-MIN(ROW($T$3:$T$7439))+1,""),ROW(S82)),2) ->  | AG87: NHS ISLINGTON CCG | AH87: 33
A88: NHS Hartlepool and Stockton-on-Tees CCGQUEENSTREE PRACTICE | B88: Durham, Darlington, Teesside, Hambleton, Richmondshire and WhitbyNHS Hartlepool and Stockton-on-Tees CCGQUEENSTREE PRACTICE | C88: North | D88: Durham, Darlington, Teesside, Hambleton, Richmondshire and Whitby | E88: 00K | F88: NHS Hartlepool and Stockton-on-Tees CCG | G88: A81014 | H88: QUEENSTREE PRACTICE | I88: 3,815 | Q88: Hampshire and the Isle of Wight | R88: NHS Southampton CCG | S88: NHS Barnet CCGFRIERN BARNET MEDICAL CENTRE | T88: NHS Barnet CCG | U88: FRIERN BARNET MEDICAL CENTRE | V88: 9037 | W88: OK | X88: =INDEX(PopulationTable,SMALL(IF(($X$4=$T$3:$T$7439),ROW($T$3:$T$7439)-MIN(ROW($T$3:$T$7439))+1,""),ROW(S83)),2) ->  | AG88: NHS KERNOW CCG | AH88: 62
A89: NHS Hartlepool and Stockton-on-Tees CCGWOODBRIDGE PRACTICE | B89: Durham, Darlington, Teesside, Hambleton, Richmondshire and WhitbyNHS Hartlepool and Stockton-on-Tees CCGWOODBRIDGE PRACTICE | C89: North | D89: Durham, Darlington, Teesside, Hambleton, Richmondshire and Whitby | E89: 00K | F89: NHS Hartlepool and Stockton-on-Tees CCG | G89: A81017 | H89: WOODBRIDGE PRACTICE | I89: 19,177 | Q89: Hampshire and the Isle of Wight | R89: NHS West Hampshire CCG | S89: NHS Barnet CCGGLOUCESTER ROAD SURGERY | T89: NHS Barnet CCG | U89: GLOUCESTER ROAD SURGERY | V89: 1801 | W89: OK | X89: =INDEX(PopulationTable,SMALL(IF(($X$4=$T$3:$T$7439),ROW($T$3:$T$7439)-MIN(ROW($T$3:$T$7439))+1,""),ROW(S84)),2) ->  | AG89: NHS KINGSTON CCG | AH89: 21
A90: NHS Hartlepool and Stockton-on-Tees CCGTHE DOVECOT SURGERY | B90: Durham, Darlington, Teesside, Hambleton, Richmondshire and WhitbyNHS Hartlepool and Stockton-on-Tees CCGTHE DOVECOT SURGERY | C90: North | D90: Durham, Darlington, Teesside, Hambleton, Richmondshire and Whitby | E90: 00K | F90: NHS Hartlepool and Stockton-on-Tees CCG | G90: A81025 | H90: THE DOVECOT SURGERY | I90: 4,029 | Q90: Herefordshire and Worcestershire | R90: All | S90: NHS Barnet CCGGREENFIELD MEDICAL CENTRE | T90: NHS Barnet CCG | U90: GREENFIELD MEDICAL CENTRE | V90: 6886 | W90: OK | X90: =INDEX(PopulationTable,SMALL(IF(($X$4=$T$3:$T$7439),ROW($T$3:$T$7439)-MIN(ROW($T$3:$T$7439))+1,""),ROW(S85)),2) ->  | AG90: NHS KNOWSLEY CCG | AH90: 25
A91: NHS Hartlepool and Stockton-on-Tees CCGYARM MEDICAL PRACTICE | B91: Durham, Darlington, Teesside, Hambleton, Richmondshire and WhitbyNHS Hartlepool and Stockton-on-Tees CCGYARM MEDICAL PRACTICE | C91: North | D91: Durham, Darlington, Teesside, Hambleton, Richmondshire and Whitby | E91: 00K | F91: NHS Hartlepool and Stockton-on-Tees CCG | G91: A81027 | H91: YARM MEDICAL PRACTICE | I91: 14,803 | Q91: Herefordshire and Worcestershire | R91: NHS Herefordshire CCG | S91: NHS Barnet CCGHEATHFIELDE MEDICAL CENTRE | T91: NHS Barnet CCG | U91: HEATHFIELDE MEDICAL CENTRE | V91: 8135 | W91: OK | X91: =INDEX(PopulationTable,SMALL(IF(($X$4=$T$3:$T$7439),ROW($T$3:$T$7439)-MIN(ROW($T$3:$T$7439))+1,""),ROW(S86)),2) ->  | AG91: NHS LAMBETH CCG | AH91: 43
A92: NHS Hartlepool and Stockton-on-Tees CCGHAVELOCK GRANGE PRACTICE | B92: Durham, Darlington, Teesside, Hambleton, Richmondshire and WhitbyNHS Hartlepool and Stockton-on-Tees CCGHAVELOCK GRANGE PRACTICE | C92: North | D92: Durham, Darlington, Teesside, Hambleton, Richmondshire and Whitby | E92: 00K | F92: NHS Hartlepool and Stockton-on-Tees CCG | G92: A81031 | H92: HAVELOCK GRANGE PRACTICE | I92: 12,797 | Q92: Herefordshire and Worcestershire | R92: NHS Redditch and Bromsgrove CCG | S92: NHS Barnet CCGHENDON WAY SURGERY | T92: NHS Barnet CCG | U92: HENDON WAY SURGERY | V92: 8486 | W92: OK | X92: =INDEX(PopulationTable,SMALL(IF(($X$4=$T$3:$T$7439),ROW($T$3:$T$7439)-MIN(ROW($T$3:$T$7439))+1,""),ROW(S87)),2) ->  | AG92: NHS LEEDS CCG | AH92: 104
A93: NHS Hartlepool and Stockton-on-Tees CCGTHORNABY & BARWICK MEDICAL GROUP | B93: Durham, Darlington, Teesside, Hambleton, Richmondshire and WhitbyNHS Hartlepool and Stockton-on-Tees CCGTHORNABY & BARWICK MEDICAL GROUP | C93: North | D93: Durham, Darlington, Teesside, Hambleton, Richmondshire and Whitby | E93: 00K | F93: NHS Hartlepool and Stockton-on-Tees CCG | G93: A81034 | H93: THORNABY & BARWICK MEDICAL GROUP | I93: 22,042 | Q93: Herefordshire and Worcestershire | R93: NHS South Worcestershire CCG | S93: NHS Barnet CCGHOLLY PARK CLINIC | T93: NHS Barnet CCG | U93: HOLLY PARK CLINIC | V93: 538 | W93: OK | X93: =INDEX(PopulationTable,SMALL(IF(($X$4=$T$3:$T$7439),ROW($T$3:$T$7439)-MIN(ROW($T$3:$T$7439))+1,""),ROW(S88)),2) ->  | AG93: NHS LEICESTER CITY CCG | AH93: 56
A94: NHS Hartlepool and Stockton-on-Tees CCGNORTON MEDICAL CENTRE | B94: Durham, Darlington, Teesside, Hambleton, Richmondshire and WhitbyNHS Hartlepool and Stockton-on-Tees CCGNORTON MEDICAL CENTRE | C94: North | D94: Durham, Darlington, Teesside, Hambleton, Richmondshire and Whitby | E94: 00K | F94: NHS Hartlepool and Stockton-on-Tees CCG | G94: A81036 | H94: NORTON MEDICAL CENTRE | I94: 17,626 | Q94: Herefordshire and Worcestershire | R94: NHS Wyre Forest CCG | S94: NHS Barnet CCGJAI MEDICAL CENTRE | T94: NHS Barnet CCG | U94: JAI MEDICAL CENTRE | V94: 8301 | W94: OK | X94: =INDEX(PopulationTable,SMALL(IF(($X$4=$T$3:$T$7439),ROW($T$3:$T$7439)-MIN(ROW($T$3:$T$7439))+1,""),ROW(S89)),2) ->  | AG94: NHS LEWISHAM CCG | AH94: 38
A95: NHS Hartlepool and Stockton-on-Tees CCGEAGLESCLIFFE MEDICAL PRACTICE | B95: Durham, Darlington, Teesside, Hambleton, Richmondshire and WhitbyNHS Hartlepool and Stockton-on-Tees CCGEAGLESCLIFFE MEDICAL PRACTICE | C95: North | D95: Durham, Darlington, Teesside, Hambleton, Richmondshire and Whitby | E95: 00K | F95: NHS Hartlepool and Stockton-on-Tees CCG | G95: A81039 | H95: EAGLESCLIFFE MEDICAL PRACTICE | I95: 10,452 | Q95: Hertfordshire and West Essex | R95: All | S95: NHS Barnet CCGLANE END MEDICAL GROUP | T95: NHS Barnet CCG | U95: LANE END MEDICAL GROUP | V95: 13133 | W95: OK | X95: =INDEX(PopulationTable,SMALL(IF(($X$4=$T$3:$T$7439),ROW($T$3:$T$7439)-MIN(ROW($T$3:$T$7439))+1,""),ROW(S90)),2) ->  | AG95: NHS LINCOLNSHIRE EAST CCG | AH95: 26
A96: NHS Hartlepool and Stockton-on-Tees CCGMARSH HOUSE MEDICAL PRACTICE | B96: Durham, Darlington, Teesside, Hambleton, Richmondshire and WhitbyNHS Hartlepool and Stockton-on-Tees CCGMARSH HOUSE MEDICAL PRACTICE | C96: North | D96: Durham, Darlington, Teesside, Hambleton, Richmondshire and Whitby | E96: 00K | F96: NHS Hartlepool and Stockton-on-Tees CCG | G96: A81040 | H96: MARSH HOUSE MEDICAL PRACTICE | I96: 8,537 | Q96: Hertfordshire and West Essex | R96: NHS Basildon and Brentwood CCG | S96: NHS Barnet CCGLANGSTONE WAY SURGERY | T96: NHS Barnet CCG | U96: LANGSTONE WAY SURGERY | V96: 7989 | W96: OK | X96: =INDEX(PopulationTable,SMALL(IF(($X$4=$T$3:$T$7439),ROW($T$3:$T$7439)-MIN(ROW($T$3:$T$7439))+1,""),ROW(S91)),2) ->  | AG96: NHS LINCOLNSHIRE WEST CCG | AH96: 30
A97: NHS Hartlepool and Stockton-on-Tees CCGHART MEDICAL PRACTICE | B97: Durham, Darlington, Teesside, Hambleton, Richmondshire and WhitbyNHS Hartlepool and Stockton-on-Tees CCGHART MEDICAL PRACTICE | C97: North | D97: Durham, Darlington, Teesside, Hambleton, Richmondshire and Whitby | E97: 00K | F97: NHS Hartlepool and Stockton-on-Tees CCG | G97: A81041 | H97: HART MEDICAL PRACTICE | I97: 9,254 | Q97: Hertfordshire and West Essex | R97: NHS Castle Point and Rochford CCG | S97: NHS Barnet CCGLICHFIELD GROVE SURGERY | T97: NHS Barnet CCG | U97: LICHFIELD GROVE SURGERY | V97: 6254 | W97: OK | X97: =INDEX(PopulationTable,SMALL(IF(($X$4=$T$3:$T$7439),ROW($T$3:$T$7439)-MIN(ROW($T$3:$T$7439))+1,""),ROW(S92)),2) ->  | AG97: NHS LIVERPOOL CCG | AH97: 89
A98: NHS Hartlepool and Stockton-on-Tees CCGMCKENZIE HOUSE SURGERY | B98: Durham, Darlington, Teesside, Hambleton, Richmondshire and WhitbyNHS Hartlepool and Stockton-on-Tees CCGMCKENZIE HOUSE SURGERY | C98: North | D98: Durham, Darlington, Teesside, Hambleton, Richmondshire and Whitby | E98: 00K | F98: NHS Hartlepool and Stockton-on-Tees CCG | G98: A81044 | H98: MCKENZIE HOUSE SURGERY | I98: 18,827 | Q98: Hertfordshire and West Essex | R98: NHS East and North Hertfordshire CCG | S98: NHS Barnet CCGLONGROVE SURGERY | T98: NHS Barnet CCG | U98: LONGROVE SURGERY | V98: 11326 | W98: OK | X98: =INDEX(PopulationTable,SMALL(IF(($X$4=$T$3:$T$7439),ROW($T$3:$T$7439)-MIN(ROW($T$3:$T$7439))+1,""),ROW(S93)),2) ->  | AG98: NHS LUTON CCG | AH98: 27
A99: NHS Hartlepool and Stockton-on-Tees CCGWOODLANDS FAMILY MEDICAL CENTRE | B99: Durham, Darlington, Teesside, Hambleton, Richmondshire and WhitbyNHS Hartlepool and Stockton-on-Tees CCGWOODLANDS FAMILY MEDICAL CENTRE | C99: North | D99: Durham, Darlington, Teesside, Hambleton, Richmondshire and Whitby | E99: 00K | F99: NHS Hartlepool and Stockton-on-Tees CCG | G99: A81046 | H99: WOODLANDS FAMILY MEDICAL CENTRE | I99: 12,449 | Q99: Hertfordshire and West Essex | R99: NHS Herts Valleys CCG | S99: NHS Barnet CCGMILLWAY MEDICAL PRACTICE | T99: NHS Barnet CCG | U99: MILLWAY MEDICAL PRACTICE | V99: 18473 | W99: OK | X99: =INDEX(PopulationTable,SMALL(IF(($X$4=$T$3:$T$7439),ROW($T$3:$T$7439)-MIN(ROW($T$3:$T$7439))+1,""),ROW(S94)),2) ->  | AG99: NHS MANCHESTER CCG | AH99: 89
A100: NHS Hartlepool and Stockton-on-Tees CCGMELROSE SURGERY | B100: Durham, Darlington, Teesside, Hambleton, Richmondshire and WhitbyNHS Hartlepool and Stockton-on-Tees CCGMELROSE SURGERY | C100: North | D100: Durham, Darlington, Teesside, Hambleton, Richmondshire and Whitby | E100: 00K | F100: NHS Hartlepool and Stockton-on-Tees CCG | G100: A81056 | H100: MELROSE SURGERY | I100: 2,601 | Q100: Hertfordshire and West Essex | R100: NHS Mid Essex CCG | S100: NHS Barnet CCGMULBERRY MEDICAL PRACTICE | T100: NHS Barnet CCG | U100: MULBERRY MEDICAL PRACTICE | V100: 9948 | W100: OK | X100: =INDEX(PopulationTable,SMALL(IF(($X$4=$T$3:$T$7439),ROW($T$3:$T$7439)-MIN(ROW($T$3:$T$7439))+1,""),ROW(S95)),2) ->  | AG100: NHS MANSFIELD AND ASHFIELD CCG | AH100: 27
A101: NHS Hartlepool and Stockton-on-Tees CCGKINGSWAY MEDICAL CENTRE | B101: Durham, Darlington, Teesside, Hambleton, Richmondshire and WhitbyNHS Hartlepool and Stockton-on-Tees CCGKINGSWAY MEDICAL CENTRE | C101: North | D101: Durham, Darlington, Teesside, Hambleton, Richmondshire and Whitby | E101: 00K | F101: NHS Hartlepool and Stockton-on-Tees CCG | G101: A81057 | H101: KINGSWAY MEDICAL CENTRE | I101: 9,022 | Q101: Hertfordshire and West Essex | R101: NHS North East Essex CCG | S101: NHS Barnet CCGOAK LODGE MEDICAL CENTRE | T101: NHS Barnet CCG | U101: OAK LODGE MEDICAL CENTRE | V101: 18481 | W101: OK | X101: =INDEX(PopulationTable,SMALL(IF(($X$4=$T$3:$T$7439),ROW($T$3:$T$7439)-MIN(ROW($T$3:$T$7439))+1,""),ROW(S96)),2) ->  | AG101: NHS MEDWAY CCG | AH101: 49
A102: NHS Hartlepool and Stockton-on-Tees CCGTHE KOH PRACTICE | B102: Durham, Darlington, Teesside, Hambleton, Richmondshire and WhitbyNHS Hartlepool and Stockton-on-Tees CCGTHE KOH PRACTICE | C102: North | D102: Durham, Darlington, Teesside, Hambleton, Richmondshire and Whitby | E102: 00K | F102: NHS Hartlepool and Stockton-on-Tees CCG | G102: A81060 | H102: THE KOH PRACTICE | I102: 5,750 | Q102: Hertfordshire and West Essex | R102: NHS Southend CCG | S102: NHS Barnet CCGOAKLEIGH ROAD HEALTH CENTRE | T102: NHS Barnet CCG | U102: OAKLEIGH ROAD HEALTH CENTRE | V102: 8930 | W102: OK | X102: =INDEX(PopulationTable,SMALL(IF(($X$4=$T$3:$T$7439),ROW($T$3:$T$7439)-MIN(ROW($T$3:$T$7439))+1,""),ROW(S97)),2) ->  | AG102: NHS MERTON CCG | AH102: 23
A103: NHS Hartlepool and Stockton-on-Tees CCGTHE HEADLAND MEDICAL CENTRE | B103: Durham, Darlington, Teesside, Hambleton, Richmondshire and WhitbyNHS Hartlepool and Stockton-on-Tees CCGTHE HEADLAND MEDICAL CENTRE | C103: North | D103: Durham, Darlington, Teesside, Hambleton, Richmondshire and Whitby | E103: 00K | F103: NHS Hartlepool and Stockton-on-Tees CCG | G103: A81063 | H103: THE HEADLAND MEDICAL CENTRE | I103: 5,484 | Q103: Hertfordshire and West Essex | R103: NHS Thurrock CCG | S103: NHS Barnet CCGPARKVIEW SURGERY | T103: NHS Barnet CCG | U103: PARKVIEW SURGERY | V103: 6555 | W103: OK | X103: =INDEX(PopulationTable,SMALL(IF(($X$4=$T$3:$T$7439),ROW($T$3:$T$7439)-MIN(ROW($T$3:$T$7439))+1,""),ROW(S98)),2) ->  | AG103: NHS MID ESSEX CCG | AH103: 44
A104: NHS Hartlepool and Stockton-on-Tees CCGPARK LANE SURGERY | B104: Durham, Darlington, Teesside, Hambleton, Richmondshire and WhitbyNHS Hartlepool and Stockton-on-Tees CCGPARK LANE SURGERY | C104: North | D104: Durham, Darlington, Teesside, Hambleton, Richmondshire and Whitby | E104: 00K | F104: NHS Hartlepool and Stockton-on-Tees CCG | G104: A81066 | H104: PARK LANE SURGERY | I104: 4,555 | Q104: Hertfordshire and West Essex | R104: NHS West Essex CCG | S104: NHS Barnet CCGPENNINE DRIVE PRACTICE | T104: NHS Barnet CCG | U104: PENNINE DRIVE PRACTICE | V104: 8990 | W104: OK | X104: =INDEX(PopulationTable,SMALL(IF(($X$4=$T$3:$T$7439),ROW($T$3:$T$7439)-MIN(ROW($T$3:$T$7439))+1,""),ROW(S99)),2) ->  | AG104: NHS MILTON KEYNES CCG | AH104: 27
A105: NHS Hartlepool and Stockton-on-Tees CCGALMA MEDICAL CENTRE | B105: Durham, Darlington, Teesside, Hambleton, Richmondshire and WhitbyNHS Hartlepool and Stockton-on-Tees CCGALMA MEDICAL CENTRE | C105: North | D105: Durham, Darlington, Teesside, Hambleton, Richmondshire and Whitby | E105: 00K | F105: NHS Hartlepool and Stockton-on-Tees CCG | G105: A81067 | H105: ALMA MEDICAL CENTRE | I105: 11,524 | Q105: Humber, Coast and Vale | R105: All | S105: NHS Barnet CCGPENSHURST GARDENS SURGERY | T105: NHS Barnet CCG | U105: PENSHURST GARDENS SURGERY | V105: 6631 | W105: OK | X105: =INDEX(PopulationTable,SMALL(IF(($X$4=$T$3:$T$7439),ROW($T$3:$T$7439)-MIN(ROW($T$3:$T$7439))+1,""),ROW(S100)),2) ->  | AG105: NHS MORECAMBE BAY CCG | AH105: 35
A106: NHS Hartlepool and Stockton-on-Tees CCGMCKENZIE GROUP PRACTICE | B106: Durham, Darlington, Teesside, Hambleton, Richmondshire and WhitbyNHS Hartlepool and Stockton-on-Tees CCGMCKENZIE GROUP PRACTICE | C106: North | D106: Durham, Darlington, Teesside, Hambleton, Richmondshire and Whitby | E106: 00K | F106: NHS Hartlepool and Stockton-on-Tees CCG | G106: A81070 | H106: MCKENZIE GROUP PRACTICE | I106: 7,049 | Q106: Humber, Coast and Vale | R106: NHS East Riding of Yorkshire CCG | S106: NHS Barnet CCGPHGH DOCTORS | T106: NHS Barnet CCG | U106: PHGH DOCTORS | V106: 10945 | W106: OK | X106: =INDEX(PopulationTable,SMALL(IF(($X$4=$T$3:$T$7439),ROW($T$3:$T$7439)-MIN(ROW($T$3:$T$7439))+1,""),ROW(S101)),2) ->  | AG106: NHS NENE CCG | AH106: 66
A107: NHS Hartlepool and Stockton-on-Tees CCGDR RASOOL | B107: Durham, Darlington, Teesside, Hambleton, Richmondshire and WhitbyNHS Hartlepool and Stockton-on-Tees CCGDR RASOOL | C107: North | D107: Durham, Darlington, Teesside, Hambleton, Richmondshire and Whitby | E107: 00K | F107: NHS Hartlepool and Stockton-on-Tees CCG | G107: A81602 | H107: DR RASOOL | I107: 2,481 | Q107: Humber, Coast and Vale | R107: NHS Hull CCG | S107: NHS Barnet CCGRAVENSCROFT MEDICAL CENTRE | T107: NHS Barnet CCG | U107: RAVENSCROFT MEDICAL CENTRE | V107: 7351 | W107: OK | X107: =INDEX(PopulationTable,SMALL(IF(($X$4=$T$3:$T$7439),ROW($T$3:$T$7439)-MIN(ROW($T$3:$T$7439))+1,""),ROW(S102)),2) ->  | AG107: NHS NEWARK AND SHERWOOD CCG | AH107: 14
A108: NHS Hartlepool and Stockton-on-Tees CCGELM TREE SURGERY | B108: Durham, Darlington, Teesside, Hambleton, Richmondshire and WhitbyNHS Hartlepool and Stockton-on-Tees CCGELM TREE SURGERY | C108: North | D108: Durham, Darlington, Teesside, Hambleton, Richmondshire and Whitby | E108: 00K | F108: NHS Hartlepool and Stockton-on-Tees CCG | G108: A81608 | H108: ELM TREE SURGERY | I108: 4,596 | Q108: Humber, Coast and Vale | R108: NHS North East Lincolnshire CCG | S108: NHS Barnet CCGROSEMARY SURGERY | T108: NHS Barnet CCG | U108: ROSEMARY SURGERY | V108: 5286 | W108: OK | X108: =INDEX(PopulationTable,SMALL(IF(($X$4=$T$3:$T$7439),ROW($T$3:$T$7439)-MIN(ROW($T$3:$T$7439))+1,""),ROW(S103)),2) ->  | AG108: NHS NEWCASTLE GATESHEAD CCG | AH108: 62
A109: NHS Hartlepool and Stockton-on-Tees CCGTHE ROSEBERRY PRACTICE | B109: Durham, Darlington, Teesside, Hambleton, Richmondshire and WhitbyNHS Hartlepool and Stockton-on-Tees CCGTHE ROSEBERRY PRACTICE | C109: North | D109: Durham, Darlington, Teesside, Hambleton, Richmondshire and Whitby | E109: 00K | F109: NHS Hartlepool and Stockton-on-Tees CCG | G109: A81610 | H109: THE ROSEBERRY PRACTICE | I109: 7,836 | Q109: Humber, Coast and Vale | R109: NHS North Lincolnshire CCG | S109: NHS Barnet CCGSQUIRES LANE MEDICAL PRACTICE | T109: NHS Barnet CCG | U109: SQUIRES LANE MEDICAL PRACTICE | V109: 5799 | W109: OK | X109: =INDEX(PopulationTable,SMALL(IF(($X$4=$T$3:$T$7439),ROW($T$3:$T$7439)-MIN(ROW($T$3:$T$7439))+1,""),ROW(S104)),2) ->  | AG109: NHS NEWHAM CCG | AH109: 53
A110: NHS Hartlepool and Stockton-on-Tees CCGTHE PATEL PRACTICE | B110: Durham, Darlington, Teesside, Hambleton, Richmondshire and WhitbyNHS Hartlepool and Stockton-on-Tees CCGTHE PATEL PRACTICE | C110: North | D110: Durham, Darlington, Teesside, Hambleton, Richmondshire and Whitby | E110: 00K | F110: NHS Hartlepool and Stockton-on-Tees CCG | G110: A81612 | H110: THE PATEL PRACTICE | I110: 3,352 | Q110: Humber, Coast and Vale | R110: NHS Scarborough and Ryedale CCG | S110: NHS Barnet CCGST ANDREWS MEDICAL PRACTICE. | T110: NHS Barnet CCG | U110: ST ANDREWS MEDICAL PRACTICE. | V110: 10882 | W110: OK | X110: =INDEX(PopulationTable,SMALL(IF(($X$4=$T$3:$T$7439),ROW($T$3:$T$7439)-MIN(ROW($T$3:$T$7439))+1,""),ROW(S105)),2) ->  | AG110: NHS NORTH CUMBRIA CCG | AH110: 40
A111: NHS Hartlepool and Stockton-on-Tees CCGGLADSTONE HOUSE SURGERY | B111: Durham, Darlington, Teesside, Hambleton, Richmondshire and WhitbyNHS Hartlepool and Stockton-on-Tees CCGGLADSTONE HOUSE SURGERY | C111: North | D111: Durham, Darlington, Teesside, Hambleton, Richmondshire and Whitby | E111: 00K | F111: NHS Hartlepool and Stockton-on-Tees CCG | G111: A81622 | H111: GLADSTONE HOUSE SURGERY | I111: 5,535 | Q111: Humber, Coast and Vale | R111: NHS Vale of York CCG | S111: NHS Barnet CCGST. GEORGES MEDICAL CENTRE | T111: NHS Barnet CCG | U111: ST. GEORGES MEDICAL CENTRE | V111: 11110 | W111: OK | X111: =INDEX(PopulationTable,SMALL(IF(($X$4=$T$3:$T$7439),ROW($T$3:$T$7439)-MIN(ROW($T$3:$T$7439))+1,""),ROW(S106)),2) ->  | AG111: NHS NORTH DERBYSHIRE CCG | AH111: 34
A112: NHS Hartlepool and Stockton-on-Tees CCGRIVERSIDE MEDICAL PRACTICE | B112: Durham, Darlington, Teesside, Hambleton, Richmondshire and WhitbyNHS Hartlepool and Stockton-on-Tees CCGRIVERSIDE MEDICAL PRACTICE | C112: North | D112: Durham, Darlington, Teesside, Hambleton, Richmondshire and Whitby | E112: 00K | F112: NHS Hartlepool and Stockton-on-Tees CCG | G112: A81629 | H112: RIVERSIDE MEDICAL PRACTICE | I112: 4,879 | Q112: Kent & Medway | R112: All | S112: NHS Barnet CCGSTATION ROAD NEW BARNET SURGERY | T112: NHS Barnet CCG | U112: STATION ROAD NEW BARNET SURGERY | V112: 798 | W112: OK | X112: =INDEX(PopulationTable,SMALL(IF(($X$4=$T$3:$T$7439),ROW($T$3:$T$7439)-MIN(ROW($T$3:$T$7439))+1,""),ROW(S107)),2) ->  | AG112: NHS NORTH DURHAM CCG | AH112: 30
A113: NHS Hartlepool and Stockton-on-Tees CCGWEST VIEW MILLENIUM SURGERY A | B113: Durham, Darlington, Teesside, Hambleton, Richmondshire and WhitbyNHS Hartlepool and Stockton-on-Tees CCGWEST VIEW MILLENIUM SURGERY A | C113: North | D113: Durham, Darlington, Teesside, Hambleton, Richmondshire and Whitby | E113: 00K | F113: NHS Hartlepool and Stockton-on-Tees CCG | G113: A81631 | H113: WEST VIEW MILLENIUM SURGERY A | I113: 6,742 | Q113: Kent & Medway | R113: NHS Ashford CCG | S113: NHS Barnet CCGSUPREME MEDICAL CENTRE | T113: NHS Barnet CCG | U113: SUPREME MEDICAL CENTRE | V113: 4356 | W113: OK | X113: =INDEX(PopulationTable,SMALL(IF(($X$4=$T$3:$T$7439),ROW($T$3:$T$7439)-MIN(ROW($T$3:$T$7439))+1,""),ROW(S108)),2) ->  | AG113: NHS NORTH EAST ESSEX CCG | AH113: 36
A114: NHS Hartlepool and Stockton-on-Tees CCGLAWSON STREET PRACTICE | B114: Durham, Darlington, Teesside, Hambleton, Richmondshire and WhitbyNHS Hartlepool and Stockton-on-Tees CCGLAWSON STREET PRACTICE | C114: North | D114: Durham, Darlington, Teesside, Hambleton, Richmondshire and Whitby | E114: 00K | F114: NHS Hartlepool and Stockton-on-Tees CCG | G114: A81632 | H114: LAWSON STREET PRACTICE | I114: 432 | Q114: Kent & Medway | R114: NHS Canterbury and Coastal CCG | S114: NHS Barnet CCGTEMPLE FORTUNE MEDICAL GROUP | T114: NHS Barnet CCG | U114: TEMPLE FORTUNE MEDICAL GROUP | V114: 7262 | W114: OK | X114: =INDEX(PopulationTable,SMALL(IF(($X$4=$T$3:$T$7439),ROW($T$3:$T$7439)-MIN(ROW($T$3:$T$7439))+1,""),ROW(S109)),2) ->  | AG114: NHS NORTH EAST HAMPSHIRE AND FARNHAM CCG | AH114: 21
A115: NHS Hartlepool and Stockton-on-Tees CCGTHE ARRIVAL PRACTICE | B115: Durham, Darlington, Teesside, Hambleton, Richmondshire and WhitbyNHS Hartlepool and Stockton-on-Tees CCGTHE ARRIVAL PRACTICE | C115: North | D115: Durham, Darlington, Teesside, Hambleton, Richmondshire and Whitby | E115: 00K | F115: NHS Hartlepool and Stockton-on-Tees CCG | G115: A81634 | H115: THE ARRIVAL PRACTICE | I115: 2,360 | Q115: Kent & Medway | R115: NHS Dartford, Gravesham and Swanley CCG | S115: NHS Barnet CCGTHE EVERGLADE MEDICAL PRACTICE | T115: NHS Barnet CCG | U115: THE EVERGLADE MEDICAL PRACTICE | V115: 8267 | W115: OK | X115: =INDEX(PopulationTable,SMALL(IF(($X$4=$T$3:$T$7439),ROW($T$3:$T$7439)-MIN(ROW($T$3:$T$7439))+1,""),ROW(S110)),2) ->  | AG115: NHS NORTH EAST LINCOLNSHIRE CCG | AH115: 26
A116: NHS Hartlepool and Stockton-on-Tees CCGAll | B116: Durham, Darlington, Teesside, Hambleton, Richmondshire and WhitbyNHS Hartlepool and Stockton-on-Tees CCGAll | C116: North | D116: Durham, Darlington, Teesside, Hambleton, Richmondshire and Whitby | E116: 00K | F116: NHS Hartlepool and Stockton-on-Tees CCG | H116: All | I116: 298,219 | Q116: Kent & Medway | R116: NHS Medway CCG | S116: NHS Barnet CCGTHE HILLVIEW SURGERY | T116: NHS Barnet CCG | U116: THE HILLVIEW SURGERY | V116: 1876 | W116: OK | X116: =INDEX(PopulationTable,SMALL(IF(($X$4=$T$3:$T$7439),ROW($T$3:$T$7439)-MIN(ROW($T$3:$T$7439))+1,""),ROW(S111)),2) ->  | AG116: NHS NORTH HAMPSHIRE CCG | AH116: 16
A117: NHS Northumberland CCGTHE ROTHBURY PRACTICE | B117: Northumberland, Tyne and Wear and North DurhamNHS Northumberland CCGTHE ROTHBURY PRACTICE | C117: North | D117: Northumberland, Tyne and Wear and North Durham | E117: 00L | F117: NHS Northumberland CCG | G117: A84002 | H117: THE ROTHBURY PRACTICE | I117: 5,801 | Q117: Kent & Medway | R117: NHS South Kent Coast CCG | S117: NHS Barnet CCGTHE HODFORD ROAD PRACTICE | T117: NHS Barnet CCG | U117: THE HODFORD ROAD PRACTICE | V117: 3658 | W117: OK | X117: =INDEX(PopulationTable,SMALL(IF(($X$4=$T$3:$T$7439),ROW($T$3:$T$7439)-MIN(ROW($T$3:$T$7439))+1,""),ROW(S112)),2) ->  | AG117: NHS NORTH KIRKLEES CCG | AH117: 28
A118: NHS Northumberland CCGLINTONVILLE MEDICAL GROUP | B118: Northumberland, Tyne and Wear and North DurhamNHS Northumberland CCGLINTONVILLE MEDICAL GROUP | C118: North | D118: Northumberland, Tyne and Wear and North Durham | E118: 00L | F118: NHS Northumberland CCG | G118: A84003 | H118: LINTONVILLE MEDICAL GROUP | I118: 13,562 | Q118: Kent & Medway | R118: NHS Swale CCG | S118: NHS Barnet CCGTHE MOUNTFIELD SURGERY | T118: NHS Barnet CCG | U118: THE MOUNTFIELD SURGERY | V118: 5009 | W118: OK | X118: =INDEX(PopulationTable,SMALL(IF(($X$4=$T$3:$T$7439),ROW($T$3:$T$7439)-MIN(ROW($T$3:$T$7439))+1,""),ROW(S113)),2) ->  | AG118: NHS NORTH LINCOLNSHIRE CCG | AH118: 19
A119: NHS Northumberland CCGBEDLINGTONSHIRE MED.GROUP | B119: Northumberland, Tyne and Wear and North DurhamNHS Northumberland CCGBEDLINGTONSHIRE MED.GROUP | C119: North | D119: Northumberland, Tyne and Wear and North Durham | E119: 00L | F119: NHS Northumberland CCG | G119: A84005 | H119: BEDLINGTONSHIRE MED.GROUP | I119: 11,767 | Q119: Kent & Medway | R119: NHS Thanet CCG | S119: NHS Barnet CCGTHE OLD COURT HOUSE SURGERY | T119: NHS Barnet CCG | U119: THE OLD COURT HOUSE SURGERY | V119: 8307 | W119: OK | X119: =INDEX(PopulationTable,SMALL(IF(($X$4=$T$3:$T$7439),ROW($T$3:$T$7439)-MIN(ROW($T$3:$T$7439))+1,""),ROW(S114)),2) ->  | AG119: NHS NORTH NORFOLK CCG | AH119: 19
A120: NHS Northumberland CCGALNWICK MEDICAL GROUP | B120: Northumberland, Tyne and Wear and North DurhamNHS Northumberland CCGALNWICK MEDICAL GROUP | C120: North | D120: Northumberland, Tyne and Wear and North Durham | E120: 00L | F120: NHS Northumberland CCG | G120: A84006 | H120: ALNWICK MEDICAL GROUP | I120: 18,456 | Q120: Kent & Medway | R120: NHS West Kent CCG | S120: NHS Barnet CCGTHE PHOENIX PRACTICE | T120: NHS Barnet CCG | U120: THE PHOENIX PRACTICE | V120: 9985 | W120: OK | X120: =INDEX(PopulationTable,SMALL(IF(($X$4=$T$3:$T$7439),ROW($T$3:$T$7439)-MIN(ROW($T$3:$T$7439))+1,""),ROW(S115)),2) ->  | AG120: NHS NORTH STAFFORDSHIRE CCG | AH120: 32
A121: NHS Northumberland CCGPONTELAND MEDICAL GROUP | B121: Northumberland, Tyne and Wear and North DurhamNHS Northumberland CCGPONTELAND MEDICAL GROUP | C121: North | D121: Northumberland, Tyne and Wear and North Durham | E121: 00L | F121: NHS Northumberland CCG | G121: A84007 | H121: PONTELAND MEDICAL GROUP | I121: 10,014 | Q121: Lancashire and South Cumbria | R121: All | S121: NHS Barnet CCGTHE SPEEDWELL PRACTICE | T121: NHS Barnet CCG | U121: THE SPEEDWELL PRACTICE | V121: 11442 | W121: OK | X121: =INDEX(PopulationTable,SMALL(IF(($X$4=$T$3:$T$7439),ROW($T$3:$T$7439)-MIN(ROW($T$3:$T$7439))+1,""),ROW(S116)),2) ->  | AG121: NHS NORTH TYNESIDE CCG | AH121: 29
A122: NHS Northumberland CCGBELFORD MEDICAL PRACTICE | B122: Northumberland, Tyne and Wear and North DurhamNHS Northumberland CCGBELFORD MEDICAL PRACTICE | C122: North | D122: Northumberland, Tyne and Wear and North Durham | E122: 00L | F122: NHS Northumberland CCG | G122: A84008 | H122: BELFORD MEDICAL PRACTICE | I122: 4,459 | Q122: Lancashire and South Cumbria | R122: NHS Blackburn with Darwen CCG | S122: NHS Barnet CCGTHE VILLAGE SURGERY | T122: NHS Barnet CCG | U122: THE VILLAGE SURGERY | V122: 5207 | W122: OK | X122: =INDEX(PopulationTable,SMALL(IF(($X$4=$T$3:$T$7439),ROW($T$3:$T$7439)-MIN(ROW($T$3:$T$7439))+1,""),ROW(S117)),2) ->  | AG122: NHS NORTH WEST SURREY CCG | AH122: 40
A123: NHS Northumberland CCGRAILWAY MEDICAL GROUP | B123: Northumberland, Tyne and Wear and North DurhamNHS Northumberland CCGRAILWAY MEDICAL GROUP | C123: North | D123: Northumberland, Tyne and Wear and North Durham | E123: 00L | F123: NHS Northumberland CCG | G123: A84009 | H123: RAILWAY MEDICAL GROUP | I123: 25,666 | Q123: Lancashire and South Cumbria | R123: NHS Blackpool CCG | S123: NHS Barnet CCGTORRINGTON PARK GROUP PRACTICE | T123: NHS Barnet CCG | U123: TORRINGTON PARK GROUP PRACTICE | V123: 12562 | W123: OK | X123: =INDEX(PopulationTable,SMALL(IF(($X$4=$T$3:$T$7439),ROW($T$3:$T$7439)-MIN(ROW($T$3:$T$7439))+1,""),ROW(S118)),2) ->  | AG123: NHS NORTHERN, EASTERN AND WESTERN DEVON CCG | AH123: 105
A124: NHS Northumberland CCGWHITE MEDICAL GROUP | B124: Northumberland, Tyne and Wear and North DurhamNHS Northumberland CCGWHITE MEDICAL GROUP | C124: North | D124: Northumberland, Tyne and Wear and North Durham | E124: 00L | F124: NHS Northumberland CCG | G124: A84011 | H124: WHITE MEDICAL GROUP | I124: 7,519 | Q124: Lancashire and South Cumbria | R124: NHS Chorley and South Ribble CCG | S124: NHS Barnet CCGVALE DRIVE MEDICAL PRACTICE | T124: NHS Barnet CCG | U124: VALE DRIVE MEDICAL PRACTICE | V124: 5558 | W124: OK | X124: =INDEX(PopulationTable,SMALL(IF(($X$4=$T$3:$T$7439),ROW($T$3:$T$7439)-MIN(ROW($T$3:$T$7439))+1,""),ROW(S119)),2) ->  | AG124: NHS NORTHUMBERLAND CCG | AH124: 42
A125: NHS Northumberland CCGTHE GABLES MEDICAL GROUP | B125: Northumberland, Tyne and Wear and North DurhamNHS Northumberland CCGTHE GABLES MEDICAL GROUP | C125: North | D125: Northumberland, Tyne and Wear and North Durham | E125: 00L | F125: NHS Northumberland CCG | G125: A84013 | H125: THE GABLES MEDICAL GROUP | I125: 6,165 | Q125: Lancashire and South Cumbria | R125: NHS East Lancashire CCG | S125: NHS Barnet CCGWAKEMANS HILL SURGERY | T125: NHS Barnet CCG | U125: WAKEMANS HILL SURGERY | V125: 4667 | W125: OK | X125: =INDEX(PopulationTable,SMALL(IF(($X$4=$T$3:$T$7439),ROW($T$3:$T$7439)-MIN(ROW($T$3:$T$7439))+1,""),ROW(S120)),2) ->  | AG125: NHS NORWICH CCG | AH125: 23
A126: NHS Northumberland CCGMARINE MEDICAL GROUP | B126: Northumberland, Tyne and Wear and North DurhamNHS Northumberland CCGMARINE MEDICAL GROUP | C126: North | D126: Northumberland, Tyne and Wear and North Durham | E126: 00L | F126: NHS Northumberland CCG | G126: A84014 | H126: MARINE MEDICAL GROUP | I126: 12,580 | Q126: Lancashire and South Cumbria | R126: NHS Fylde and Wyre CCG | S126: NHS Barnet CCGWATFORD WAY CENTRE LIMITED | T126: NHS Barnet CCG | U126: WATFORD WAY CENTRE LIMITED | V126: 435 | W126: OK | X126: =INDEX(PopulationTable,SMALL(IF(($X$4=$T$3:$T$7439),ROW($T$3:$T$7439)-MIN(ROW($T$3:$T$7439))+1,""),ROW(S121)),2) ->  | AG126: NHS NOTTINGHAM CITY CCG | AH126: 54
A127: NHS Northumberland CCGLABURNUM SURGERY | B127: Northumberland, Tyne and Wear and North DurhamNHS Northumberland CCGLABURNUM SURGERY | C127: North | D127: Northumberland, Tyne and Wear and North Durham | E127: 00L | F127: NHS Northumberland CCG | G127: A84015 | H127: LABURNUM SURGERY | I127: 2,445 | Q127: Lancashire and South Cumbria | R127: NHS Greater Preston CCG | S127: NHS Barnet CCGWATLING MEDICAL CENTRE | T127: NHS Barnet CCG | U127: WATLING MEDICAL CENTRE | V127: 16213 | W127: OK | X127: =INDEX(PopulationTable,SMALL(IF(($X$4=$T$3:$T$7439),ROW($T$3:$T$7439)-MIN(ROW($T$3:$T$7439))+1,""),ROW(S122)),2) ->  | AG127: NHS NOTTINGHAM NORTH AND EAST CCG | AH127: 19
A128: NHS Northumberland CCGPRUDHOE MEDICAL GROUP | B128: =D128&F128&H128 -> Northumberland, Tyne and Wear and North DurhamNHS Northumberland CCGPRUDHOE MEDICAL GROUP | C128: North | D128: Northumberland, Tyne and Wear and North Durham | E128: 00L | F128: NHS Northumberland CCG | G128: A84016 | H128: PRUDHOE MEDICAL GROUP | I128: 6,817 | Q128: Lancashire and South Cumbria | R128: NHS Morecambe Bay CCG | S128: NHS Barnet CCGWENTWORTH MEDICAL PRACTICE. | T128: NHS Barnet CCG | U128: WENTWORTH MEDICAL PRACTICE. | V128: 11407 | W128: OK | X128: =INDEX(PopulationTable,SMALL(IF(($X$4=$T$3:$T$7439),ROW($T$3:$T$7439)-MIN(ROW($T$3:$T$7439))+1,""),ROW(S123)),2) ->  | AG128: NHS NOTTINGHAM WEST CCG | AH128: 11
A129: NHS Northumberland CCGCORBRIDGE HEALTH CENTRE | B129: Northumberland, Tyne and Wear and North DurhamNHS Northumberland CCGCORBRIDGE HEALTH CENTRE | C129: North | D129: Northumberland, Tyne and Wear and North Durham | E129: 00L | F129: NHS Northumberland CCG | G129: A84018 | H129: CORBRIDGE HEALTH CENTRE | I129: 6,987 | Q129: Lancashire and South Cumbria | R129: NHS North Cumbria CCG | S129: NHS Barnet CCGWOODLANDS MEDICAL PRACTICE | T129: NHS Barnet CCG | U129: WOODLANDS MEDICAL PRACTICE | V129: 4398 | W129: OK | X129: =INDEX(PopulationTable,SMALL(IF(($X$4=$T$3:$T$7439),ROW($T$3:$T$7439)-MIN(ROW($T$3:$T$7439))+1,""),ROW(S124)),2) ->  | AG129: NHS OLDHAM CCG | AH129: 43
A130: NHS Northumberland CCGGUIDEPOST MEDICAL GROUP | B130: Northumberland, Tyne and Wear and North DurhamNHS Northumberland CCGGUIDEPOST MEDICAL GROUP | C130: North | D130: Northumberland, Tyne and Wear and North Durham | E130: 00L | F130: NHS Northumberland CCG | G130: A84020 | H130: GUIDEPOST MEDICAL GROUP | I130: 8,134 | Q130: Lancashire and South Cumbria | R130: NHS West Lancashire CCG | S130: NHS Barnsley CCGAll | T130: NHS Barnsley CCG | U130: All | V130: 261722 | W130: OK | X130: =INDEX(PopulationTable,SMALL(IF(($X$4=$T$3:$T$7439),ROW($T$3:$T$7439)-MIN(ROW($T$3:$T$7439))+1,""),ROW(S125)),2) ->  | AG130: NHS OXFORDSHIRE CCG | AH130: 70
A131: =F131&H131 -> NHS Northumberland CCGCOQUET MEDICAL GROUP | B131: Northumberland, Tyne and Wear and North DurhamNHS Northumberland CCGCOQUET MEDICAL GROUP | C131: North | D131: Northumberland, Tyne and Wear and North Durham | E131: 00L | F131: NHS Northumberland CCG | G131: A84022 | H131: COQUET MEDICAL GROUP | I131: 11,771 | Q131: Leicester, Leicestershire and Rutland | R131: All | S131: NHS Barnsley CCGAPOLLO COURT MEDICAL CENTRE | T131: NHS Barnsley CCG | U131: APOLLO COURT MEDICAL CENTRE | V131: 5224 | W131: OK | X131: =INDEX(PopulationTable,SMALL(IF(($X$4=$T$3:$T$7439),ROW($T$3:$T$7439)-MIN(ROW($T$3:$T$7439))+1,""),ROW(S126)),2) ->  | AG131: NHS PORTSMOUTH CCG | AH131: 17
A132: NHS Northumberland CCGBURN BRAE MEDICAL GROUP | B132: Northumberland, Tyne and Wear and North DurhamNHS Northumberland CCGBURN BRAE MEDICAL GROUP | C132: North | D132: Northumberland, Tyne and Wear and North Durham | E132: 00L | F132: NHS Northumberland CCG | G132: A84024 | H132: BURN BRAE MEDICAL GROUP | I132: 9,603 | Q132: Leicester, Leicestershire and Rutland | R132: NHS East Leicestershire and Rutland CCG | S132: =T132&U132 -> NHS Barnsley CCGASHVILLE MEDICAL CENTRE PMS PRACTICE | T132: NHS Barnsley CCG | U132: ASHVILLE MEDICAL CENTRE PMS PRACTICE | V132: 11851 | W132: OK | X132: =INDEX(PopulationTable,SMALL(IF(($X$4=$T$3:$T$7439),ROW($T$3:$T$7439)-MIN(ROW($T$3:$T$7439))+1,""),ROW(S127)),2) ->  | AG132: NHS REDBRIDGE CCG | AH132: 44
A133: NHS Northumberland CCGCRAMLINGTON MEDICAL GROUP | B133: Northumberland, Tyne and Wear and North DurhamNHS Northumberland CCGCRAMLINGTON MEDICAL GROUP | C133: North | D133: Northumberland, Tyne and Wear and North Durham | E133: 00L | F133: NHS Northumberland CCG | G133: A84025 | H133: CRAMLINGTON MEDICAL GROUP | I133: 4,887 | Q133: Leicester, Leicestershire and Rutland | R133: NHS Leicester City CCG | S133: NHS Barnsley CCGBHF HIGHGATE SURGERY | T133: NHS Barnsley CCG | U133: BHF HIGHGATE SURGERY | V133: 3567 | W133: =IF(VLOOKUP(S133,A:I,9,FALSE)=V133,"OK","CHECK") -> OK | X133: =INDEX(PopulationTable,SMALL(IF(($X$4=$T$3:$T$7439),ROW($T$3:$T$7439)-MIN(ROW($T$3:$T$7439))+1,""),ROW(S128)),2) ->  | AG133: NHS REDDITCH AND BROMSGROVE CCG | AH133: 22
A134: NHS Northumberland CCGWELL CLOSE MEDICAL GROUP | B134: Northumberland, Tyne and Wear and North DurhamNHS Northumberland CCGWELL CLOSE MEDICAL GROUP | C134: North | D134: Northumberland, Tyne and Wear and North Durham | E134: 00L | F134: NHS Northumberland CCG | G134: A84026 | H134: WELL CLOSE MEDICAL GROUP | I134: 9,087 | Q134: Leicester, Leicestershire and Rutland | R134: NHS West Leicestershire CCG | S134: NHS Barnsley CCGBHF LUNDWOOD SURGERY | T134: NHS Barnsley CCG | U134: BHF LUNDWOOD SURGERY | V134: 3534 | W134: OK | X134: =INDEX(PopulationTable,SMALL(IF(($X$4=$T$3:$T$7439),ROW($T$3:$T$7439)-MIN(ROW($T$3:$T$7439))+1,""),ROW(S129)),2) ->  | AG134: NHS RICHMOND CCG | AH134: 28
A135: NHS Northumberland CCGBELLINGHAM PRACTICE | B135: Northumberland, Tyne and Wear and North DurhamNHS Northumberland CCGBELLINGHAM PRACTICE | C135: North | D135: Northumberland, Tyne and Wear and North Durham | E135: 00L | F135: NHS Northumberland CCG | G135: A84027 | H135: BELLINGHAM PRACTICE | I135: 3,362 | Q135: Lincolnshire | R135: All | S135: NHS Barnsley CCGBRIERLEY MEDICAL CENTRE | T135: NHS Barnsley CCG | U135: BRIERLEY MEDICAL CENTRE | V135: 2980 | W135: OK | X135: =INDEX(PopulationTable,SMALL(IF(($X$4=$T$3:$T$7439),ROW($T$3:$T$7439)-MIN(ROW($T$3:$T$7439))+1,""),ROW(S130)),2) ->  | AG135: NHS ROTHERHAM CCG | AH135: 30
A136: NHS Northumberland CCGSEATON PARK MEDICAL GROUP | B136: Northumberland, Tyne and Wear and North DurhamNHS Northumberland CCGSEATON PARK MEDICAL GROUP | C136: North | D136: Northumberland, Tyne and Wear and North Durham | E136: 00L | F136: NHS Northumberland CCG | G136: A84028 | H136: SEATON PARK MEDICAL GROUP | I136: 18,034 | Q136: Lincolnshire | R136: NHS Lincolnshire East CCG | S136: NHS Barnsley CCGBURLEIGH MEDICAL CENTRE | T136: NHS Barnsley CCG | U136: BURLEIGH MEDICAL CENTRE | V136: 11177 | W136: OK | X136: =INDEX(PopulationTable,SMALL(IF(($X$4=$T$3:$T$7439),ROW($T$3:$T$7439)-MIN(ROW($T$3:$T$7439))+1,""),ROW(S131)),2) ->  | AG136: NHS RUSHCLIFFE CCG | AH136: 12
A137: NHS Northumberland CCGWIDDRINGTON SURGERY | B137: Northumberland, Tyne and Wear and North DurhamNHS Northumberland CCGWIDDRINGTON SURGERY | C137: North | D137: Northumberland, Tyne and Wear and North Durham | E137: 00L | F137: NHS Northumberland CCG | G137: A84029 | H137: WIDDRINGTON SURGERY | I137: 2,666 | Q137: Lincolnshire | R137: NHS Lincolnshire West CCG | S137: NHS Barnsley CCGCAXTON HOUSE SURGERY | T137: NHS Barnsley CCG | U137: CAXTON HOUSE SURGERY | V137: 997 | W137: OK | X137: =INDEX(PopulationTable,SMALL(IF(($X$4=$T$3:$T$7439),ROW($T$3:$T$7439)-MIN(ROW($T$3:$T$7439))+1,""),ROW(S132)),2) ->  | AG137: NHS SALFORD CCG | AH137: 45
A138: NHS Northumberland CCGVILLAGE MEDICAL GROUP | B138: Northumberland, Tyne and Wear and North DurhamNHS Northumberland CCGVILLAGE MEDICAL GROUP | C138: North | D138: Northumberland, Tyne and Wear and North Durham | E138: 00L | F138: NHS Northumberland CCG | G138: A84030 | H138: VILLAGE MEDICAL GROUP | I138: 9,338 | Q138: Lincolnshire | R138: NHS South Lincolnshire CCG | S138: NHS Barnsley CCGDARTON HEALTH CENTRE PRACTICE | T138: NHS Barnsley CCG | U138: DARTON HEALTH CENTRE PRACTICE | V138: 3099 | W138: OK | X138: =INDEX(PopulationTable,SMALL(IF(($X$4=$T$3:$T$7439),ROW($T$3:$T$7439)-MIN(ROW($T$3:$T$7439))+1,""),ROW(S133)),2) ->  | AG138: NHS SANDWELL AND WEST BIRMINGHAM CCG | AH138: 86
A139: NHS Northumberland CCGGREYSTOKE SURGERY | B139: Northumberland, Tyne and Wear and North DurhamNHS Northumberland CCGGREYSTOKE SURGERY | C139: North | D139: Northumberland, Tyne and Wear and North Durham | E139: 00L | F139: NHS Northumberland CCG | G139: A84031 | H139: GREYSTOKE SURGERY | I139: 9,446 | Q139: Lincolnshire | R139: NHS South West Lincolnshire CCG | S139: NHS Barnsley CCGDEARNE VALLEY GROUP PRACTICE | T139: NHS Barnsley CCG | U139: DEARNE VALLEY GROUP PRACTICE | V139: 10223 | W139: OK | X139: =INDEX(PopulationTable,SMALL(IF(($X$4=$T$3:$T$7439),ROW($T$3:$T$7439)-MIN(ROW($T$3:$T$7439))+1,""),ROW(S134)),2) ->  | AG139: NHS SCARBOROUGH AND RYEDALE CCG | AH139: 12
A140: NHS Northumberland CCGCHEVIOT MEDICAL GROUP | B140: Northumberland, Tyne and Wear and North DurhamNHS Northumberland CCGCHEVIOT MEDICAL GROUP | C140: North | D140: Northumberland, Tyne and Wear and North Durham | E140: 00L | F140: NHS Northumberland CCG | G140: A84032 | H140: CHEVIOT MEDICAL GROUP | I140: 2,451 | Q140: Milton Keynes, Bedfordshire and Luton | R140: All | S140: NHS Barnsley CCGDR MELLOR & PARTNERS | T140: NHS Barnsley CCG | U140: DR MELLOR & PARTNERS | V140: 11924 | W140: OK | X140: =INDEX(PopulationTable,SMALL(IF(($X$4=$T$3:$T$7439),ROW($T$3:$T$7439)-MIN(ROW($T$3:$T$7439))+1,""),ROW(S135)),2) ->  | AG140: NHS SHEFFIELD CCG | AH140: 80
A141: NHS Northumberland CCGTHE SELE MEDICAL PRACTICE | B141: Northumberland, Tyne and Wear and North DurhamNHS Northumberland CCGTHE SELE MEDICAL PRACTICE | C141: North | D141: Northumberland, Tyne and Wear and North Durham | E141: 00L | F141: NHS Northumberland CCG | G141: A84033 | H141: THE SELE MEDICAL PRACTICE | I141: 6,062 | Q141: Milton Keynes, Bedfordshire and Luton | R141: NHS Bedfordshire CCG | S141: NHS Barnsley CCGGOLDTHORPE MEDICAL CENTRE PMS PRACTICE | T141: NHS Barnsley CCG | U141: GOLDTHORPE MEDICAL CENTRE PMS PRACTICE | V141: 4397 | W141: OK | X141: =INDEX(PopulationTable,SMALL(IF(($X$4=$T$3:$T$7439),ROW($T$3:$T$7439)-MIN(ROW($T$3:$T$7439))+1,""),ROW(S136)),2) ->  | AG141: NHS SHROPSHIRE CCG | AH141: 42
A142: NHS Northumberland CCGHALTWHISTLE MEDICAL GROUP | B142: Northumberland, Tyne and Wear and North DurhamNHS Northumberland CCGHALTWHISTLE MEDICAL GROUP | C142: North | D142: Northumberland, Tyne and Wear and North Durham | E142: 00L | F142: NHS Northumberland CCG | G142: A84034 | H142: HALTWHISTLE MEDICAL GROUP | I142: 5,609 | Q142: Milton Keynes, Bedfordshire and Luton | R142: NHS Luton CCG | S142: NHS Barnsley CCGGRIMETHORPE SURGERY | T142: NHS Barnsley CCG | U142: GRIMETHORPE SURGERY | V142: 6763 | W142: OK | X142: =INDEX(PopulationTable,SMALL(IF(($X$4=$T$3:$T$7439),ROW($T$3:$T$7439)-MIN(ROW($T$3:$T$7439))+1,""),ROW(S137)),2) ->  | AG142: NHS SOMERSET CCG | AH142: 66
A143: NHS Northumberland CCGRIVERSDALE SURGERY | B143: Northumberland, Tyne and Wear and North DurhamNHS Northumberland CCGRIVERSDALE SURGERY | C143: North | D143: Northumberland, Tyne and Wear and North Durham | E143: 00L | F143: NHS Northumberland CCG | G143: A84035 | H143: RIVERSDALE SURGERY | I143: 6,054 | Q143: Milton Keynes, Bedfordshire and Luton | R143: NHS Milton Keynes CCG | S143: NHS Barnsley CCGHIGH STREET PRACTICE | T143: NHS Barnsley CCG | U143: HIGH STREET PRACTICE | V143: 6105 | W143: OK | X143: =INDEX(PopulationTable,SMALL(IF(($X$4=$T$3:$T$7439),ROW($T$3:$T$7439)-MIN(ROW($T$3:$T$7439))+1,""),ROW(S138)),2) ->  | AG143: NHS SOUTH CHESHIRE CCG | AH143: 17
A144: NHS Northumberland CCGWELLWAY MEDICAL GROUP | B144: Northumberland, Tyne and Wear and North DurhamNHS Northumberland CCGWELLWAY MEDICAL GROUP | C144: North | D144: Northumberland, Tyne and Wear and North Durham | E144: 00L | F144: NHS Northumberland CCG | G144: A84036 | H144: WELLWAY MEDICAL GROUP | I144: 18,849 | Q144: Norfolk and Waveney | R144: All | S144: NHS Barnsley CCGHILL BROW SURGERY PMS PRACTICE | T144: NHS Barnsley CCG | U144: HILL BROW SURGERY PMS PRACTICE | V144: 17404 | W144: OK | X144: =INDEX(PopulationTable,SMALL(IF(($X$4=$T$3:$T$7439),ROW($T$3:$T$7439)-MIN(ROW($T$3:$T$7439))+1,""),ROW(S139)),2) ->  | AG144: NHS SOUTH DEVON AND TORBAY CCG | AH144: 29
A145: NHS Northumberland CCGNETHERFIELD HOUSE | B145: Northumberland, Tyne and Wear and North DurhamNHS Northumberland CCGNETHERFIELD HOUSE | C145: North | D145: Northumberland, Tyne and Wear and North Durham | E145: 00L | F145: NHS Northumberland CCG | G145: A84037 | H145: NETHERFIELD HOUSE | I145: 5,941 | Q145: Norfolk and Waveney | R145: NHS Great Yarmouth and Waveney CCG | S145: NHS Barnsley CCGHOLLYGREEN PRACTICE | T145: NHS Barnsley CCG | U145: HOLLYGREEN PRACTICE | V145: 10963 | W145: OK | X145: =INDEX(PopulationTable,SMALL(IF(($X$4=$T$3:$T$7439),ROW($T$3:$T$7439)-MIN(ROW($T$3:$T$7439))+1,""),ROW(S140)),2) ->  | AG145: NHS SOUTH EAST STAFFORDSHIRE AND SEISDON PENINSULA CCG | AH145: 26
A146: NHS Northumberland CCGFORUM FAMILY PRACTICE | B146: Northumberland, Tyne and Wear and North DurhamNHS Northumberland CCGFORUM FAMILY PRACTICE | C146: North | D146: Northumberland, Tyne and Wear and North Durham | E146: 00L | F146: NHS Northumberland CCG | G146: A84038 | H146: FORUM FAMILY PRACTICE | I146: 6,338 | Q146: Norfolk and Waveney | R146: NHS North Norfolk CCG | S146: NHS Barnsley CCGHOYLAND MEDICAL PRACTICE | T146: NHS Barnsley CCG | U146: HOYLAND MEDICAL PRACTICE | V146: 12013 | W146: OK | X146: =INDEX(PopulationTable,SMALL(IF(($X$4=$T$3:$T$7439),ROW($T$3:$T$7439)-MIN(ROW($T$3:$T$7439))+1,""),ROW(S141)),2) ->  | AG146: NHS SOUTH EASTERN HAMPSHIRE CCG | AH146: 20
A147: NHS Northumberland CCGGAS HOUSE LANE SURGERY | B147: Northumberland, Tyne and Wear and North DurhamNHS Northumberland CCGGAS HOUSE LANE SURGERY | C147: North | D147: Northumberland, Tyne and Wear and North Durham | E147: 00L | F147: NHS Northumberland CCG | G147: A84039 | H147: GAS HOUSE LANE SURGERY | I147: 5,570 | Q147: Norfolk and Waveney | R147: NHS Norwich CCG | S147: NHS Barnsley CCGHUDDERSFIELD ROAD SURGERY | T147: NHS Barnsley CCG | U147: HUDDERSFIELD ROAD SURGERY | V147: 13615 | W147: OK | X147: =INDEX(PopulationTable,SMALL(IF(($X$4=$T$3:$T$7439),ROW($T$3:$T$7439)-MIN(ROW($T$3:$T$7439))+1,""),ROW(S142)),2) ->  | AG147: NHS SOUTH KENT COAST CCG | AH147: 30
A148: NHS Northumberland CCGHUMSHAUGH & WARK MED GRP | B148: Northumberland, Tyne and Wear and North DurhamNHS Northumberland CCGHUMSHAUGH & WARK MED GRP | C148: North | D148: Northumberland, Tyne and Wear and North Durham | E148: 00L | F148: NHS Northumberland CCG | G148: A84040 | H148: HUMSHAUGH & WARK MED GRP | I148: 3,642 | Q148: Norfolk and Waveney | R148: NHS South Norfolk CCG | S148: NHS Barnsley CCGKINGSWELL SURGERY PMS PRACTICE | T148: NHS Barnsley CCG | U148: KINGSWELL SURGERY PMS PRACTICE | V148: 4051 | W148: OK | X148: =INDEX(PopulationTable,SMALL(IF(($X$4=$T$3:$T$7439),ROW($T$3:$T$7439)-MIN(ROW($T$3:$T$7439))+1,""),ROW(S143)),2) ->  | AG148: NHS SOUTH LINCOLNSHIRE CCG | AH148: 13
A149: NHS Northumberland CCGSCOTS GAP MEDICAL GROUP | B149: Northumberland, Tyne and Wear and North DurhamNHS Northumberland CCGSCOTS GAP MEDICAL GROUP | C149: North | D149: Northumberland, Tyne and Wear and North Durham | E149: 00L | F149: NHS Northumberland CCG | G149: A84042 | H149: SCOTS GAP MEDICAL GROUP | I149: 2,069 | Q149: Norfolk and Waveney | R149: NHS West Norfolk CCG | S149: NHS Barnsley CCGLAKESIDE SURGERY | T149: NHS Barnsley CCG | U149: LAKESIDE SURGERY | V149: 2392 | W149: OK | X149: =INDEX(PopulationTable,SMALL(IF(($X$4=$T$3:$T$7439),ROW($T$3:$T$7439)-MIN(ROW($T$3:$T$7439))+1,""),ROW(S144)),2) ->  | AG149: NHS SOUTH NORFOLK CCG | AH149: 24
A150: NHS Northumberland CCGBROCKWELL MEDICAL GROUP | B150: Northumberland, Tyne and Wear and North DurhamNHS Northumberland CCGBROCKWELL MEDICAL GROUP | C150: North | D150: Northumberland, Tyne and Wear and North Durham | E150: 00L | F150: NHS Northumberland CCG | G150: A84043 | H150: BROCKWELL MEDICAL GROUP | I150: 17,210 | Q150: North London | R150: All | S150: NHS Barnsley CCGLUNDWOOD MEDICAL CENTRE PMS PRACTICE | T150: NHS Barnsley CCG | U150: LUNDWOOD MEDICAL CENTRE PMS PRACTICE | V150: 4516 | W150: OK | X150: =INDEX(PopulationTable,SMALL(IF(($X$4=$T$3:$T$7439),ROW($T$3:$T$7439)-MIN(ROW($T$3:$T$7439))+1,""),ROW(S145)),2) ->  | AG150: NHS SOUTH SEFTON CCG | AH150: 30
A151: NHS Northumberland CCGUNION BRAE & NORHAM PRAC | B151: Northumberland, Tyne and Wear and North DurhamNHS Northumberland CCGUNION BRAE & NORHAM PRAC | C151: North | D151: Northumberland, Tyne and Wear and North Durham | E151: 00L | F151: NHS Northumberland CCG | G151: A84044 | H151: UNION BRAE & NORHAM PRAC | I151: 7,070 | Q151: North London | R151: NHS Barnet CCG | S151: NHS Barnsley CCGMONK BRETTON HEALTH CENTRE PRACTICE | T151: NHS Barnsley CCG | U151: MONK BRETTON HEALTH CENTRE PRACTICE | V151: 2137 | W151: OK | X151: =INDEX(PopulationTable,SMALL(IF(($X$4=$T$3:$T$7439),ROW($T$3:$T$7439)-MIN(ROW($T$3:$T$7439))+1,""),ROW(S146)),2) ->  | AG151: NHS SOUTH TEES CCG | AH151: 38
A152: NHS Northumberland CCGHAYDON BRIDGE & ALLENDALE MEDICAL PRACT | B152: Northumberland, Tyne and Wear and North DurhamNHS Northumberland CCGHAYDON BRIDGE & ALLENDALE MEDICAL PRACT | C152: North | D152: Northumberland, Tyne and Wear and North Durham | E152: 00L | F152: NHS Northumberland CCG | G152: A84045 | H152: HAYDON BRIDGE & ALLENDALE MEDICAL PRACT | I152: 5,371 | Q152: North London | R152: NHS Camden CCG | S152: NHS Barnsley CCGPENISTONE GROUP PMS PRACTICE | T152: NHS Barnsley CCG | U152: PENISTONE GROUP PMS PRACTICE | V152: 17108 | W152: OK | X152: =INDEX(PopulationTable,SMALL(IF(($X$4=$T$3:$T$7439),ROW($T$3:$T$7439)-MIN(ROW($T$3:$T$7439))+1,""),ROW(S147)),2) ->  | AG152: NHS SOUTH TYNESIDE CCG | AH152: 22
A153: NHS Northumberland CCGBRANCH END SURGERY | B153: Northumberland, Tyne and Wear and North DurhamNHS Northumberland CCGBRANCH END SURGERY | C153: North | D153: Northumberland, Tyne and Wear and North Durham | E153: 00L | F153: NHS Northumberland CCG | G153: A84047 | H153: BRANCH END SURGERY | I153: 5,430 | Q153: North London | R153: NHS Enfield CCG | S153: NHS Barnsley CCGROYSTON GROUP PRACTICE | T153: NHS Barnsley CCG | U153: ROYSTON GROUP PRACTICE | V153: 7957 | W153: OK | X153: =INDEX(PopulationTable,SMALL(IF(($X$4=$T$3:$T$7439),ROW($T$3:$T$7439)-MIN(ROW($T$3:$T$7439))+1,""),ROW(S148)),2) ->  | AG153: NHS SOUTH WARWICKSHIRE CCG | AH153: 33
A154: NHS Northumberland CCGTHE GLENDALE SURGERY | B154: Northumberland, Tyne and Wear and North DurhamNHS Northumberland CCGTHE GLENDALE SURGERY | C154: North | D154: Northumberland, Tyne and Wear and North Durham | E154: 00L | F154: NHS Northumberland CCG | G154: A84604 | H154: THE GLENDALE SURGERY | I154: 2,176 | Q154: North London | R154: NHS Haringey CCG | S154: NHS Barnsley CCGST GEORGE'S MEDICAL CENTRE PMS PRACTICE | T154: NHS Barnsley CCG | U154: ST GEORGE'S MEDICAL CENTRE PMS PRACTICE | V154: 7058 | W154: OK | X154: =INDEX(PopulationTable,SMALL(IF(($X$4=$T$3:$T$7439),ROW($T$3:$T$7439)-MIN(ROW($T$3:$T$7439))+1,""),ROW(S149)),2) ->  | AG154: NHS SOUTH WEST LINCOLNSHIRE CCG | AH154: 17
A155: NHS Northumberland CCGFELTON SURGERY | B155: Northumberland, Tyne and Wear and North DurhamNHS Northumberland CCGFELTON SURGERY | C155: North | D155: Northumberland, Tyne and Wear and North Durham | E155: 00L | F155: NHS Northumberland CCG | G155: A84609 | H155: FELTON SURGERY | I155: 1,589 | Q155: North London | R155: NHS Islington CCG | S155: NHS Barnsley CCGTHE DOVE VALLEY PMS PRACTICE | T155: NHS Barnsley CCG | U155: THE DOVE VALLEY PMS PRACTICE | V155: 10450 | W155: OK | X155: =INDEX(PopulationTable,SMALL(IF(($X$4=$T$3:$T$7439),ROW($T$3:$T$7439)-MIN(ROW($T$3:$T$7439))+1,""),ROW(S150)),2) ->  | AG155: NHS SOUTH WORCESTERSHIRE CCG | AH155: 31
A156: NHS Northumberland CCGTHE ADDERLANE SURGERY | B156: Northumberland, Tyne and Wear and North DurhamNHS Northumberland CCGTHE ADDERLANE SURGERY | C156: North | D156: Northumberland, Tyne and Wear and North Durham | E156: 00L | F156: NHS Northumberland CCG | G156: A84614 | H156: THE ADDERLANE SURGERY | I156: 1,961 | Q156: North West London | R156: All | S156: NHS Barnsley CCGTHE GROVE MEDICAL PRACTICE | T156: NHS Barnsley CCG | U156: THE GROVE MEDICAL PRACTICE | V156: 5004 | W156: OK | X156: =INDEX(PopulationTable,SMALL(IF(($X$4=$T$3:$T$7439),ROW($T$3:$T$7439)-MIN(ROW($T$3:$T$7439))+1,""),ROW(S151)),2) ->  | AG156: NHS SOUTHAMPTON CCG | AH156: 27
A157: NHS Northumberland CCGELSDON AVENUE SURGERY | B157: Northumberland, Tyne and Wear and North DurhamNHS Northumberland CCGELSDON AVENUE SURGERY | C157: North | D157: Northumberland, Tyne and Wear and North Durham | E157: 00L | F157: NHS Northumberland CCG | G157: A84619 | H157: ELSDON AVENUE SURGERY | I157: 3,772 | Q157: North West London | R157: NHS Brent CCG | S157: NHS Barnsley CCGTHE KAKOTY PRACTICE | T157: NHS Barnsley CCG | U157: THE KAKOTY PRACTICE | V157: 6663 | W157: OK | X157: =INDEX(PopulationTable,SMALL(IF(($X$4=$T$3:$T$7439),ROW($T$3:$T$7439)-MIN(ROW($T$3:$T$7439))+1,""),ROW(S152)),2) ->  | AG157: NHS SOUTHEND CCG | AH157: 28
A158: NHS Northumberland CCGCOLLINGWOOD MEDICAL GROUP | B158: Northumberland, Tyne and Wear and North DurhamNHS Northumberland CCGCOLLINGWOOD MEDICAL GROUP | C158: North | D158: Northumberland, Tyne and Wear and North Durham | E158: 00L | F158: NHS Northumberland CCG | G158: Y00151 | H158: COLLINGWOOD MEDICAL GROUP | I158: 804 | Q158: North West London | R158: NHS Central London (Westminster) CCG | S158: NHS Barnsley CCGTHE ROSE TREE PMS PRACTICE | T158: NHS Barnsley CCG | U158: THE ROSE TREE PMS PRACTICE | V158: 8682 | W158: OK | X158: =INDEX(PopulationTable,SMALL(IF(($X$4=$T$3:$T$7439),ROW($T$3:$T$7439)-MIN(ROW($T$3:$T$7439))+1,""),ROW(S153)),2) ->  | AG158: NHS SOUTHERN DERBYSHIRE CCG | AH158: 55
A159: NHS Northumberland CCGAll | B159: Northumberland, Tyne and Wear and North DurhamNHS Northumberland CCGAll | C159: North | D159: Northumberland, Tyne and Wear and North Durham | E159: 00L | F159: NHS Northumberland CCG | H159: All | I159: 326,534 | Q159: North West London | R159: NHS Ealing CCG | S159: NHS Barnsley CCGVICTORIA MEDICAL CENTRE PMS PRACTICE | T159: NHS Barnsley CCG | U159: VICTORIA MEDICAL CENTRE PMS PRACTICE | V159: 11560 | W159: OK | X159: =INDEX(PopulationTable,SMALL(IF(($X$4=$T$3:$T$7439),ROW($T$3:$T$7439)-MIN(ROW($T$3:$T$7439))+1,""),ROW(S154)),2) ->  | AG159: NHS SOUTHPORT AND FORMBY CCG | AH159: 18
A160: NHS South Tees CCGBLUEBELL MEDICAL CENTRE | B160: Durham, Darlington, Teesside, Hambleton, Richmondshire and WhitbyNHS South Tees CCGBLUEBELL MEDICAL CENTRE | C160: North | D160: Durham, Darlington, Teesside, Hambleton, Richmondshire and Whitby | E160: 00M | F160: NHS South Tees CCG | G160: A81004 | H160: BLUEBELL MEDICAL CENTRE | I160: 10,606 | Q160: North West London | R160: NHS Hammersmith and Fulham CCG | S160: NHS Barnsley CCGWALDERSLADE SURGERY | T160: NHS Barnsley CCG | U160: WALDERSLADE SURGERY | V160: 12985 | W160: OK | X160: =INDEX(PopulationTable,SMALL(IF(($X$4=$T$3:$T$7439),ROW($T$3:$T$7439)-MIN(ROW($T$3:$T$7439))+1,""),ROW(S155)),2) ->  | AG160: NHS SOUTHWARK CCG | AH160: 40
A161: NHS South Tees CCGSPRINGWOOD SURGERY | B161: Durham, Darlington, Teesside, Hambleton, Richmondshire and WhitbyNHS South Tees CCGSPRINGWOOD SURGERY | C161: North | D161: Durham, Darlington, Teesside, Hambleton, Richmondshire and Whitby | E161: 00M | F161: NHS South Tees CCG | G161: A81005 | H161: SPRINGWOOD SURGERY | I161: 8,047 | Q161: North West London | R161: NHS Harrow CCG | S161: NHS Barnsley CCGWOMBWELL GMS PRACTICE | T161: NHS Barnsley CCG | U161: WOMBWELL GMS PRACTICE | V161: 10410 | W161: OK | X161: =INDEX(PopulationTable,SMALL(IF(($X$4=$T$3:$T$7439),ROW($T$3:$T$7439)-MIN(ROW($T$3:$T$7439))+1,""),ROW(S156)),2) ->  | AG161: NHS ST HELENS CCG | AH161: 34
A162: NHS South Tees CCGVILLAGE MEDICAL CENTRE | B162: Durham, Darlington, Teesside, Hambleton, Richmondshire and WhitbyNHS South Tees CCGVILLAGE MEDICAL CENTRE | C162: North | D162: Durham, Darlington, Teesside, Hambleton, Richmondshire and Whitby | E162: 00M | F162: NHS South Tees CCG | G162: A81009 | H162: VILLAGE MEDICAL CENTRE | I162: 8,623 | Q162: North West London | R162: NHS Hillingdon CCG | S162: NHS Barnsley CCGWOMBWELL MEDICAL CENTRE PRACTICE | T162: NHS Barnsley CCG | U162: WOMBWELL MEDICAL CENTRE PRACTICE | V162: 9896 | W162: OK | X162: =INDEX(PopulationTable,SMALL(IF(($X$4=$T$3:$T$7439),ROW($T$3:$T$7439)-MIN(ROW($T$3:$T$7439))+1,""),ROW(S157)),2) ->  | AG162: NHS STAFFORD AND SURROUNDS CCG | AH162: 14
A163: NHS South Tees CCGWESTBOURNE MEDICAL CENTRE | B163: Durham, Darlington, Teesside, Hambleton, Richmondshire and WhitbyNHS South Tees CCGWESTBOURNE MEDICAL CENTRE | C163: North | D163: Durham, Darlington, Teesside, Hambleton, Richmondshire and Whitby | E163: 00M | F163: NHS South Tees CCG | G163: A81012 | H163: WESTBOURNE MEDICAL CENTRE | I163: 5,064 | Q163: North West London | R163: NHS Hounslow CCG | S163: NHS Barnsley CCGWOODLAND DRIVE MEDICAL CENTRE | T163: NHS Barnsley CCG | U163: WOODLAND DRIVE MEDICAL CENTRE | V163: 5017 | W163: OK | X163: =INDEX(PopulationTable,SMALL(IF(($X$4=$T$3:$T$7439),ROW($T$3:$T$7439)-MIN(ROW($T$3:$T$7439))+1,""),ROW(S158)),2) ->  | AG163: NHS STOCKPORT CCG | AH163: 39
A164: NHS South Tees CCGBROTTON SURGERY | B164: Durham, Darlington, Teesside, Hambleton, Richmondshire and WhitbyNHS South Tees CCGBROTTON SURGERY | C164: North | D164: Durham, Darlington, Teesside, Hambleton, Richmondshire and Whitby | E164: 00M | F164: NHS South Tees CCG | G164: A81013 | H164: BROTTON SURGERY | I164: 6,521 | Q164: North West London | R164: NHS West London CCG | S164: NHS Basildon and Brentwood CCGAll | T164: NHS Basildon and Brentwood CCG | U164: All | V164: 280837 | W164: OK | X164: =INDEX(PopulationTable,SMALL(IF(($X$4=$T$3:$T$7439),ROW($T$3:$T$7439)-MIN(ROW($T$3:$T$7439))+1,""),ROW(S159)),2) ->  | AG164: NHS STOKE ON TRENT CCG | AH164: 44
A165: NHS South Tees CCGPARK SURGERY | B165: Durham, Darlington, Teesside, Hambleton, Richmondshire and WhitbyNHS South Tees CCGPARK SURGERY | C165: North | D165: Durham, Darlington, Teesside, Hambleton, Richmondshire and Whitby | E165: 00M | F165: NHS South Tees CCG | G165: A81016 | H165: PARK SURGERY | I165: 10,120 | Q165: Northamptonshire | R165: All | S165: NHS Basildon and Brentwood CCGAEGIS MEDICAL CENTRE | T165: NHS Basildon and Brentwood CCG | U165: AEGIS MEDICAL CENTRE | V165: 4862 | W165: OK | X165: =INDEX(PopulationTable,SMALL(IF(($X$4=$T$3:$T$7439),ROW($T$3:$T$7439)-MIN(ROW($T$3:$T$7439))+1,""),ROW(S160)),2) ->  | AG165: NHS SUNDERLAND CCG | AH165: 42
A166: NHS South Tees CCGBENTLEY MEDICAL PRACTICE | B166: Durham, Darlington, Teesside, Hambleton, Richmondshire and WhitbyNHS South Tees CCGBENTLEY MEDICAL PRACTICE | C166: North | D166: Durham, Darlington, Teesside, Hambleton, Richmondshire and Whitby | E166: 00M | F166: NHS South Tees CCG | G166: A81018 | H166: BENTLEY MEDICAL PRACTICE | I166: 10,097 | Q166: Northamptonshire | R166: NHS Corby CCG | S166: NHS Basildon and Brentwood CCGARYAN MEDICAL CENTRE | T166: NHS Basildon and Brentwood CCG | U166: ARYAN MEDICAL CENTRE | V166: 4536 | W166: OK | X166: =INDEX(PopulationTable,SMALL(IF(($X$4=$T$3:$T$7439),ROW($T$3:$T$7439)-MIN(ROW($T$3:$T$7439))+1,""),ROW(S161)),2) ->  | AG166: NHS SURREY DOWNS CCG | AH166: 31
A167: NHS South Tees CCGCROSSFELL HEALTH CENTRE | B167: Durham, Darlington, Teesside, Hambleton, Richmondshire and WhitbyNHS South Tees CCGCROSSFELL HEALTH CENTRE | C167: North | D167: Durham, Darlington, Teesside, Hambleton, Richmondshire and Whitby | E167: 00M | F167: NHS South Tees CCG | G167: A81019 | H167: CROSSFELL HEALTH CENTRE | I167: 9,506 | Q167: Northamptonshire | R167: NHS Nene CCG | S167: NHS Basildon and Brentwood CCGBALLARDS WALK SURGERY | T167: NHS Basildon and Brentwood CCG | U167: BALLARDS WALK SURGERY | V167: 8643 | W167: OK | X167: =INDEX(PopulationTable,SMALL(IF(($X$4=$T$3:$T$7439),ROW($T$3:$T$7439)-MIN(ROW($T$3:$T$7439))+1,""),ROW(S162)),2) ->  | AG167: NHS SURREY HEATH CCG | AH167: 7
A168: NHS South Tees CCGMARTONSIDE MEDICAL CENTRE | B168: Durham, Darlington, Teesside, Hambleton, Richmondshire and WhitbyNHS South Tees CCGMARTONSIDE MEDICAL CENTRE | C168: North | D168: Durham, Darlington, Teesside, Hambleton, Richmondshire and Whitby | E168: 00M | F168: NHS South Tees CCG | G168: A81020 | H168: MARTONSIDE MEDICAL CENTRE | I168: 7,998 | Q168: Northumberland, Tyne and Wear and North Durham | R168: All | S168: NHS Basildon and Brentwood CCGBEECHWOOD SURGERY | T168: NHS Basildon and Brentwood CCG | U168: BEECHWOOD SURGERY | V168: 12433 | W168: OK | X168: =INDEX(PopulationTable,SMALL(IF(($X$4=$T$3:$T$7439),ROW($T$3:$T$7439)-MIN(ROW($T$3:$T$7439))+1,""),ROW(S163)),2) ->  | AG168: NHS SUTTON CCG | AH168: 25
A169: NHS South Tees CCGNORMANBY MEDICAL CENTRE | B169: Durham, Darlington, Teesside, Hambleton, Richmondshire and WhitbyNHS South Tees CCGNORMANBY MEDICAL CENTRE | C169: North | D169: Durham, Darlington, Teesside, Hambleton, Richmondshire and Whitby | E169: 00M | F169: NHS South Tees CCG | G169: A81021 | H169: NORMANBY MEDICAL CENTRE | I169: 13,604 | Q169: Northumberland, Tyne and Wear and North Durham | R169: NHS Newcastle Gateshead CCG | S169: NHS Basildon and Brentwood CCGCHAPEL STREET SURGERY | T169: NHS Basildon and Brentwood CCG | U169: CHAPEL STREET SURGERY | V169: 4952 | W169: OK | X169: =INDEX(PopulationTable,SMALL(IF(($X$4=$T$3:$T$7439),ROW($T$3:$T$7439)-MIN(ROW($T$3:$T$7439))+1,""),ROW(S164)),2) ->  | AG169: NHS SWALE CCG | AH169: 18
A170: NHS South Tees CCGHILLSIDE PRACTICE | B170: Durham, Darlington, Teesside, Hambleton, Richmondshire and WhitbyNHS South Tees CCGHILLSIDE PRACTICE | C170: North | D170: Durham, Darlington, Teesside, Hambleton, Richmondshire and Whitby | E170: 00M | F170: NHS South Tees CCG | G170: A81022 | H170: HILLSIDE PRACTICE | I170: 10,366 | Q170: Northumberland, Tyne and Wear and North Durham | R170: NHS North Tyneside CCG | S170: NHS Basildon and Brentwood CCGCLAYHILL MEDICAL PRACTICE | T170: NHS Basildon and Brentwood CCG | U170: CLAYHILL MEDICAL PRACTICE | V170: 6516 | W170: OK | X170: =INDEX(PopulationTable,SMALL(IF(($X$4=$T$3:$T$7439),ROW($T$3:$T$7439)-MIN(ROW($T$3:$T$7439))+1,""),ROW(S165)),2) ->  | AG170: NHS SWINDON CCG | AH170: 23
A171: NHS South Tees CCGTHE ENDEAVOUR PRACTICE | B171: Durham, Darlington, Teesside, Hambleton, Richmondshire and WhitbyNHS South Tees CCGTHE ENDEAVOUR PRACTICE | C171: North | D171: Durham, Darlington, Teesside, Hambleton, Richmondshire and Whitby | E171: 00M | F171: NHS South Tees CCG | G171: A81023 | H171: THE ENDEAVOUR PRACTICE | I171: 7,761 | Q171: Northumberland, Tyne and Wear and North Durham | R171: NHS Northumberland CCG | S171: NHS Basildon and Brentwood CCGDEAL TREE HEALTH CENTRE | T171: NHS Basildon and Brentwood CCG | U171: DEAL TREE HEALTH CENTRE | V171: 9536 | W171: OK | X171: =INDEX(PopulationTable,SMALL(IF(($X$4=$T$3:$T$7439),ROW($T$3:$T$7439)-MIN(ROW($T$3:$T$7439))+1,""),ROW(S166)),2) ->  | AG171: NHS TAMESIDE AND GLOSSOP CCG | AH171: 37
A172: NHS South Tees CCGLINTHORPE SURGERY | B172: Durham, Darlington, Teesside, Hambleton, Richmondshire and WhitbyNHS South Tees CCGLINTHORPE SURGERY | C172: North | D172: Durham, Darlington, Teesside, Hambleton, Richmondshire and Whitby | E172: 00M | F172: NHS South Tees CCG | G172: A81026 | H172: LINTHORPE SURGERY | I172: 19,393 | Q172: Northumberland, Tyne and Wear and North Durham | R172: NHS South Tyneside CCG | S172: NHS Basildon and Brentwood CCGDR A NAEEM & PARTNERS,THE NEW SURGERY | T172: NHS Basildon and Brentwood CCG | U172: DR A NAEEM & PARTNERS,THE NEW SURGERY | V172: 13804 | W172: OK | X172: =INDEX(PopulationTable,SMALL(IF(($X$4=$T$3:$T$7439),ROW($T$3:$T$7439)-MIN(ROW($T$3:$T$7439))+1,""),ROW(S167)),2) ->  | AG172: NHS TELFORD AND WREKIN CCG | AH172: 14
A173: NHS South Tees CCGPROSPECT SURGERY | B173: Durham, Darlington, Teesside, Hambleton, Richmondshire and WhitbyNHS South Tees CCGPROSPECT SURGERY | C173: North | D173: Durham, Darlington, Teesside, Hambleton, Richmondshire and Whitby | E173: 00M | F173: NHS South Tees CCG | G173: A81029 | H173: PROSPECT SURGERY | I173: 6,399 | Q173: Northumberland, Tyne and Wear and North Durham | R173: NHS Sunderland CCG | S173: NHS Basildon and Brentwood CCGDR DEGUN & DR MACAULAY | T173: NHS Basildon and Brentwood CCG | U173: DR DEGUN & DR MACAULAY | V173: 6702 | W173: OK | X173: =INDEX(PopulationTable,SMALL(IF(($X$4=$T$3:$T$7439),ROW($T$3:$T$7439)-MIN(ROW($T$3:$T$7439))+1,""),ROW(S168)),2) ->  | AG173: NHS THANET CCG | AH173: 14
A174: NHS South Tees CCGBOROUGH ROAD & NUNTHORPE MEDICAL GROUP | B174: Durham, Darlington, Teesside, Hambleton, Richmondshire and WhitbyNHS South Tees CCGBOROUGH ROAD & NUNTHORPE MEDICAL GROUP | C174: North | D174: Durham, Darlington, Teesside, Hambleton, Richmondshire and Whitby | E174: 00M | F174: NHS South Tees CCG | G174: A81030 | H174: BOROUGH ROAD & NUNTHORPE MEDICAL GROUP | I174: 13,857 | Q174: Nottinghamshire | R174: All | S174: NHS Basildon and Brentwood CCGDR GC CHAJED'S PRACTICE | T174: NHS Basildon and Brentwood CCG | U174: DR GC CHAJED'S PRACTICE | V174: 9495 | W174: OK | X174: =INDEX(PopulationTable,SMALL(IF(($X$4=$T$3:$T$7439),ROW($T$3:$T$7439)-MIN(ROW($T$3:$T$7439))+1,""),ROW(S169)),2) ->  | AG174: NHS THURROCK CCG | AH174: 29
A175: NHS South Tees CCGTHE GARTH | B175: Durham, Darlington, Teesside, Hambleton, Richmondshire and WhitbyNHS South Tees CCGTHE GARTH | C175: North | D175: Durham, Darlington, Teesside, Hambleton, Richmondshire and Whitby | E175: 00M | F175: NHS South Tees CCG | G175: A81032 | H175: THE GARTH | I175: 10,842 | Q175: Nottinghamshire | R175: NHS Mansfield and Ashfield CCG | S175: NHS Basildon and Brentwood CCGDR JO ARAYOMI'S PRACTICE | T175: NHS Basildon and Brentwood CCG | U175: DR JO ARAYOMI'S PRACTICE | V175: 2293 | W175: OK | X175: =INDEX(PopulationTable,SMALL(IF(($X$4=$T$3:$T$7439),ROW($T$3:$T$7439)-MIN(ROW($T$3:$T$7439))+1,""),ROW(S170)),2) ->  | AG175: NHS TOWER HAMLETS CCG | AH175: 35
A176: NHS South Tees CCGNEWLANDS MEDICAL CENTRE | B176: Durham, Darlington, Teesside, Hambleton, Richmondshire and WhitbyNHS South Tees CCGNEWLANDS MEDICAL CENTRE | C176: North | D176: Durham, Darlington, Teesside, Hambleton, Richmondshire and Whitby | E176: 00M | F176: NHS South Tees CCG | G176: A81035 | H176: NEWLANDS MEDICAL CENTRE | I176: 10,328 | Q176: Nottinghamshire | R176: NHS Newark and Sherwood CCG | S176: NHS Basildon and Brentwood CCGDR KK ABRAHAM'S PRACTICE | T176: NHS Basildon and Brentwood CCG | U176: DR KK ABRAHAM'S PRACTICE | V176: 6596 | W176: OK | X176: =INDEX(PopulationTable,SMALL(IF(($X$4=$T$3:$T$7439),ROW($T$3:$T$7439)-MIN(ROW($T$3:$T$7439))+1,""),ROW(S171)),2) ->  | AG176: NHS TRAFFORD CCG | AH176: 32
A177: NHS South Tees CCGTHE ERIMUS PRACTICE | B177: Durham, Darlington, Teesside, Hambleton, Richmondshire and WhitbyNHS South Tees CCGTHE ERIMUS PRACTICE | C177: North | D177: Durham, Darlington, Teesside, Hambleton, Richmondshire and Whitby | E177: 00M | F177: NHS South Tees CCG | G177: A81037 | H177: THE ERIMUS PRACTICE | I177: 6,879 | Q177: Nottinghamshire | R177: NHS Nottingham City CCG | S177: NHS Basildon and Brentwood CCGDR M ASLAM'S PRACTICE | T177: NHS Basildon and Brentwood CCG | U177: DR M ASLAM'S PRACTICE | V177: 7145 | W177: OK | X177: =INDEX(PopulationTable,SMALL(IF(($X$4=$T$3:$T$7439),ROW($T$3:$T$7439)-MIN(ROW($T$3:$T$7439))+1,""),ROW(S172)),2) ->  | AG177: NHS VALE OF YORK CCG | AH177: 26
A178: NHS South Tees CCGHIRSEL MEDICAL CENTRE | B178: Durham, Darlington, Teesside, Hambleton, Richmondshire and WhitbyNHS South Tees CCGHIRSEL MEDICAL CENTRE | C178: North | D178: Durham, Darlington, Teesside, Hambleton, Richmondshire and Whitby | E178: 00M | F178: NHS South Tees CCG | G178: A81038 | H178: HIRSEL MEDICAL CENTRE | I178: 3,685 | Q178: Nottinghamshire | R178: NHS Nottingham North and East CCG | S178: NHS Basildon and Brentwood CCGDR MA SIMS' PRACTICE | T178: NHS Basildon and Brentwood CCG | U178: DR MA SIMS' PRACTICE | V178: 7780 | W178: OK | X178: =INDEX(PopulationTable,SMALL(IF(($X$4=$T$3:$T$7439),ROW($T$3:$T$7439)-MIN(ROW($T$3:$T$7439))+1,""),ROW(S173)),2) ->  | AG178: NHS VALE ROYAL CCG | AH178: 12
A179: NHS South Tees CCGSOUTH GRANGE MEDICAL GROUP PRACTICE | B179: Durham, Darlington, Teesside, Hambleton, Richmondshire and WhitbyNHS South Tees CCGSOUTH GRANGE MEDICAL GROUP PRACTICE | C179: North | D179: Durham, Darlington, Teesside, Hambleton, Richmondshire and Whitby | E179: 00M | F179: NHS South Tees CCG | G179: A81042 | H179: SOUTH GRANGE MEDICAL GROUP PRACTICE | I179: 14,030 | Q179: Nottinghamshire | R179: NHS Nottingham West CCG | S179: NHS Basildon and Brentwood CCGDR N DABAS'S PRACTICE | T179: NHS Basildon and Brentwood CCG | U179: DR N DABAS'S PRACTICE | V179: 3269 | W179: OK | X179: =INDEX(PopulationTable,SMALL(IF(($X$4=$T$3:$T$7439),ROW($T$3:$T$7439)-MIN(ROW($T$3:$T$7439))+1,""),ROW(S174)),2) ->  | AG179: NHS WAKEFIELD CCG | AH179: 39
A180: NHS South Tees CCGTHE MANOR HOUSE SURGERY | B180: Durham, Darlington, Teesside, Hambleton, Richmondshire and WhitbyNHS South Tees CCGTHE MANOR HOUSE SURGERY | C180: North | D180: Durham, Darlington, Teesside, Hambleton, Richmondshire and Whitby | E180: 00M | F180: NHS South Tees CCG | G180: A81043 | H180: THE MANOR HOUSE SURGERY | I180: 8,551 | Q180: Nottinghamshire | R180: NHS Rushcliffe CCG | S180: NHS Basildon and Brentwood CCGDR NASAH & PARTNERS | T180: NHS Basildon and Brentwood CCG | U180: DR NASAH & PARTNERS | V180: 3659 | W180: OK | X180: =INDEX(PopulationTable,SMALL(IF(($X$4=$T$3:$T$7439),ROW($T$3:$T$7439)-MIN(ROW($T$3:$T$7439))+1,""),ROW(S175)),2) ->  | AG180: NHS WALSALL CCG | AH180: 53
A181: NHS South Tees CCGTHE COATHAM ROAD SURGERY | B181: Durham, Darlington, Teesside, Hambleton, Richmondshire and WhitbyNHS South Tees CCGTHE COATHAM ROAD SURGERY | C181: North | D181: Durham, Darlington, Teesside, Hambleton, Richmondshire and Whitby | E181: 00M | F181: NHS South Tees CCG | G181: A81045 | H181: THE COATHAM ROAD SURGERY | I181: 7,293 | Q181: Shropshire and Telford & Wrekin | R181: All | S181: NHS Basildon and Brentwood CCGDR SALAKO AND PARTNERS | T181: NHS Basildon and Brentwood CCG | U181: DR SALAKO AND PARTNERS | V181: 8802 | W181: OK | X181: =INDEX(PopulationTable,SMALL(IF(($X$4=$T$3:$T$7439),ROW($T$3:$T$7439)-MIN(ROW($T$3:$T$7439))+1,""),ROW(S176)),2) ->  | AG181: NHS WALTHAM FOREST CCG | AH181: 42
A182: NHS South Tees CCGZETLAND MEDICAL PRACTICE | B182: Durham, Darlington, Teesside, Hambleton, Richmondshire and WhitbyNHS South Tees CCGZETLAND MEDICAL PRACTICE | C182: North | D182: Durham, Darlington, Teesside, Hambleton, Richmondshire and Whitby | E182: 00M | F182: NHS South Tees CCG | G182: A81048 | H182: ZETLAND MEDICAL PRACTICE | I182: 7,357 | Q182: Shropshire and Telford & Wrekin | R182: NHS Shropshire CCG | S182: NHS Basildon and Brentwood CCGDR SHARMA & PARTNERS | T182: NHS Basildon and Brentwood CCG | U182: DR SHARMA & PARTNERS | V182: 3866 | W182: OK | X182: =INDEX(PopulationTable,SMALL(IF(($X$4=$T$3:$T$7439),ROW($T$3:$T$7439)-MIN(ROW($T$3:$T$7439))+1,""),ROW(S177)),2) ->  | AG182: NHS WANDSWORTH CCG | AH182: 41
A183: NHS South Tees CCGKINGS MEDICAL CENTRE | B183: Durham, Darlington, Teesside, Hambleton, Richmondshire and WhitbyNHS South Tees CCGKINGS MEDICAL CENTRE | C183: North | D183: Durham, Darlington, Teesside, Hambleton, Richmondshire and Whitby | E183: 00M | F183: NHS South Tees CCG | G183: A81049 | H183: KINGS MEDICAL CENTRE | I183: 6,700 | Q183: Shropshire and Telford & Wrekin | R183: NHS Telford and Wrekin CCG | S183: NHS Basildon and Brentwood CCGFRYERNS MEDICAL CENTRE | T183: NHS Basildon and Brentwood CCG | U183: FRYERNS MEDICAL CENTRE | V183: 3258 | W183: OK | X183: =INDEX(PopulationTable,SMALL(IF(($X$4=$T$3:$T$7439),ROW($T$3:$T$7439)-MIN(ROW($T$3:$T$7439))+1,""),ROW(S178)),2) ->  | AG183: NHS WARRINGTON CCG | AH183: 26
A184: NHS South Tees CCGCAMBRIDGE MEDICAL GROUP | B184: Durham, Darlington, Teesside, Hambleton, Richmondshire and WhitbyNHS South Tees CCGCAMBRIDGE MEDICAL GROUP | C184: North | D184: Durham, Darlington, Teesside, Hambleton, Richmondshire and Whitby | E184: 00M | F184: NHS South Tees CCG | G184: A81051 | H184: CAMBRIDGE MEDICAL GROUP | I184: 6,935 | Q184: Somerset | R184: All | S184: NHS Basildon and Brentwood CCGKNIGHTS SURGERY | T184: NHS Basildon and Brentwood CCG | U184: KNIGHTS SURGERY | V184: 2600 | W184: OK | X184: =INDEX(PopulationTable,SMALL(IF(($X$4=$T$3:$T$7439),ROW($T$3:$T$7439)-MIN(ROW($T$3:$T$7439))+1,""),ROW(S179)),2) ->  | AG184: NHS WARWICKSHIRE NORTH CCG | AH184: 26
A185: NHS South Tees CCGTHE GREEN HOUSE SURGERY | B185: Durham, Darlington, Teesside, Hambleton, Richmondshire and WhitbyNHS South Tees CCGTHE GREEN HOUSE SURGERY | C185: North | D185: Durham, Darlington, Teesside, Hambleton, Richmondshire and Whitby | E185: 00M | F185: NHS South Tees CCG | G185: A81052 | H185: THE GREEN HOUSE SURGERY | I185: 8,696 | Q185: Somerset | R185: NHS Somerset CCG | S185: NHS Basildon and Brentwood CCGLAINDON MEDICAL GROUP | T185: NHS Basildon and Brentwood CCG | U185: LAINDON MEDICAL GROUP | V185: 18119 | W185: OK | X185: =INDEX(PopulationTable,SMALL(IF(($X$4=$T$3:$T$7439),ROW($T$3:$T$7439)-MIN(ROW($T$3:$T$7439))+1,""),ROW(S180)),2) ->  | AG185: NHS WEST CHESHIRE CCG | AH185: 35
A186: NHS South Tees CCGWOODSIDE SURGERY | B186: Durham, Darlington, Teesside, Hambleton, Richmondshire and WhitbyNHS South Tees CCGWOODSIDE SURGERY | C186: North | D186: Durham, Darlington, Teesside, Hambleton, Richmondshire and Whitby | E186: 00M | F186: NHS South Tees CCG | G186: A81053 | H186: WOODSIDE SURGERY | I186: 6,464 | Q186: South East London | R186: All | S186: NHS Basildon and Brentwood CCGLONDON ROAD SURGERY | T186: NHS Basildon and Brentwood CCG | U186: LONDON ROAD SURGERY | V186: 12345 | W186: OK | X186: =INDEX(PopulationTable,SMALL(IF(($X$4=$T$3:$T$7439),ROW($T$3:$T$7439)-MIN(ROW($T$3:$T$7439))+1,""),ROW(S181)),2) ->  | AG186: NHS WEST ESSEX CCG | AH186: 32
A187: NHS South Tees CCGTHE SALTSCAR SURGERY | B187: Durham, Darlington, Teesside, Hambleton, Richmondshire and WhitbyNHS South Tees CCGTHE SALTSCAR SURGERY | C187: North | D187: Durham, Darlington, Teesside, Hambleton, Richmondshire and Whitby | E187: 00M | F187: NHS South Tees CCG | G187: A81054 | H187: THE SALTSCAR SURGERY | I187: 8,199 | Q187: South East London | R187: NHS Bexley CCG | S187: NHS Basildon and Brentwood CCGMALLING HEALTH - DIPPLE MEDICAL CENTRE | T187: NHS Basildon and Brentwood CCG | U187: MALLING HEALTH - DIPPLE MEDICAL CENTRE | V187: 3761 | W187: OK | X187: =INDEX(PopulationTable,SMALL(IF(($X$4=$T$3:$T$7439),ROW($T$3:$T$7439)-MIN(ROW($T$3:$T$7439))+1,""),ROW(S182)),2) ->  | AG187: NHS WEST HAMPSHIRE CCG | AH187: 49
A188: NHS South Tees CCGCOULBY MEDICAL PRACTICE | B188: Durham, Darlington, Teesside, Hambleton, Richmondshire and WhitbyNHS South Tees CCGCOULBY MEDICAL PRACTICE | C188: North | D188: Durham, Darlington, Teesside, Hambleton, Richmondshire and Whitby | E188: 00M | F188: NHS South Tees CCG | G188: A81058 | H188: COULBY MEDICAL PRACTICE | I188: 8,514 | Q188: South East London | R188: NHS Bromley CCG | S188: NHS Basildon and Brentwood CCGMATCHING GREEN SURGERY | T188: NHS Basildon and Brentwood CCG | U188: MATCHING GREEN SURGERY | V188: 3908 | W188: OK | X188: =INDEX(PopulationTable,SMALL(IF(($X$4=$T$3:$T$7439),ROW($T$3:$T$7439)-MIN(ROW($T$3:$T$7439))+1,""),ROW(S183)),2) ->  | AG188: NHS WEST KENT CCG | AH188: 59
A189: NHS South Tees CCGTHE DISCOVERY PRACTICE | B189: Durham, Darlington, Teesside, Hambleton, Richmondshire and WhitbyNHS South Tees CCGTHE DISCOVERY PRACTICE | C189: North | D189: Durham, Darlington, Teesside, Hambleton, Richmondshire and Whitby | E189: 00M | F189: NHS South Tees CCG | G189: A81064 | H189: THE DISCOVERY PRACTICE | I189: 7,091 | Q189: South East London | R189: NHS Greenwich CCG | S189: NHS Basildon and Brentwood CCGMOUNT AVENUE SURGERY | T189: NHS Basildon and Brentwood CCG | U189: MOUNT AVENUE SURGERY | V189: 13355 | W189: OK | X189: =INDEX(PopulationTable,SMALL(IF(($X$4=$T$3:$T$7439),ROW($T$3:$T$7439)-MIN(ROW($T$3:$T$7439))+1,""),ROW(S184)),2) ->  | AG189: NHS WEST LANCASHIRE CCG | AH189: 17
A190: NHS South Tees CCGTHE ESTON SURGERY | B190: Durham, Darlington, Teesside, Hambleton, Richmondshire and WhitbyNHS South Tees CCGTHE ESTON SURGERY | C190: North | D190: Durham, Darlington, Teesside, Hambleton, Richmondshire and Whitby | E190: 00M | F190: NHS South Tees CCG | G190: A81065 | H190: THE ESTON SURGERY | I190: 3,963 | Q190: South East London | R190: NHS Lambeth CCG | S190: NHS Basildon and Brentwood CCGPMS THE GORE SURGERY | T190: NHS Basildon and Brentwood CCG | U190: PMS THE GORE SURGERY | V190: 2382 | W190: OK | X190: =INDEX(PopulationTable,SMALL(IF(($X$4=$T$3:$T$7439),ROW($T$3:$T$7439)-MIN(ROW($T$3:$T$7439))+1,""),ROW(S185)),2) ->  | AG190: NHS WEST LEICESTERSHIRE CCG | AH190: 48
A191: NHS South Tees CCGPARKWAY MEDICAL CENTRE | B191: Durham, Darlington, Teesside, Hambleton, Richmondshire and WhitbyNHS South Tees CCGPARKWAY MEDICAL CENTRE | C191: North | D191: Durham, Darlington, Teesside, Hambleton, Richmondshire and Whitby | E191: 00M | F191: NHS South Tees CCG | G191: A81611 | H191: PARKWAY MEDICAL CENTRE | I191: 7,376 | Q191: South East London | R191: NHS Lewisham CCG | S191: NHS Basildon and Brentwood CCGQUEENS PARK SURGERY | T191: NHS Basildon and Brentwood CCG | U191: QUEENS PARK SURGERY | V191: 5347 | W191: OK | X191: =INDEX(PopulationTable,SMALL(IF(($X$4=$T$3:$T$7439),ROW($T$3:$T$7439)-MIN(ROW($T$3:$T$7439))+1,""),ROW(S186)),2) ->  | AG191: NHS WEST LONDON CCG | AH191: 43
A192: NHS South Tees CCGHUNTCLIFF SURGERY | B192: =D192&F192&H192 -> Durham, Darlington, Teesside, Hambleton, Richmondshire and WhitbyNHS South Tees CCGHUNTCLIFF SURGERY | C192: North | D192: Durham, Darlington, Teesside, Hambleton, Richmondshire and Whitby | E192: 00M | F192: NHS South Tees CCG | G192: A81618 | H192: HUNTCLIFF SURGERY | I192: 9,449 | Q192: South East London | R192: NHS Southwark CCG | S192: NHS Basildon and Brentwood CCGROBERT FREW MEDICAL CENTRE | T192: NHS Basildon and Brentwood CCG | U192: ROBERT FREW MEDICAL CENTRE | V192: 14677 | W192: OK | X192: =INDEX(PopulationTable,SMALL(IF(($X$4=$T$3:$T$7439),ROW($T$3:$T$7439)-MIN(ROW($T$3:$T$7439))+1,""),ROW(S187)),2) ->  | AG192: NHS WEST NORFOLK CCG | AH192: 21
A193: NHS South Tees CCGTHORNTREE SURGERY | B193: Durham, Darlington, Teesside, Hambleton, Richmondshire and WhitbyNHS South Tees CCGTHORNTREE SURGERY | C193: North | D193: Durham, Darlington, Teesside, Hambleton, Richmondshire and Whitby | E193: 00M | F193: NHS South Tees CCG | G193: A81621 | H193: THORNTREE SURGERY | I193: 2,319 | Q193: South West London | R193: All | S193: NHS Basildon and Brentwood CCGROCKLEIGH COURT SURGERY | T193: NHS Basildon and Brentwood CCG | U193: ROCKLEIGH COURT SURGERY | V193: 6668 | W193: OK | X193: =INDEX(PopulationTable,SMALL(IF(($X$4=$T$3:$T$7439),ROW($T$3:$T$7439)-MIN(ROW($T$3:$T$7439))+1,""),ROW(S188)),2) ->  | AG193: NHS WEST SUFFOLK CCG | AH193: 24
A194: NHS South Tees CCGFOUNDATIONS | B194: Durham, Darlington, Teesside, Hambleton, Richmondshire and WhitbyNHS South Tees CCGFOUNDATIONS | C194: North | D194: Durham, Darlington, Teesside, Hambleton, Richmondshire and Whitby | E194: 00M | F194: NHS South Tees CCG | G194: A81630 | H194: FOUNDATIONS | I194: 806 | Q194: South West London | R194: NHS Croydon CCG | S194: NHS Basildon and Brentwood CCGROSE VILLA SURGERY | T194: NHS Basildon and Brentwood CCG | U194: ROSE VILLA SURGERY | V194: 4158 | W194: OK | X194: =INDEX(PopulationTable,SMALL(IF(($X$4=$T$3:$T$7439),ROW($T$3:$T$7439)-MIN(ROW($T$3:$T$7439))+1,""),ROW(S189)),2) ->  | AG194: NHS WIGAN BOROUGH CCG | AH194: 61
A195: =F195&H195 -> NHS South Tees CCGFOUNDATIONS -HARRIS STREET | B195: Durham, Darlington, Teesside, Hambleton, Richmondshire and WhitbyNHS South Tees CCGFOUNDATIONS -HARRIS STREET | C195: North | D195: Durham, Darlington, Teesside, Hambleton, Richmondshire and Whitby | E195: 00M | F195: NHS South Tees CCG | G195: A81633 | H195: FOUNDATIONS -HARRIS STREET | I195: 1,066 | Q195: South West London | R195: NHS Kingston CCG | S195: NHS Basildon and Brentwood CCGSHOTGATE SURGERY | T195: NHS Basildon and Brentwood CCG | U195: SHOTGATE SURGERY | V195: 3566 | W195: OK | X195: =INDEX(PopulationTable,SMALL(IF(($X$4=$T$3:$T$7439),ROW($T$3:$T$7439)-MIN(ROW($T$3:$T$7439))+1,""),ROW(S190)),2) ->  | AG195: NHS WILTSHIRE CCG | AH195: 49
A196: NHS South Tees CCGTHE RAVENSCAR SURGERY | B196: Durham, Darlington, Teesside, Hambleton, Richmondshire and WhitbyNHS South Tees CCGTHE RAVENSCAR SURGERY | C196: North | D196: Durham, Darlington, Teesside, Hambleton, Richmondshire and Whitby | E196: 00M | F196: NHS South Tees CCG | G196: Y00286 | H196: THE RAVENSCAR SURGERY | I196: 3,760 | Q196: South West London | R196: NHS Merton CCG | S196: =T196&U196 -> NHS Basildon and Brentwood CCGSOUTH GREEN SURGERY | T196: NHS Basildon and Brentwood CCG | U196: SOUTH GREEN SURGERY | V196: 3238 | W196: OK | X196: =INDEX(PopulationTable,SMALL(IF(($X$4=$T$3:$T$7439),ROW($T$3:$T$7439)-MIN(ROW($T$3:$T$7439))+1,""),ROW(S191)),2) ->  | AG196: NHS WIRRAL CCG | AH196: 51
A197: NHS South Tees CCGTHE RIDGEWAY HEALTH CENTRE | B197: Durham, Darlington, Teesside, Hambleton, Richmondshire and WhitbyNHS South Tees CCGTHE RIDGEWAY HEALTH CENTRE | C197: North | D197: Durham, Darlington, Teesside, Hambleton, Richmondshire and Whitby | E197: 00M | F197: NHS South Tees CCG | G197: Y03303 | H197: THE RIDGEWAY HEALTH CENTRE | I197: 40 | Q197: South West London | R197: NHS Richmond CCG | S197: NHS Basildon and Brentwood CCGSOUTHVIEW PARK SURGERY | T197: NHS Basildon and Brentwood CCG | U197: SOUTHVIEW PARK SURGERY | V197: 4246 | W197: =IF(VLOOKUP(S197,A:I,9,FALSE)=V197,"OK","CHECK") -> OK | X197: =INDEX(PopulationTable,SMALL(IF(($X$4=$T$3:$T$7439),ROW($T$3:$T$7439)-MIN(ROW($T$3:$T$7439))+1,""),ROW(S192)),2) ->  | AG197: NHS WOLVERHAMPTON CCG | AH197: 42
A198: NHS South Tees CCGAll | B198: Durham, Darlington, Teesside, Hambleton, Richmondshire and WhitbyNHS South Tees CCGAll | C198: North | D198: Durham, Darlington, Teesside, Hambleton, Richmondshire and Whitby | E198: 00M | F198: NHS South Tees CCG | H198: All | I198: 298,305 | Q198: South West London | R198: NHS Sutton CCG | S198: NHS Basildon and Brentwood CCGSWANWOOD PARTNERSHIP | T198: NHS Basildon and Brentwood CCG | U198: SWANWOOD PARTNERSHIP | V198: 7288 | W198: OK | X198: =INDEX(PopulationTable,SMALL(IF(($X$4=$T$3:$T$7439),ROW($T$3:$T$7439)-MIN(ROW($T$3:$T$7439))+1,""),ROW(S193)),2) ->  | AG198: NHS WYRE FOREST CCG | AH198: 11
A199: NHS South Tyneside CCGVICTORIA MEDICAL CENTRE | B199: Northumberland, Tyne and Wear and North DurhamNHS South Tyneside CCGVICTORIA MEDICAL CENTRE | C199: North | D199: Northumberland, Tyne and Wear and North Durham | E199: 00N | F199: NHS South Tyneside CCG | G199: A88001 | H199: VICTORIA MEDICAL CENTRE | I199: 3,176 | Q199: South West London | R199: NHS Wandsworth CCG | S199: NHS Basildon and Brentwood CCGTHE BILLERICAY MEDICAL PRACTICE | T199: NHS Basildon and Brentwood CCG | U199: THE BILLERICAY MEDICAL PRACTICE | V199: 12408 | W199: OK | X199: =INDEX(PopulationTable,SMALL(IF(($X$4=$T$3:$T$7439),ROW($T$3:$T$7439)-MIN(ROW($T$3:$T$7439))+1,""),ROW(S194)),2) -> 
A200: NHS South Tyneside CCGFARNHAM MEDICAL CTR. | B200: Northumberland, Tyne and Wear and North DurhamNHS South Tyneside CCGFARNHAM MEDICAL CTR. | C200: North | D200: Northumberland, Tyne and Wear and North Durham | E200: 00N | F200: NHS South Tyneside CCG | G200: A88002 | H200: FARNHAM MEDICAL CTR. | I200: 17,403 | Q200: South Yorkshire and Bassetlaw | R200: All | S200: NHS Basildon and Brentwood CCGTHE HIGHWOOD SURGERY | T200: NHS Basildon and Brentwood CCG | U200: THE HIGHWOOD SURGERY | V200: 2596 | W200: OK | X200: =INDEX(PopulationTable,SMALL(IF(($X$4=$T$3:$T$7439),ROW($T$3:$T$7439)-MIN(ROW($T$3:$T$7439))+1,""),ROW(S195)),2) -> 
... 4300 more rows
